Workbook

Sheet 1. Info and Instructions
AB1: Alectra Utilities Corporation-Brampton Rate Zone
AB2: Alectra Utilities Corporation-Enersource Rate Zone
AB3: Alectra Utilities Corporation-Horizon Utilities Rate Zone
AB4: Alectra Utilities Corporation-PowerStream Rate Zone
AB5: Alectra Utilities Corporation-Guelph Rate Zone
AB6: Algoma Power Inc.
AB7: Atikokan Hydro Inc.
AB8: Bluewater Power Distribution Corporation
AB9: Burlington Hydro Inc.
AB10: Canadian Niagara Power Inc.
AB11: Centre Wellington Hydro Ltd.
F12: Version | G12: 1 | AB12: Chapleau Public Utilities Corporation
D13: Alectra Utilities Corporation | AB13: Cooperative Hydro Embrun Inc.
C14: Utility Name | AB14: E.L.K. Energy Inc.
AB15: Elexicon Energy Inc.-Whitby Rate Zone
C16: Assigned EB Number | D16: EB-2025-0252 | AB16: Elexicon Energy Inc.-Veridian Rate Zone
AB17: Enova Power Corp.-Kitchener-Wilmot Hydro Rate Zone
C18: Name and Title | AB18: Enova Power Corp.-Waterloo North Rate Zone
AB19: Entegrus Powerlines Inc.-For Entegrus-Main Rate Zone
C20: Phone Number | AB20: Entegrus Powerlines Inc.-For Former St. Thomas Energy Rate Zone
AB21: ENWIN Utilities Ltd.
C22: Email Address | AB22: EPCOR Electricity Distribution Ontario Inc.
AB23: ERTH Power Corporation - ERTH Power Main Rate Zone
C24: Date | AB24: ERTH POWER CORPORATION – GODERICH RATE ZONE
AB25: Essex Powerlines Corporation
C26: Last COS Re-based Year | AB26: Festival Hydro Inc.
AB27: Fort Frances Power Corporation
AB28: GrandBridge Energy Inc.-Brantford Power Rate Zone
A29: Note: Drop-down lists are shaded blue; Input cells are shaded green. | AB29: GrandBridge Energy Inc.-Energy+ Rate Zone
AB30: Greater Sudbury Hydro Inc.
AB31: Grimsby Power Incorporated
AB32: Halton Hills Hydro Inc.
AB33: Hearst Power Distribution Co. Ltd.
AB34: Hydro 2000 Inc.
AB35: Hydro Hawkesbury Inc.
AB36: Hydro One Networks Inc.
AB37: Hydro One Networks Inc.-Former Orillia Power Distribution Corporation Service Area
AB38: Hydro One Networks Inc.-Former Peterborough Distribution Inc. Service Area
AB39: Hydro One Networks Inc.-Former Haldimand County Hydro Inc. Service Area
AB40: Hydro One Networks Inc.-Former Norfolk Power Distribution Inc. Service Area
AB41: Hydro One Networks Inc.-Former Woodstock Hydro Services Inc. Service Area
AB42: Hydro One Remote Communites Inc.
AB43: Hydro Ottawa Limited
AB44: InnPower Corporation
AB45: Kingston Hydro Corporation
AB46: Lakefront Utilities Inc.
AB47: Lakeland Power Distribution Ltd.
AB48: London Hydro Inc.
AB49: Milton Hydro Distribution Inc.
AB50: Newmarket-Tay Power Distribution Ltd.-For Former Midland Power Utility Rate Zone
AB51: Newmarket-Tay Power Distribution Ltd.-For Newmarket-Tay Power Main Rate Zone
AB52: Niagara Peninsula Energy Inc.
AB53: Niagara-on-the-Lake Hydro Inc.
AB54: North Bay Hydro Distribution Limited
AB55: Northern Ontario Wires Inc.
AB56: Oakville Hydro Electricity Distribution Inc.
AB57: Orangeville Hydro Limited
AB58: Oshawa PUC Networks Inc.
AB59: Ottawa River Power Corporation
AB60: PUC Distribution Inc.
AB61: Renfrew Hydro Inc.
AB62: Rideau St. Lawrence Distribution Inc.
AB63: Sioux Lookout Hydro Inc.
AB64: Synergy North Corporation-Kenora Rate Zone
AB65: Synergy North Corporation-Thunder Bay Rate Zone
AB66: Tillsonburg Hydro Inc.
AB67: Toronto Hydro-Electric System Limited
AB68: Wasaga Distribution Inc.
AB69: Welland Hydro-Electric System Corp.
AB70: Wellington North Power Inc.
AB71: Westario Power Inc.

Sheet Table of Contents
AA1: 1
AA2: 2012
AA3: 2013
AA4: 2014
AA5: 2015
AA6: 2016
D10: 1. Info
D11: S. Summary
D12: A. Data Input Sheet
D13: B. Tax Rates & Exemptions
C16: Historical Year | D16: H0 - PILs, Tax Provision Historical Year
D17: H1 - Adj. Taxable Income Historical Year
D18: H4 - Schedule 4 Loss Carry Forward Historical Year
D19: H8 - Schedule 8 Historical
D20: H13 - Schedule 13 Tax Reserves Historical
C22: Bridge Year | D22: B0 - PILs,Tax Provision Bridge Year
D23: B1 - Adj. Taxable Income Bridge Year
D24: B4 - Schedule 4 Loss Carry Forward Bridge Year
D25: B8 - Schedule 8 CCA Bridge Year
D26: B13 - Schedule 13 Tax Reserves Bridge Year
C28: Test Year | D28: T0 PILs, Tax Provision Test Year
D29: T1 Taxable Income Test Year
D30: T4 Schedule 4 Loss Carry Forward Test Year
D31: T8 Schedule 8 CCA Test Year
D32: T13 Schedule 13 Reserve Test Year

Sheet S. Summary
B7: No inputs required on this worksheet.
D9: Inputs on Service Revenue Requirement Worksheet
D10: The Service Revenue Requirement is in the 'Revenue Requirement Workform' - Tab 3.
D12: Item | G12: Working Paper Reference | H12: Summary - Test 2027 | J12: Summary - Test 2028 | K12: Summary - Test 2029 | L12: Summary - Test 2030 | M12: Summary - Test 2031
D14: Adjustments required to arrive at taxable income | G14: as below | H14: =+H25 -> -112098666.7 | J14: =+J25 -> -115866192.1 | K14: =+K25 -> -151118626.9 | L14: =+L25 -> -102178667.4 | M14: =+M25 -> -116986514.4
D15: Test Year - Payments in Lieu of Taxes (PILs) | G15: T0 | H15: =+'T0 PILs,Tax Provision Test'!J25+'T0 PILs,Tax Provision Test'!J31 -> 12606924.06 | J15: =+'T0 PILs,Tax Provision Test'!O25+'T0 PILs,Tax Provision Test'!O31 -> 14221020.14 | K15: =+'T0 PILs,Tax Provision Test'!P25+'T0 PILs,Tax Provision Test'!P31 -> 7967642.473 | L15: =+'T0 PILs,Tax Provision Test'!Q25+'T0 PILs,Tax Provision Test'!Q31 -> 24648465.35 | M15: =+'T0 PILs,Tax Provision Test'!R25+'T0 PILs,Tax Provision Test'!R31 -> 24538492.93
D16: Test Year - Grossed-up PILs | G16: T0 | H16: =+'T0 PILs,Tax Provision Test'!J33 -> 17152277.64 | J16: =+'T0 PILs,Tax Provision Test'!O33 -> 19348326.72 | K16: =+'T0 PILs,Tax Provision Test'!P33 -> 10840329.9 | L16: =+'T0 PILs,Tax Provision Test'!Q33 -> 33535327.01 | M16: =+'T0 PILs,Tax Provision Test'!R33 -> 33385704.67
D17: Effective Federal Tax Rate | G17: T0 | H17: =+'T0 PILs,Tax Provision Test'!G14 -> 0.15 | J17: =+$H$17 -> 0.15 | K17: =+$H$17 -> 0.15 | L17: =+$H$17 -> 0.15 | M17: =+$H$17 -> 0.15
D18: Effective Ontario Tax Rate | G18: T0 | H18: =+'T0 PILs,Tax Provision Test'!G13 -> 0.115 | J18: =+$H$18 -> 0.115 | K18: =+$H$18 -> 0.115 | L18: =+$H$18 -> 0.115 | M18: =+$H$18 -> 0.115
D22: Calculation of Adjustments required to arrive at Taxable Income
D23: Regulatory Income (before income taxes) | G23: T1 | H23: ='T1 Sch 1 Taxable Income Test'!F12 -> 159671965.1 | J23: ='T1 Sch 1 Taxable Income Test'!I12 -> 169530419.1 | K23: ='T1 Sch 1 Taxable Income Test'!J12 -> 181185202.3 | L23: ='T1 Sch 1 Taxable Income Test'!K12 -> 195191744.2 | M23: ='T1 Sch 1 Taxable Income Test'!L12 -> 209584600.9
D24: Taxable Income | G24: T1 | H24: ='T1 Sch 1 Taxable Income Test'!F123 -> 47573298.35 | J24: ='T1 Sch 1 Taxable Income Test'!I123 -> 53664226.94 | K24: ='T1 Sch 1 Taxable Income Test'!J123 -> 30066575.37 | L24: ='T1 Sch 1 Taxable Income Test'!K123 -> 93013076.8 | M24: ='T1 Sch 1 Taxable Income Test'!L123 -> 92598086.53
D25: Difference | G25: calculated | H25: =+H24-H23 -> -112098666.7 | I25: as above | J25: =+J24-J23 -> -115866192.1 | K25: =+K24-K23 -> -151118626.9 | L25: =+L24-L23 -> -102178667.4 | M25: =+M24-M23 -> -116986514.4

Sheet S1. Integrity Checks
A11: Integrity Checks
A13: The applicant must ensure the following integrity checks have been completed and confirm this is the case in the table below, or provide an explanation if this is not the case:
B15: Item | C15: Utility Confirmation (Y/N) | D15: Notes
A16: 1 | B16: The depreciation and amortization added back in the application’s PILs model agree with the numbers disclosed in the rate base section of the application | C16: Y
A17: 2 | B17: The capital additions and deductions in the CCA Schedule 8 agree with the rate base section for historical, bridge and test years | C17: Y | D17: Fixed asset accounting additions are adjusted for capitallized interest and pension contributions to arrive to tax additions.
A18: 3 | B18: Schedule 8 of the most recent federal T2 tax return filed with the application has a closing December 31 historical year UCC that agrees with the opening (January 1) bridge year UCC. If the amounts do not agree, then the applicant must provide a reconciliation with explanations. Distributors must segregate non-distribution tax amounts on Schedule 8. | C18: N | D18: The 2026 Bridge Year opening UCC balance is based on a 2025 forecasted closing UCC balance. The amounts will be updated when the 2025 tax return is filed in June 2026.
A19: 4 | B19: The CCA deductions in the application’s PILs tax model for historical, bridge and test years (as applicable) agree with the numbers in the CCA Schedule 8 for the same years filed in the application | C19: Y
A20: 5 | B20: Loss carry-forwards, if any, from prior year tax returns' Schedule 4 agree with those disclosed in the application | C20: N | D20: Alectra Utilities does not have any non-capital or capital loss carry-forwards at the end of December 2024 and does not expect to have any loss carry-forwards at the end of December 2031.
A21: 6 | B21: A discussion is included in the application as to when the loss carry-forwards, if any, will be fully utilized | C21: N | D21: Alectra Utilities does not have any non-capital or capital loss carry-forwards at the end of December 2024 and does not expect to have any loss carry-forwards at the end of December 2031.
A22: 7 | B22: CCA is maximized even if there are tax loss carry-forwards | C22: N | D22: Alectra Utilities does not have any non-capital or capital loss carry-forwards at the end of December 2024 and does not expect to have any loss carry-forwards at the end of December 2031.
A23: 8 | B23: Other post-employment benefits and pension expenses that are added back on Schedule 1 to reconcile accounting income to net income for tax purposes agree with the OM&A analysis for compensation. The amounts deducted are reasonable when compared with the notes to the audited financial statements, Financial Services Commission of Ontario reports, and actuarial valuations. | C23: Y
A24: 9 | B24: The income tax rate used to calculate the tax expense is consistent with the utility’s actual tax facts and evidence filed in the application | C24: Y

Sheet A. Data Input Sheet
E7: Summary | G7: Test Year - 2027 | H7: Bridge Year | M7: Test Year - 2028 | O7: Test Year - 2029 | Q7: Test Year - 2030 | S7: Test Year - 2031
C9: Rate Base | F9: S | G9: 4435332363 | H9: 4312539735 | M9: 4709178308 | O9: 5032922285 | Q9: 5421992893 | S9: 5821794469
C11: Return on Ratebase
C12: Deemed ShortTerm Debt % | E12: 0.04 | F12: T | G12: =G9*E12 -> 177413294.5 | H12: W = S * T | L12: 0.04 | M12: =M9*L12 -> 188367132.3 | N12: 0.04 | O12: =O9*N12 -> 201316891.4 | P12: 0.04 | Q12: =Q9*P12 -> 216879715.7 | R12: 0.04 | S12: =S9*R12 -> 232871778.8
C13: Deemed Long Term Debt % | E13: 0.56 | F13: U | G13: =G9*E13 -> 2483786123 | H13: X = S * U | L13: 0.56 | M13: =M9*L13 -> 2637139852 | N13: 0.56 | O13: =O9*N13 -> 2818436480 | P13: 0.56 | Q13: =Q9*P13 -> 3036316020 | R13: 0.56 | S13: =S9*R13 -> 3260204903
C14: Deemed Equity % | E14: 0.4 | F14: V | G14: =G9*E14 -> 1774132945 | H14: Y = S * V | L14: 0.4 | M14: =M9*L14 -> 1883671323 | N14: 0.4 | O14: =O9*N14 -> 2013168914 | P14: 0.4 | Q14: =Q9*P14 -> 2168797157 | R14: 0.4 | S14: =S9*R14 -> 2328717788
C16: Short Term Interest Rate | E16: 0.0391 | F16: Z | G16: =G12*E16 -> 6936859.815 | H16: AC = W * Z | L16: =+E16 -> 0.0391 | M16: =M12*L16 -> 7365154.873 | N16: =+L16 -> 0.0391 | O16: =O12*N16 -> 7871490.454 | P16: =+N16 -> 0.0391 | Q16: =Q12*P16 -> 8479996.885 | R16: =+P16 -> 0.0391 | S16: =S12*R16 -> 9105286.55
C17: Long Term Interest | E17: 0.04190107891 | F17: AA | G17: =G13*E17 -> 104073318.3 | H17: AD = X * AA | L17: 0.04345077987 | M17: =M13*L17 -> 114585783.2 | N17: 0.0436239276 | O17: =O13*N17 -> 122951268.9 | P17: 0.04373287814 | Q17: =Q13*P17 -> 132786838.5 | R17: 0.04514837997 | S17: =S13*R17 -> 147192969.7
C18: Return on Equity (Regulatory Income) | E18: 0.09 | F18: AB | G18: =G14*E18 -> 159671965.1 | H18: AE = Y * AB | I18: T1 | L18: =+E18 -> 0.09 | M18: =M14*L18 -> 169530419.1 | N18: =+L18 -> 0.09 | O18: =O14*N18 -> 181185202.3 | P18: =+N18 -> 0.09 | Q18: =Q14*P18 -> 195191744.2 | R18: =+P18 -> 0.09 | S18: =S14*R18 -> 209584600.9
C19: Return on Rate Base | G19: =SUM(G16:G18) -> 270682143.2 | H19: AF = AC + AD + AE | M19: =SUM(M16:M18) -> 291481357.2 | O19: =SUM(O16:O18) -> 312007961.7 | Q19: =SUM(Q16:Q18) -> 336458579.6 | S19: =SUM(S16:S18) -> 365882857.2
G20: =+E12*E16+E13*E17+E14*E18 -> 0.06102860419 | M20: =+L12*L16+L13*L17+L14*L18 -> 0.06189643673 | O20: =+N12*N16+N13*N17+N14*N18 -> 0.06199339946 | Q20: =+P12*P16+P13*P17+P14*P18 -> 0.06205441176 | S20: =+R12*R16+R13*R17+R14*R18 -> 0.06284709278
C24: Questions that must be answered | G24: Historical Year | H24: Bridge Year | I24: Test Year
C26: 1. Does the applicant have any Investment Tax Credits (ITC)? | G26: Yes | H26: Yes | I26: Yes | M26: Yes | O26: Yes | Q26: Yes | S26: Yes
C28: 2. Does the applicant have any SRED Expenditures? | G28: Yes | H28: Yes | I28: Yes | M28: Yes | O28: Yes | Q28: Yes | S28: Yes
C30: 3. Does the applicant have any Capital Gains or Losses for tax purposes? | G30: No | H30: No | I30: No | M30: No | O30: No | Q30: No | S30: No
C32: 4. Does the applicant have any Capital Leases? | G32: Yes | H32: Yes | I32: Yes | M32: Yes | O32: Yes | Q32: Yes | S32: Yes
C34: 5. Does the applicant have any Loss Carry-Forwards (non-capital or net capital)? | G34: No | H34: No | I34: No | M34: No | O34: No | Q34: No | S34: No
C36: 6. Since 1999, has the applicant acquired another regulated applicant's assets? | G36: Yes | H36: Yes | I36: Yes | M36: Yes | O36: Yes | Q36: Yes | S36: Yes
C38: 7. Did the applicant pay dividends? | G38: Yes | H38: Yes | I38: Yes | M38: Yes | O38: Yes | Q38: Yes | S38: Yes
C39: If Yes, please describe the tax treatment in the manager's summary.
C41: 8. Did the applicant elect to capitalize interest incurred on CWIP for tax purposes? | G41: No | H41: No | I41: No | M41: No | O41: No | Q41: No | S41: No

Sheet B. Tax Rates & Exemptions
C9: Tax Rates
C10: Federal & Provincial | E10: Effective | F10: Effective | G10: Effective | H10: Effective | I10: Effective | J10: Effective | K10: Effective | L10: Effective
C11: As of MMM XX, 2019 | E11: 2020-01-01 | F11: =DATE(YEAR(E11) + 1, MONTH(E11), DAY(E11)) -> 2021-01-01 | G11: =DATE(YEAR(F11) + 1, MONTH(F11), DAY(F11)) -> 2022-01-01 | H11: 2023-01-01 | I11: 2024-01-01 | J11: 2025-01-01 | K11: 2026-01-01 | L11: 2027-01-01
C13: Federal income tax
C14: General Corporate Rate | E14: 0.38 | F14: 0.38 | G14: 0.38 | H14: 0.38 | I14: 0.38 | J14: 0.38 | K14: 0.38 | L14: 0.38
C15: Federal Tax Abatement | E15: -0.1 | F15: -0.1 | G15: -0.1 | H15: -0.1 | I15: -0.1 | J15: -0.1 | K15: -0.1 | L15: -0.1
C16: Adjusted Federal Rate | E16: =SUM(E14:E15) -> 0.28 | F16: 0.28 | G16: 0.28 | H16: 0.28 | I16: 0.28 | J16: =SUM(J14:J15) -> 0.28 | K16: 0.28 | L16: =SUM(L14:L15) -> 0.28
C18: Rate Reduction | E18: -0.13 | F18: -0.13 | G18: -0.13 | H18: -0.13 | I18: -0.13 | J18: -0.13 | K18: -0.13 | L18: -0.13
C19: Federal Income Tax | E19: =E16+E18 -> 0.15 | F19: 0.15 | G19: 0.15 | H19: 0.15 | I19: 0.15 | J19: =J16+J18 -> 0.15 | K19: 0.15 | L19: =L16+L18 -> 0.15
C21: Ontario Income Tax | E21: 0.115 | F21: 0.115 | G21: 0.115 | H21: 0.115 | I21: 0.115 | J21: 0.115 | K21: 0.115 | L21: 0.115
C23: Combined Federal and Ontario | E23: =E19+E21 -> 0.265 | F23: 0.265 | G23: 0.265 | H23: =H19+H21 -> 0.265 | I23: 0.265 | J23: =J19+J21 -> 0.265 | K23: 0.265 | L23: =L19+L21 -> 0.265
C25: Federal & Ontario Small Business
C26: Federal Small Business Limit | E26: 500000 | F26: 500000 | G26: 500000 | H26: 500000 | I26: 500000 | J26: 500000 | K26: 500000 | L26: 500000
C27: Ontario Small Business Limit | E27: 500000 | F27: 500000 | G27: 500000 | H27: 500000 | I27: 500000 | J27: 500000 | K27: 500000 | L27: 500000
C29: Federal Small Business Rate | E29: 0.11 | F29: 0.105 | G29: 0.105 | H29: 0.1 | I29: 0.09 | J29: 0.09 | K29: 0.09 | L29: 0.09
C31: Ontario Small Business Rate | E31: 0.045 | F31: 0.045 | G31: 0.035 | H31: 0.035 | I31: 0.032 | J31: 0.032 | K31: 0.032 | L31: 0.032
C34: Notes
C35: 1. The Ontario Energy Board's proxy for taxable capital is rate base.
C36: 2. The appropriate Federal and Ontario small business rates are calculated in the Income/PILs Workform. The Federal and Ontario small business deduction:
C37: a. is applicable if taxable capital is below $10 million.
C38: b. is phased out with taxable capital of more than $10 million.
C39: c. is completely eliminated when the taxable capital is $15 million or more. Effective for the 2022 taxation year, the Federal small business deduction is revised to be completely eliminated when the taxable capital is $50 million or more.

Sheet H0 PILs,Tax Provision Hist
C6: PILs Tax Provision - Historical Year
C8: Note: Input the actual information from the tax returns for the historical year. | I8: Wires Only
C9: INFORMATION NOT AVAILABLE. THIS SCHEDULE WILL BE UPDATED ONCE 2025 TAX RETURN IS FILED IN JUNE 2026
C10: Regulatory Taxable Income | H10: H1 | I10: ='H1 Sch 1 Taxable Income Hist'!G116 -> 0 | J10: A
C12: Ontario Income Taxes
C13: Income tax payable | D13: Ontario Income Tax | F13: B | H13: C = A * B
C15: Small business credit | D15: Ontario Small Business Threshold | E15: =IF(I10>'B. Tax Rates & Exemptions'!E27,'B. Tax Rates & Exemptions'!E27,0) -> 0 | F15: D
D16: Rate reduction (negative) | F16: E | H16: F = D * E
C20: Ontario Income tax | I20: =SUM(G13:G19) -> 0 | J20: J = C + F
C23: Combined Tax Rate and PILs | D23: Ontario Tax Rate (Maximum 11.5%) | H23: B
D24: Federal tax rate (Maximum 15%) | H24: C
D25: Combined tax rate (Maximum 26.5%) | I25: =SUM(G23:G24) -> 0 | J25: D = B+C
C28: Total Income Taxes | I28: =I10*I25 -> 0 | J28: E = A * D
C30: Investment Tax Credits | J30: F
C31: Miscellaneous Tax Credits | J31: G
C32: Total Tax Credits | I32: =SUM(I30:I31) -> 0 | J32: H = F + G
C34: Corporate PILs/Income Tax Provision for Historical Year | I34: =IF(I28-I32<0,0,I28-I32) -> 0 | J34: I = E - H

Sheet H1 Sch 1 Taxable Income Hist
C8: Adjusted Taxable Income - Historical Year
C9: INFORMATION NOT AVAILABLE. THIS SCHEDULE WILL BE UPDATED ONCE 2025 TAX RETURN IS FILED IN JUNE 2026
D11: T2S1 line # | E11: Total for Legal Entity | F11: Non-Distribution Eliminations | G11: Historic Wires Only
C12: Income before PILs/Taxes | D12: (A + 101 + 102) | G12: =+E12-F12 -> 0
C13: Additions:
C14: Interest and penalties on taxes | D14: 103 | G14: =+E14-F14 -> 0
C15: Amortization of tangible assets | D15: 104 | G15: 0
C16: Amortization of intangible assets | D16: 106 | G16: 0
C17: Recapture of capital cost allowance from Schedule 8 | D17: 107 | G17: 0
C18: Income inclusion under subparagraph 13(38)(d)(iii) from Schedule 10 | D18: 108 | G18: 0
C19: Income or loss for tax purposes- joint ventures or partnerships | D19: 109
C20: Loss in equity of subsidiaries and affiliates | D20: 110 | G20: 0
C21: Loss on disposal of assets | D21: 111 | G21: 0
C22: Charitable donations and gifts from Schedule 2 | D22: 112 | G22: 0
C23: Taxable capital gains from Schedule 6 | D23: 113 | G23: 0
C24: Political contributions | D24: 114 | G24: 0
C25: Deferred and prepaid expenses | D25: 116 | G25: 0
C26: Scientific research expenditures deducted on financial statements | D26: 118 | G26: 0
C27: Capitalized interest | D27: 119 | G27: 0
C28: Non-deductible club dues and fees | D28: 120 | G28: 0
C29: Non-deductible meals and entertainment expense | D29: 121 | G29: 0
C30: Non-deductible automobile expenses | D30: 122 | G30: 0
C31: Non-deductible life insurance premiums | D31: 123 | G31: 0
C32: Non-deductible company pension plans | D32: 124 | G32: 0
C33: Tax reserves deducted in prior year | D33: 125 | G33: 0
C34: Reserves from financial statements – balance at the end of the year | D34: 126 | G34: 0
C35: Soft costs on construction and renovation of buildings | D35: 127 | G35: 0
C36: Capital items expensed | D36: 206 | G36: 0
C37: Debt issue expense | D37: 208 | G37: 0
C38: Development expenses claimed in current year | D38: 212 | G38: 0
C39: Financing fees deducted in books | D39: 216 | G39: 0
C40: Gain on settlement of debt | D40: 220 | G40: 0
C41: Non-deductible advertising | D41: 226 | G41: 0
C42: Non-deductible interest | D42: 227 | G42: 0
C43: Non-deductible legal and accounting fees | D43: 228 | G43: 0
C44: Recapture of SR&ED expenditures | D44: 231 | G44: 0
C45: Share issue expense | D45: 235 | G45: 0
C46: Write down of capital property | D46: 236 | G46: 0
C47: Amounts received in respect of qualifying environment trust per paragraphs 12(1)(z.1) and 12(1)(z.2) | D47: 237 | G47: 0
C48: Other additions
C49: Interest Expensed on Capital Leases | D49: 295 | G49: 0
C50: Realized Income from Deferred Credit Accounts | D50: 295 | G50: 0
C51: Pensions | D51: 295 | G51: 0
C52: Non-deductible penalties | D52: 295 | G52: 0
D53: 295 | G53: 0
D54: 295 | G54: =+E54-F54 -> 0
C55: ARO Accretion expense | G55: 0
C56: Capital Contributions Received (ITA 12(1)(x)) | G56: 0
C57: Lease Inducements Received (ITA 12(1)(x)) | G57: 0
C58: Deferred Revenue (ITA 12(1)(a)) | G58: 0
C59: Prior Year Investment Tax Credits received | G59: 0
G60: 0
G61: 0
G62: 0
G63: 0
G64: 0
G65: 0
G66: 0
G67: 0
G68: 0
G69: 0
C70: Total Additions | E70: =SUM(E13:E69) -> 0 | F70: =SUM(F13:F69) -> 0 | G70: =SUM(G13:G69) -> 0
C72: Deductions:
C73: Gain on disposal of assets per financial statements | D73: 401 | G73: =+E73-F73 -> 0
C74: Non-taxable dividends under section 83 | D74: 402 | G74: 0
C75: Capital cost allowance from Schedule 8 | D75: 403 | G75: 0
C76: Terminal loss from Schedule 8 | D76: 404 | G76: 0
C77: Allowable business investment loss | D77: 406 | G77: 0
C78: Deferred and prepaid expenses | D78: 409 | G78: 0
C79: Scientific research expenses claimed in year | D79: 411 | G79: 0
C80: Tax reserves claimed in current year | D80: 413 | G80: 0
C81: Reserves from financial statements - balance at beginning of year | D81: 414 | G81: 0
C82: Contributions to deferred income plans | D82: 416 | G82: 0
C83: Book income of joint venture or partnership | D83: 305 | G83: 0
C84: Equity in income from subsidiary or affiliates | D84: 306 | G84: 0
C85: Other deductions
C86: Interest capitalized for accounting deducted for tax | D86: 395 | G86: 0
C87: Capital Lease Payments | D87: 395 | G87: 0
C88: Non-taxable imputed interest income on deferral and variance accounts | D88: 395 | G88: 0
D89: 395 | G89: 0
D90: 395 | G90: 0
C91: ARO Payments - Deductible for Tax when Paid | G91: 0
C92: ITA 13(7.4) Election - Capital Contributions Received | G92: 0
C93: ITA 13(7.4) Election - Apply Lease Inducement to cost of Leaseholds | G93: 0
C94: Deferred Revenue - ITA 20(1)(m) reserve | G94: 0
C95: Principal portion of lease payments | G95: 0
C96: Lease Inducement Book Amortization credit to income | G96: 0
C97: Financing fees for tax ITA 20(1)(e) and (e.1) | G97: 0
G98: 0
G99: 0
G100: 0
G101: 0
G102: 0
G103: 0
G104: 0
G105: 0
C106: Total Deductions | E106: =SUM(E73:E105) -> 0 | F106: =SUM(F73:F105) -> 0 | G106: =SUM(G73:G105) -> 0
C108: Net Income for Tax Purposes | E108: =+E12+E70-E106 -> 0 | F108: =+F12+F70-F106 -> 0 | G108: =+G12+G70-G106 -> 0
C110: Charitable donations from Schedule 2 | D110: 311 | G110: =+E110-F110 -> 0
C111: Taxable dividends received under section 112 or 113 | D111: 320 | G111: =+E111-F111 -> 0
C112: Non-capital losses of previous tax years from Schedule 4 | D112: 331 | G112: =+E112-F112 -> 0
C113: Net capital losses of previous tax years from Schedule 4 | D113: 332 | G113: =+E113-F113 -> 0
C114: Limited partnership losses of previous tax years from Schedule 4 | D114: 335 | G114: =+E114-F114 -> 0
C116: TAXABLE INCOME | E116: =+E108-SUM(E110:E114) -> 0 | F116: =+F108-SUM(F110:F114) -> 0 | G116: =+G108-SUM(G110:G114) -> 0 | H116: H0

Sheet H4 Sch 4 Loss Cfwd Hist
C9: Schedule 4 Loss Carry Forward - Historical
C10: BELOW ARE FORECASTED AMOUNTS. THIS SCHEDULE WILL BE UPDATED ONCE 2025 TAX RETURN IS FILED IN JUNE 2026.
C11: Corporation Loss Continuity and Application
C13: Non-Capital Loss Carry Forward Deduction | F13: Total | G13: Non-Distribution Portion | H13: Utility Balance
C14: Actual Historical | H14: =F14-G14 -> 0 | I14: B4
C16: Net Capital Loss Carry Forward Deduction | F16: Total | G16: Non-Distribution Portion | H16: Utility Balance
C17: Actual Historical | H17: =F17-G17 -> 0 | I17: B4

Sheet H8 Sch 8 CCA Hist
C6: Schedule 8 - Historical Year
C8: BELOW ARE FORECASTED AMOUNTS. THIS SCHEDULE WILL BE UPDATED ONCE 2025 TAX RETURN IS FILED IN JUNE 2026.
C11: Class | D11: Class Description | E11: UCC End of Year Historical per tax returns | F11: Less: Non-Distribution Portion | G11: UCC Regulated Historical Year | H11: Working Paper Reference
C12: 1 | D12: Buildings, Distribution System (acq'd post 1987) | E12: 647084894.4 | F12: 1762158 | G12: =+E12-F12 -> 645322736.4 | H12: B8
C13: 1b | D13: Non-Residential Buildings [Reg. 1100(1)(a.1) election] | E13: 66868728.84 | F13: 4448 | G13: =+E13-F13 -> 66864280.84 | H13: B8
C14: 2 | D14: Distribution System (acq'd pre 1988) | E14: 59926756.04 | F14: 0 | G14: =+E14-F14 -> 59926756.04 | H14: B8
C15: 3 | D15: Buildings (acq'd pre 1988) | E15: 2078155.393 | F15: 168366.877 | G15: 1909788.516 | H15: B8
C16: 6 | D16: Certain Buildings; Fences | E16: 3680 | F16: 0 | G16: =+E16-F16 -> 3680 | H16: B8
C17: 8 | D17: General Office Equipment, Furniture, Fixtures | E17: 13728110.78 | F17: 1199138.491 | G17: 12528972.29 | H17: B8
C18: 10 | D18: Motor Vehicles, Fleet | E18: 11278814.5 | F18: 216159.4896 | G18: 11062655.01 | H18: B8
C19: 10.1 | D19: Certain Automobiles | E19: 289.0648 | F19: 0 | G19: 289.0648 | H19: B8
C20: 12 | D20: Computer Application Software (Non-Systems) | F20: 0 | G20: 0 | H20: B8
C21: 13 1 | D21: Lease # 1 | E21: 510051 | G21: 510051 | H21: B8
C22: 13 2 | D22: Lease # 2 | E22: 138300 | G22: 138300 | H22: B8
C23: 13 3 | D23: Lease # 3 | E23: 0.3 | G23: 0.3 | H23: B8
C24: 13 4 | D24: Lease # 4 | E24: 22661 | G24: 22661 | H24: B8
C25: 14 | D25: Limited Period Patents, Franchises, Concessions or Licences | E25: 34535763.45 | F25: 0 | G25: 34535763.45 | H25: B8
C26: 14.1 | D26: Eligible Capital Property (acq'd pre 2017) | E26: 13768461.66 | F26: 1285976 | G26: =+E26-F26 -> 12482485.66 | H26: B8
C27: 14.1 | D27: Eligible Capital Property (acq'd post 2016) | E27: 94064374.36 | F27: 88774607.77 | G27: =+E27-F27 -> 5289766.586 | H27: B8
C28: 17 | D28: Elec. Generation Equip. (Non-Bldng, acq'd post Feb 27/00); Roads, Lots, Storage | E28: 2094450.169 | F28: 1614112 | G28: 480338.1686 | H28: B8
C29: 42 | D29: Fibre Optic Cable | E29: 55 | F29: 0 | G29: =+E29-F29 -> 55 | H29: B8
C30: 43.1 | D30: Certain Clean Energy/Energy-Efficient Generation Equipment | E30: 2946 | F30: 0 | G30: 2946 | H30: B8
C31: 43.2 | D31: Certain Clean Energy/Energy-Efficient Generation Equipment | E31: 89352.35 | F31: 56585.9 | G31: 32766.45 | H31: B8
C32: 45 | D32: Computers & System Software (acq'd post Mar 22/04 and pre Mar 19/07) | E32: 2712.3664 | F32: 0 | G32: 2712.3664 | H32: B8
C33: 46 | D33: Data Network Infrastructure Equipment (acq'd post Mar 22/04) | E33: 0 | F33: 0 | G33: 0 | H33: B8
C34: 47 | D34: Distribution System (acq'd post Feb 22/05) | E34: 2070355650 | F34: 37612286.97 | G34: 2032743363 | H34: B8
C35: 50 | D35: General Purpose Computer Hardware & Software (acq'd post Mar 18/07) | E35: 1552522.538 | F35: 344.7895659 | G35: 1552177.748 | H35: B8
C36: 95 | D36: CWIP | E36: 70858303.35 | F36: 63962.32 | G36: 70794341.03 | H36: B8
C37: 54 | D37: Zero-emission vehicles | E37: 302004 | F37: 0 | G37: 302004
G38: 0
G39: 0
G40: 0
G41: 0
G42: 0
G43: 0
G44: 0
D45: SUB-TOTAL - UCC | E45: =SUM(E12:E44) -> 3089267037 | F45: =SUM(F12:F44) -> 132758146.6 | G45: =SUM(G12:G44) -> 2956508890

Sheet H13 Sch 13 Reserves Hist
C8: Schedule 13 Tax Reserves - Historical
C10: Continuity of Reserves
C11: BELOW ARE FORECASTED AMOUNTS. THIS SCHEDULE WILL BE UPDATED ONCE 2025 TAX RETURN IS FILED IN JUNE 2026.
C13: Description | D13: Historical Balance as per tax returns | E13: Non-Distribution Eliminations | F13: Utility Only
C15: Capital gains reserves ss.40(1) | F15: =D15-E15 -> 0 | G15: B13
C16: Tax reserves not deducted for accounting purposes
C17: Reserve for doubtful accounts ss. 20(1)(l) | F17: =D17-E17 -> 0 | G17: B13
C18: Reserve for undelivered goods and services not rendered ss. 20(1)(m) | F18: 0 | G18: B13
C19: Reserve for unpaid amounts ss. 20(1)(n) | F19: 0 | G19: B13
C20: Debt & share issue expenses ss. 20(1)(e) | F20: 0 | G20: B13
C21: Other tax reserves | F21: 0 | G21: B13
F22: 0
F23: 0
F24: 0
F25: 0
F26: 0
C27: Total | D27: =SUM(D17:D26) -> 0 | E27: =SUM(E17:E26) -> 0 | F27: =SUM(F17:F26) -> 0
C29: Financial Statement Reserves (not deductible for Tax Purposes)
C30: General reserve for inventory obsolescence (non-specific) | F30: =D30-E30 -> 0 | G30: B13
C31: General reserve for bad debts | D31: 2183193.22 | F31: 2183193.22 | G31: B13
C32: Accrued Employee Future Benefits: | F32: 0 | G32: B13
C33: - Medical and Life Insurance | F33: 0 | G33: B13
C34: -Short & Long-term Disability | F34: 0 | G34: B13
C35: -Accmulated Sick Leave | F35: 0 | G35: B13
C36: - Termination Cost | F36: 0 | G36: B13
C37: - Other Post-Employment Benefits | D37: 75170005 | F37: 75170005 | G37: B13
C38: Provision for Environmental Costs | D38: 855607 | F38: 855607 | G38: B13
C39: Restructuring Costs | F39: 0 | G39: B13
C40: Accrued Contingent Litigation Costs | F40: 0 | G40: B13
C41: Accrued Self-Insurance Costs | F41: 0 | G41: B13
C42: Other Contingent Liabilities | F42: 0 | G42: B13
C43: Bonuses Accrued and Not Paid Within 180 Days of Year-End ss. 78(4) | F43: 0 | G43: B13
C44: Unpaid Amounts to Related Person and Not Paid Within 3 Taxation Years ss. 78(1) | F44: 0 | G44: B13
C45: Other | F45: 0 | G45: B13
F49: 0
F50: 0
C51: Total | D51: =SUM(D30:D50) -> 78208805.22 | E51: =SUM(E30:E50) -> 0 | F51: =SUM(F30:F50) -> 78208805.22

Sheet B0 PILs,Tax Provision Bridge
B6: PILS Tax Provision - Bridge Year
J8: Wires Only
I9: Reference
C10: Regulatory Taxable Income | I10: B1 | J10: ='B1 Sch 1 Taxable Income Bridge'!F111 -> 40855721.12 | K10: A
D12: Tax Rate | E12: Small Business Rate (If Applicable) | F12: Taxes Payable | G12: Effective Tax Rate
C13: Ontario (Max 11.5%) | D13: 0.115 | E13: =IF('A. Data Input Sheet'!H9<=10000000, ontario_SB, IF('A. Data Input Sheet'!H9>=50000000, ontariotax, IF(AND('A. Data Input Sheet'!H9>10000000, 'A. Data Input Sheet'!H9<50000000), ontario_SB+ ('A. Data Input Sheet'!H9 - 10000000)*(ontariotax - ontario_SB)/(50000000-10000000)))) -> 0.115 | F13: =IF(J10<500000,J10,500000)*E13+IF(J10>500000,J10-500000,0)*D13 -> 4698407.928 | G13: =IF(F13=0,0,+F13/J10) -> 0.115 | H13: B
C14: Federal (Max 15%) | D14: 0.15 | E14: =IF('A. Data Input Sheet'!H9<=10000000, Fed_SB_Bridge, IF('A. Data Input Sheet'!H9>=50000000, FedTax, IF(AND('A. Data Input Sheet'!H9>10000000, 'A. Data Input Sheet'!H9<50000000), Fed_SB_Bridge+ ('A. Data Input Sheet'!H9 - 10000000)*(FedTax -Fed_SB_Bridge)/(50000000-10000000)))) -> 0.15 | F14: =E14*IF(J10<500000,J10,500000)+IF(J10>500000,J10-500000,0)*D14 -> 6128358.168 | G14: =IF(F14=0,0,+F14/J10) -> 0.15 | H14: C
C16: Combined effective tax rate (Max 26.5%) | J16: =SUM(G13:G14) -> 0.265 | K16: D = B + C
C19: Total Income Taxes | J19: =IF(J10*J16<0,0,J10*J16) -> 10826766.1 | K19: E = A * D
C21: Investment Tax Credits | J21: 565000 | K21: F
C22: Miscellaneous Tax Credits | J22: 350000 | K22: G
C23: Total Tax Credits | J23: =SUM(J21:J22) -> 915000 | K23: H = F + G
C25: Corporate PILs/Income Tax Provision for Bridge Year | J25: =IF(J19-J23<0,0,J19-J23) -> 9911766.096 | K25: I = E - H
C27: Corporate PILs/Income Tax Provision Gross Up | H27: =(1-J16) -> 0.735 | I27: J = 1-D | J27: =J25/H27-J25 -> 3573629.953 | K27: K = I/J-I
C30: Income Tax (grossed-up) before tax credits reclass to Other Revenue | J30: =J25+J27 -> 13485396.05 | K30: L = K + I
C31: Tax credits reclass to Other Revenue | J31: =+J23 -> 915000 | K31: M
C32: Tax credits reclass to Other Revenue - gross up | H32: =(1-J16) -> 0.735 | I32: J = 1-D | J32: =J31/H32-J31 -> 329897.9592 | K32: N
C33: Income Tax (grossed-up) after tax credits reclass to Other Revenue | J33: =+J30+J31+J32 -> 14730294.01 | K33: O = L + M + N
C37: Note:
C38: 1. This is for the derivation of Bridge year PILs income tax expense and should not be used for Test year revenue requirement calculations.

Sheet B1 Sch 1 Taxable Income Bridge
B5: Adjusted Taxable Income - Bridge Year
D7: T2S1 line # | E7: Working Paper Reference | F7: Total for Regulated Utility
C8: Income before PILs/Taxes | D8: (A + 101 + 102) | F8: 154377136.4
C10: Additions:
C11: Interest and penalties on taxes | D11: 103
C12: Amortization of tangible assets | D12: 104 | F12: 165165623
C13: Amortization of intangible assets | D13: 106
C14: Recapture of capital cost allowance from Schedule 8 | D14: 107 | E14: B8 | F14: ='B8 Sch 8 CCA Bridge'!Y43 -> 0
C15: Income inclusion under subparagraph 13(38)(d)(iii) | D15: 108
C16: Income or loss for tax purposes- joint ventures or partnerships | D16: 109
C17: Loss in equity of subsidiaries and affiliates | D17: 110
C18: Loss on disposal of assets | D18: 111 | F18: 6435213
C19: Charitable donations and gifts from Schedule 2 | D19: 112
C20: Taxable capital gains | D20: 113
C21: Political contributions | D21: 114
C22: Deferred and prepaid expenses | D22: 116
C23: Scientific research expenditures deducted on financial statements | D23: 118
C24: Capitalized interest | D24: 119
C25: Non-deductible club dues and fees | D25: 120
C26: Non-deductible meals and entertainment expense | D26: 121 | F26: 270000
C27: Non-deductible automobile expenses | D27: 122
C28: Non-deductible life insurance premiums | D28: 123
C29: Non-deductible company pension plans | D29: 124
C30: Tax reserves deducted in prior year | D30: 125 | E30: B13 | F30: ='B13 Sch 13 Reserves Bridge'!G22 -> 0
C31: Reserves from financial statements- balance at end of year | D31: 126 | E31: B13 | F31: ='B13 Sch 13 Reserves Bridge'!K43 -> 78928310.22
C32: Soft costs on construction and renovation of buildings | D32: 127
C33: Capital items expensed | D33: 206
C34: Debt issue expense | D34: 208
C35: Development expenses claimed in current year | D35: 212
C36: Financing fees deducted in books | D36: 216
C37: Gain on settlement of debt | D37: 220
C38: Non-deductible advertising | D38: 226
C39: Non-deductible interest | D39: 227
C40: Non-deductible legal and accounting fees | D40: 228
C41: Recapture of SR&ED expenditures | D41: 231
C42: Share issue expense | D42: 235
C43: Write down of capital property | D43: 236
C44: Amounts received in respect of qualifying environment trust per paragraphs 12(1)(z.1) and 12(1)(z.2) | D44: 237
C45: Other Additions
C46: Interest Expensed on Capital Leases | D46: 295 | F46: 681266
C47: Realized Income from Deferred Credit Accounts | D47: 295
C48: Pensions | D48: 295
C49: Non-deductible penalties | D49: 295
D50: 295
D51: 295
C52: ARO Accretion expense
C53: Capital Contributions Received (ITA 12(1)(x)) | F53: 171447352
C54: Lease Inducements Received (ITA 12(1)(x))
C55: Deferred Revenue (ITA 12(1)(a))
C56: Prior Year Investment Tax Credits received | F56: 915000
C57: Depreication expense reclassed to OM&A | F57: 5882628
C67: Total Additions | F67: =SUM(F10:F66) -> 429725392.2
C68: Deductions:
C69: Gain on disposal of assets per financial statements | D69: 401
C70: Dividends not taxable under section 83 | D70: 402
C71: Capital cost allowance from Schedule 8 | D71: 403 | E71: B8 | F71: ='B8 Sch 8 CCA Bridge'!AA43 -> 280798128.3
C72: Terminal loss from Schedule 8 | D72: 404 | E72: B8 | F72: ='B8 Sch 8 CCA Bridge'!Z43 -> 0
C73: Allowable business investment loss | D73: 406
C74: Deferred and prepaid expenses | D74: 409
C75: Scientific research expenses claimed in year | D75: 411
C76: Tax reserves claimed in current year | D76: 413 | E76: B13 | F76: ='B13 Sch 13 Reserves Bridge'!K22 -> 0
C77: Reserves from financial statements - balance at beginning of year | D77: 414 | E77: B13 | F77: ='B13 Sch 13 Reserves Bridge'!G43 -> 78208805.22
C78: Contributions to deferred income plans | D78: 416
C79: Book income of joint venture or partnership | D79: 305
C80: Equity in income from subsidiary or affiliates | D80: 306
C81: Other deductions
C82: Interest capitalized for accounting deducted for tax | D82: 395 | F82: 3382506
C83: Capital Lease Payments | D83: 395 | F83: 1536873
C84: Non-taxable imputed interest income on deferral and variance accounts | D84: 395
D85: 395
D86: 395
C87: ARO Payments - Deductible for Tax when Paid
C88: ITA 13(7.4) Election - Capital Contributions Received | F88: =+F53 -> 171447352
C89: ITA 13(7.4) Election - Apply Lease Inducement to cost of Leaseholds
C90: Deferred Revenue - ITA 20(1)(m) reserve
C91: Principal portion of lease payments
C92: Lease Inducement Book Amortization credit to income
C93: Financing fees for tax ITA 20(1)(e) and (e.1)
C94: Pension costs capitalized for accounting, deducted for tax | F94: 6958143
C95: Current year ITCs accrued for accounting | F95: =F56 -> 915000
C102: Total Deductions | E102: calculated | F102: =SUM(F69:F101) -> 543246807.5
C104: Net Income for Tax Purposes | E104: calculated | F104: =+F8+F67-F102 -> 40855721.12
C105: Charitable donations | D105: 311
C106: Taxable dividends received under section 112 or 113 | D106: 320
C107: Non-capital losses of previous tax years from Schedule 4 | D107: 331 | E107: B4 | F107: ='B4 Sch 4 Loss Cfwd Bridge'!G13*-1 -> 0
C108: Net capital losses of previous tax years from Schedule 4 | D108: 332 | E108: B4 | F108: ='B4 Sch 4 Loss Cfwd Bridge'!G20*-1 -> 0
C109: Limited partnership losses of previous tax years from Schedule 4 | D109: 335
C111: TAXABLE INCOME | E111: calculated | F111: =SUM(F104:F109) -> 40855721.12

Sheet B4 Sch 4 Loss Cfwd Bridge
C7: Corporation Loss Continuity and Application
C9: Schedule 4 Loss Carry Forward - Bridge Year
C11: Non-Capital Loss Carry Forward Deduction | G11: Total
C12: Actual Historical | F12: H4 | G12: ='H4 Sch 4 Loss Cfwd Hist'!H14 -> 0
C13: Amount to be used in Bridge Year | F13: B1 | G13: =IF('B1 Sch 1 Taxable Income Bridge'!F104<0,0,IF('B1 Sch 1 Taxable Income Bridge'!F104>G12,G12,'B1 Sch 1 Taxable Income Bridge'!F104)) -> 0
C14: Loss Carry Forward Generated in Bridge Year (if any) | F14: B1 | G14: =IF('B1 Sch 1 Taxable Income Bridge'!F104<0, 'B1 Sch 1 Taxable Income Bridge'!F104*-1, 0) -> 0
C15: Other Adjustments
C16: Balance available for use post Bridge Year | F16: calculated | G16: =G12-G13+G14+G15 -> 0 | H16: T4
C18: Net Capital Loss Carry Forward Deduction | G18: Total
C19: Actual Historical | F19: H4 | G19: ='H4 Sch 4 Loss Cfwd Hist'!H17 -> 0
C20: Amount to be used in Bridge Year
C21: Loss Carry Forward Generated in Bridge Year (if any) | F21: B1
C22: Other Adjustments
C23: Balance available for use post Bridge Year | F23: calculated | G23: =G19-G20+G21+G22 -> 0 | H23: T4

Sheet B8 Sch 8 CCA Bridge
B7: Schedule 8 CCA - Bridge Year
B9: (1) Class | C9: Class Description | D9: Working Paper Reference | E9: (2) Undepreciated capital cost (UCC) at the beginning of the bridge year | F9: (3) Cost of acquisitions during the year (new property must be available for use, except CWIP) | G9: (4) Cost of acquisitions from column 3 that are designated immediate expensing property (DIEP) | H9: (5) Adjustments and transfers (enter amounts that will reduce the UCC as negatives) | I9: (6) Amount from column 5 that is assistance received or receivable during the year for a property, subsequent to its disposition | J9: (7) Amount from column 5 that is repaid during the year for a property, subsequent to its disposition | K9: (8) Proceeds of dispositions | L9: (9) Proceeds of dispositions of the DIEP (enter amount from column 8 that relates to the DIEP reported in column 4) | M9: (10) UCC (column 2 plus column 3 plus or minus column 5 minus column 8) | N9: (11) UCC of the DIEP (enter the UCC amount that relates to the DIEP reported in column 4) | O9: (12) Immediate expensing | P9: (13) Cost of acquisitions on remainder of Class (column 3 minus column 4 plus column 11 minus column 12) | Q9: (14) Cost of acquisitions from column 13 that are accelerated investment incentive properties (AIIP) or properties included in Classes 54 to 56 | R9: (15) Remaining UCC (column 10 minus column 12) (if negative, enter "0") | S9: (16) Proceeds of disposition available to reduce the UCC of AIIP and property included in Classes 54 to 56 (column 8 minus column 9 plus column 6 minus column 13 plus column 14 minus column 7) (if negative, enter "0") | T9: (17) Net capital cost additions of AIIP and property included in Classes 54 to 56 acquired during the year (column 14 minus column 16) (if negative, enter "0") | U9: Relevant factor1 | V9: (18) UCC adjustment for AIIP and property included in Classes 54 to 56 acquired during the year (column 17 multiplied by the relevant factor) | W9: (19) UCC adjustment for non-AIIP and property included in Classes 54 to 56 (0.5 multiplied by the result of column 13 minus column 14 minus column 6 plus column 7 minus column 8 plus column 9) (if negative, enter "0") | X9: (20) CCA Rate % | Y9: (21) Recapture of CCA | Z9: (22) Terminal Loss | AA9: (23) CCA (for declining balance method, the result of column 15 plus column 18 minus column 19, multiplied by column 20 or a lower amount, plus column 12)) | AB9: (24) UCC at the end of the test year (column 10 minus column 23) | AC9: Working Paper Reference
B10: =IF(ISBLANK('H8 Sch 8 CCA Hist'!C12), "", 'H8 Sch 8 CCA Hist'!C12) -> 1 | C10: =IF(ISBLANK('H8 Sch 8 CCA Hist'!D12), "", 'H8 Sch 8 CCA Hist'!D12) -> Buildings, Distribution System (acq'd post 1987) | D10: H8 | E10: =IF(ISBLANK('H8 Sch 8 CCA Hist'!E12),0, 'H8 Sch 8 CCA Hist'!G12) -> 645322736.4 | F10: 1238435 | M10: =IFERROR(E10+F10+H10-K10,0) -> 646561171.4 | P10: =+F10-G10+N10-O10 -> 1238435 | Q10: =+P10 -> 1238435 | R10: =IF((M10-O10)<0,0,M10-O10) -> 646561171.4 | S10: =IF((K10-L10+I10-P10+Q10-J10)<0,0,(K10-L10+I10-P10+Q10-J10)) -> 0 | T10: =IF((Q10-S10)<0,0,(Q10-S10)) -> 1238435 | U10: 0.5 | V10: =T10*U10 -> 619217.5 | W10: =IF((0.5*(P10-Q10-I10+J10-K10+L10))<0,0,(0.5*(P10-Q10-I10+J10-K10+L10))) -> 0 | X10: 0.04 | AA10: =IF(OR(R10<=0,Z10>0),0,(R10+V10-W10)*X10) -> 25887215.56 | AB10: =IF(M10<0,0,M10-Z10-AA10) -> 620673955.8 | AC10: T8
B11: =IF(ISBLANK('H8 Sch 8 CCA Hist'!C13), "", 'H8 Sch 8 CCA Hist'!C13) -> 1b | C11: =IF(ISBLANK('H8 Sch 8 CCA Hist'!D13), "", 'H8 Sch 8 CCA Hist'!D13) -> Non-Residential Buildings [Reg. 1100(1)(a.1) election] | D11: H8 | E11: =IF(ISBLANK('H8 Sch 8 CCA Hist'!E13),0, 'H8 Sch 8 CCA Hist'!G13) -> 66864280.84 | M11: 66864280.84 | P11: 0 | R11: =IF((M11-O11)<0,0,M11-O11) -> 66864280.84 | S11: =IF((K11-L11+I11-P11+Q11-J11)<0,0,(K11-L11+I11-P11+Q11-J11)) -> 0 | T11: =IF((Q11-S11)<0,0,(Q11-S11)) -> 0 | U11: 0.5 | V11: =T11*U11 -> 0 | W11: =IF((0.5*(P11-Q11-I11+J11-K11+L11))<0,0,(0.5*(P11-Q11-I11+J11-K11+L11))) -> 0 | X11: 0.06 | AA11: =IF(OR(R11<=0,Z11>0),0,(R11+V11-W11)*X11) -> 4011856.85 | AB11: =IF(M11<0,0,M11-Z11-AA11) -> 62852423.99 | AC11: T8
B12: =IF(ISBLANK('H8 Sch 8 CCA Hist'!C14), "", 'H8 Sch 8 CCA Hist'!C14) -> 2 | C12: =IF(ISBLANK('H8 Sch 8 CCA Hist'!D14), "", 'H8 Sch 8 CCA Hist'!D14) -> Distribution System (acq'd pre 1988) | D12: H8 | E12: =IF(ISBLANK('H8 Sch 8 CCA Hist'!E14),0, 'H8 Sch 8 CCA Hist'!G14) -> 59926756.04 | M12: 59926756.04 | P12: 0 | R12: 59926756.04 | S12: 0 | T12: 0 | V12: 0 | W12: 0 | X12: 0.06 | AA12: 3595605.363 | AB12: 56331150.68 | AC12: T8
B13: =IF(ISBLANK('H8 Sch 8 CCA Hist'!C15), "", 'H8 Sch 8 CCA Hist'!C15) -> 3 | C13: =IF(ISBLANK('H8 Sch 8 CCA Hist'!D15), "", 'H8 Sch 8 CCA Hist'!D15) -> Buildings (acq'd pre 1988) | D13: H8 | E13: =IF(ISBLANK('H8 Sch 8 CCA Hist'!E15),0, 'H8 Sch 8 CCA Hist'!G15) -> 1909788.516 | M13: 1909788.516 | P13: 0 | R13: 1909788.516 | S13: 0 | T13: 0 | V13: 0 | W13: 0 | X13: 0.05 | AA13: 95489.42579 | AB13: 1814299.09 | AC13: T8
B14: =IF(ISBLANK('H8 Sch 8 CCA Hist'!C16), "", 'H8 Sch 8 CCA Hist'!C16) -> 6 | C14: =IF(ISBLANK('H8 Sch 8 CCA Hist'!D16), "", 'H8 Sch 8 CCA Hist'!D16) -> Certain Buildings; Fences | D14: H8 | E14: =IF(ISBLANK('H8 Sch 8 CCA Hist'!E16),0, 'H8 Sch 8 CCA Hist'!G16) -> 3680 | M14: 3680 | P14: 0 | R14: 3680 | S14: 0 | T14: 0 | U14: 0.5 | V14: 0 | W14: 0 | X14: 0.1 | AA14: 368 | AB14: 3312 | AC14: T8
B15: =IF(ISBLANK('H8 Sch 8 CCA Hist'!C17), "", 'H8 Sch 8 CCA Hist'!C17) -> 8 | C15: =IF(ISBLANK('H8 Sch 8 CCA Hist'!D17), "", 'H8 Sch 8 CCA Hist'!D17) -> General Office Equipment, Furniture, Fixtures | D15: H8 | E15: =IF(ISBLANK('H8 Sch 8 CCA Hist'!E17),0, 'H8 Sch 8 CCA Hist'!G17) -> 12528972.29 | F15: 2420280 | M15: 14949252.29 | P15: 2420280 | Q15: =+P15 -> 2420280 | R15: 14949252.29 | S15: 0 | T15: 2420280 | U15: 0.5 | V15: 1210140 | W15: 0 | X15: 0.2 | AA15: 3231878.458 | AB15: 11717373.83 | AC15: T8
B16: =IF(ISBLANK('H8 Sch 8 CCA Hist'!C18), "", 'H8 Sch 8 CCA Hist'!C18) -> 10 | C16: =IF(ISBLANK('H8 Sch 8 CCA Hist'!D18), "", 'H8 Sch 8 CCA Hist'!D18) -> Motor Vehicles, Fleet | D16: H8 | E16: =IF(ISBLANK('H8 Sch 8 CCA Hist'!E18),0, 'H8 Sch 8 CCA Hist'!G18) -> 11062655.01 | F16: 12033312 | K16: 676790 | M16: 22419177.01 | P16: 12033312 | Q16: =+P16 -> 12033312 | R16: 22419177.01 | S16: 676790 | T16: 11356522 | U16: 0.5 | V16: 5678261 | W16: 0 | X16: 0.3 | AA16: =IF(OR(R16<=0,Z16>0),0,(R16+V16-W16)*X16) -> 8429231.403 | AB16: 13989945.61 | AC16: T8
B17: =IF(ISBLANK('H8 Sch 8 CCA Hist'!C19), "", 'H8 Sch 8 CCA Hist'!C19) -> 10.1 | C17: =IF(ISBLANK('H8 Sch 8 CCA Hist'!D19), "", 'H8 Sch 8 CCA Hist'!D19) -> Certain Automobiles | D17: H8 | E17: =IF(ISBLANK('H8 Sch 8 CCA Hist'!E19),0, 'H8 Sch 8 CCA Hist'!G19) -> 289.0648 | M17: 289.0648 | P17: 0 | R17: 289.0648 | S17: 0 | T17: 0 | U17: 0.5 | V17: 0 | W17: 0 | X17: 0.3 | AA17: 86.71944 | AB17: 202.34536 | AC17: T8
B18: =IF(ISBLANK('H8 Sch 8 CCA Hist'!C20), "", 'H8 Sch 8 CCA Hist'!C20) -> 12 | C18: =IF(ISBLANK('H8 Sch 8 CCA Hist'!D20), "", 'H8 Sch 8 CCA Hist'!D20) -> Computer Application Software (Non-Systems) | D18: H8 | E18: =IF(ISBLANK('H8 Sch 8 CCA Hist'!E20),0, 'H8 Sch 8 CCA Hist'!G20) -> 0 | F18: 30583036 | M18: 30583036 | P18: 30583036 | Q18: =+P18 -> 30583036 | R18: 30583036 | S18: 0 | T18: 30583036 | V18: 0 | W18: 0 | X18: 1 | AA18: 30583036 | AB18: 0 | AC18: T8
B19: 13 1 | C19: =IF(ISBLANK('H8 Sch 8 CCA Hist'!D21), "", 'H8 Sch 8 CCA Hist'!D21) -> Lease # 1 | D19: H8 | E19: =IF(ISBLANK('H8 Sch 8 CCA Hist'!E21),0, 'H8 Sch 8 CCA Hist'!G21) -> 510051 | M19: 510051 | P19: 0 | R19: 510051 | S19: 0 | T19: 0 | U19: 0.5 | V19: 0 | W19: 0 | X19: NA | AA19: 36882 | AB19: 473169 | AC19: T8
B20: 13 2 | C20: =IF(ISBLANK('H8 Sch 8 CCA Hist'!D22), "", 'H8 Sch 8 CCA Hist'!D22) -> Lease # 2 | D20: H8 | E20: =IF(ISBLANK('H8 Sch 8 CCA Hist'!E22),0, 'H8 Sch 8 CCA Hist'!G22) -> 138300 | M20: 138300 | P20: 0 | R20: 138300 | S20: 0 | T20: 0 | U20: 0.5 | V20: 0 | W20: 0 | X20: NA | AA20: 32143 | AB20: 106157 | AC20: T8
B21: 13 3 | C21: =IF(ISBLANK('H8 Sch 8 CCA Hist'!D23), "", 'H8 Sch 8 CCA Hist'!D23) -> Lease # 3 | D21: H8 | E21: =IF(ISBLANK('H8 Sch 8 CCA Hist'!E23),0, 'H8 Sch 8 CCA Hist'!G23) -> 0.3 | M21: 0.3 | P21: 0 | R21: 0.3 | S21: 0 | T21: 0 | U21: 0.5 | V21: 0 | W21: 0 | X21: NA | AA21: 0 | AB21: 0.3 | AC21: T8
B22: 13 4 | C22: =IF(ISBLANK('H8 Sch 8 CCA Hist'!D24), "", 'H8 Sch 8 CCA Hist'!D24) -> Lease # 4 | D22: H8 | E22: =IF(ISBLANK('H8 Sch 8 CCA Hist'!E24),0, 'H8 Sch 8 CCA Hist'!G24) -> 22661 | M22: 22661 | P22: 0 | R22: 22661 | S22: 0 | T22: 0 | U22: 0.5 | V22: 0 | W22: 0 | X22: NA | AA22: 15110 | AB22: 7551 | AC22: T8
B23: =IF(ISBLANK('H8 Sch 8 CCA Hist'!C25), "", 'H8 Sch 8 CCA Hist'!C25) -> 14 | C23: =IF(ISBLANK('H8 Sch 8 CCA Hist'!D25), "", 'H8 Sch 8 CCA Hist'!D25) -> Limited Period Patents, Franchises, Concessions or Licences | D23: H8 | E23: =IF(ISBLANK('H8 Sch 8 CCA Hist'!E25),0, 'H8 Sch 8 CCA Hist'!G25) -> 34535763.45 | F23: 7894473 | M23: 42430236.45 | P23: 7894473 | Q23: =+P23 -> 7894473 | R23: 42430236.45 | S23: 0 | T23: 7894473 | U23: 0.5 | V23: 3947236.5 | W23: 0 | X23: NA | AA23: 4222626.558 | AB23: 38207609.9 | AC23: T8
B24: 14.1 | C24: Eligible Capital Property (acq'd pre Jan 1, 2017) | D24: H8 | E24: =IF(ISBLANK('H8 Sch 8 CCA Hist'!E26),0, 'H8 Sch 8 CCA Hist'!G26) -> 12482485.66 | M24: 12482485.66 | P24: 0 | R24: =IF((M24-O24)<0,0,M24-O24) -> 12482485.66 | S24: =IF((K24-L24+I24-P24+Q24-J24)<0,0,(K24-L24+I24-P24+Q24-J24)) -> 0 | T24: 0 | V24: 0 | W24: 0 | X24: 0.07 | AA24: 873773.996 | AB24: 11608711.66 | AC24: T8
B25: 14.1 | C25: Eligible Capital Property (acq'd post Jan 1, 2017) | D25: H8 | E25: =IF(ISBLANK('H8 Sch 8 CCA Hist'!E27),0, 'H8 Sch 8 CCA Hist'!G27) -> 5289766.586 | F25: 138132 | M25: 5427898.586 | P25: 138132 | Q25: =+P25 -> 138132 | R25: 5427898.586 | S25: 0 | T25: 138132 | U25: 0.5 | V25: 69066 | W25: 0 | X25: 0.05 | AA25: 274848.2293 | AB25: 5153050.357 | AC25: T8
B26: =IF(ISBLANK('H8 Sch 8 CCA Hist'!C28), "", 'H8 Sch 8 CCA Hist'!C28) -> 17 | C26: =IF(ISBLANK('H8 Sch 8 CCA Hist'!D28), "", 'H8 Sch 8 CCA Hist'!D28) -> Elec. Generation Equip. (Non-Bldng, acq'd post Feb 27/00); Roads, Lots, Storage | D26: H8 | E26: =IF(ISBLANK('H8 Sch 8 CCA Hist'!E28),0, 'H8 Sch 8 CCA Hist'!G28) -> 480338.1686 | M26: 480338.1686 | P26: 0 | Q26: =+P26 -> 0 | R26: 480338.1686 | S26: 0 | T26: 0 | U26: 0.5 | V26: 0 | W26: 0 | X26: 0.08 | AA26: 38427.05349 | AB26: 441911.1151 | AC26: T8
B27: =IF(ISBLANK('H8 Sch 8 CCA Hist'!C29), "", 'H8 Sch 8 CCA Hist'!C29) -> 42 | C27: =IF(ISBLANK('H8 Sch 8 CCA Hist'!D29), "", 'H8 Sch 8 CCA Hist'!D29) -> Fibre Optic Cable | D27: H8 | E27: =IF(ISBLANK('H8 Sch 8 CCA Hist'!E29),0, 'H8 Sch 8 CCA Hist'!G29) -> 55 | M27: 55 | P27: 0 | R27: 55 | S27: 0 | T27: 0 | U27: 0.5 | V27: 0 | W27: 0 | X27: 0.12 | AA27: 6.6 | AB27: 48.4 | AC27: T8
B28: =IF(ISBLANK('H8 Sch 8 CCA Hist'!C30), "", 'H8 Sch 8 CCA Hist'!C30) -> 43.1 | C28: =IF(ISBLANK('H8 Sch 8 CCA Hist'!D30), "", 'H8 Sch 8 CCA Hist'!D30) -> Certain Clean Energy/Energy-Efficient Generation Equipment | D28: H8 | E28: =IF(ISBLANK('H8 Sch 8 CCA Hist'!E30),0, 'H8 Sch 8 CCA Hist'!G30) -> 2946 | M28: 2946 | P28: 0 | R28: 2946 | S28: 0 | T28: 0 | U28: 1.5 | V28: 0 | W28: 0 | X28: 0.3 | AA28: 883.8 | AB28: 2062.2 | AC28: T8
B29: =IF(ISBLANK('H8 Sch 8 CCA Hist'!C31), "", 'H8 Sch 8 CCA Hist'!C31) -> 43.2 | C29: =IF(ISBLANK('H8 Sch 8 CCA Hist'!D31), "", 'H8 Sch 8 CCA Hist'!D31) -> Certain Clean Energy/Energy-Efficient Generation Equipment | D29: H8 | E29: =IF(ISBLANK('H8 Sch 8 CCA Hist'!E31),0, 'H8 Sch 8 CCA Hist'!G31) -> 32766.45 | M29: 32766.45 | P29: 0 | R29: 32766.45 | S29: 0 | T29: 0 | U29: 0.5 | V29: 0 | W29: 0 | X29: 0.5 | AA29: 16383.225 | AB29: 16383.225 | AC29: T8
B30: =IF(ISBLANK('H8 Sch 8 CCA Hist'!C32), "", 'H8 Sch 8 CCA Hist'!C32) -> 45 | C30: =IF(ISBLANK('H8 Sch 8 CCA Hist'!D32), "", 'H8 Sch 8 CCA Hist'!D32) -> Computers & System Software (acq'd post Mar 22/04 and pre Mar 19/07) | D30: H8 | E30: =IF(ISBLANK('H8 Sch 8 CCA Hist'!E32),0, 'H8 Sch 8 CCA Hist'!G32) -> 2712.3664 | M30: 2712.3664 | P30: 0 | R30: 2712.3664 | S30: 0 | T30: 0 | V30: 0 | W30: 0 | X30: 0.45 | AA30: 1220.56488 | AB30: 1491.80152 | AC30: T8
B31: =IF(ISBLANK('H8 Sch 8 CCA Hist'!C33), "", 'H8 Sch 8 CCA Hist'!C33) -> 46 | C31: =IF(ISBLANK('H8 Sch 8 CCA Hist'!D33), "", 'H8 Sch 8 CCA Hist'!D33) -> Data Network Infrastructure Equipment (acq'd post Mar 22/04) | D31: H8 | E31: =IF(ISBLANK('H8 Sch 8 CCA Hist'!E33),0, 'H8 Sch 8 CCA Hist'!G33) -> 0 | M31: 0 | P31: 0 | R31: 0 | S31: 0 | T31: 0 | U31: 0.5 | V31: 0 | W31: 0 | X31: 0.3 | AA31: 0 | AB31: 0 | AC31: T8
B32: =IF(ISBLANK('H8 Sch 8 CCA Hist'!C34), "", 'H8 Sch 8 CCA Hist'!C34) -> 47 | C32: =IF(ISBLANK('H8 Sch 8 CCA Hist'!D34), "", 'H8 Sch 8 CCA Hist'!D34) -> Distribution System (acq'd post Feb 22/05) | D32: H8 | E32: =IF(ISBLANK('H8 Sch 8 CCA Hist'!E34),0, 'H8 Sch 8 CCA Hist'!G34) -> 2032743363 | F32: 267397329.1 | K32: 16878 | M32: 2300123815 | P32: 267397329.1 | Q32: =+P32 -> 267397329.1 | R32: 2300123815 | S32: 16878 | T32: 267380451.1 | U32: 0.5 | V32: 133690225.6 | W32: 0 | X32: 0.08 | AA32: 194705123.2 | AB32: 2105418691 | AC32: T8
B33: =IF(ISBLANK('H8 Sch 8 CCA Hist'!C35), "", 'H8 Sch 8 CCA Hist'!C35) -> 50 | C33: =IF(ISBLANK('H8 Sch 8 CCA Hist'!D35), "", 'H8 Sch 8 CCA Hist'!D35) -> General Purpose Computer Hardware & Software (acq'd post Mar 18/07) | D33: H8 | E33: =IF(ISBLANK('H8 Sch 8 CCA Hist'!E35),0, 'H8 Sch 8 CCA Hist'!G35) -> 1552177.748 | F33: 3801635 | M33: 5353812.748 | P33: 3801635 | Q33: 3801635 | R33: 5353812.748 | S33: 0 | T33: 3801635 | U33: 0.818181 | V33: 3110425.526 | W33: 0 | X33: 0.55 | AA33: 4655331.051 | AB33: 698481.6974 | AC33: T8
B34: =IF(ISBLANK('H8 Sch 8 CCA Hist'!C36), "", 'H8 Sch 8 CCA Hist'!C36) -> 95 | C34: =IF(ISBLANK('H8 Sch 8 CCA Hist'!D36), "", 'H8 Sch 8 CCA Hist'!D36) -> CWIP | D34: H8 | E34: =IF(ISBLANK('H8 Sch 8 CCA Hist'!E36),0, 'H8 Sch 8 CCA Hist'!G36) -> 70794341.03 | H34: 22111356.85 | M34: 92905697.87 | P34: 0 | Q34: 0 | R34: 92905697.87 | S34: 0 | T34: 0 | U34: 0.5 | V34: 0 | W34: 0 | X34: 0 | AA34: 0 | AB34: 92905697.87 | AC34: T8
B35: =IF(ISBLANK('H8 Sch 8 CCA Hist'!C37), "", 'H8 Sch 8 CCA Hist'!C37) -> 54 | C35: =IF(ISBLANK('H8 Sch 8 CCA Hist'!D37), "", 'H8 Sch 8 CCA Hist'!D37) -> Zero-emission vehicles | D35: H8 | E35: =IF(ISBLANK('H8 Sch 8 CCA Hist'!E37),0, 'H8 Sch 8 CCA Hist'!G37) -> 302004 | M35: 302004 | P35: 0 | R35: 302004 | S35: 0 | T35: 0 | V35: 0 | W35: 0 | X35: 0.3 | AA35: 90601.2 | AB35: 211402.8 | AC35: T8
B36: =IF(ISBLANK('H8 Sch 8 CCA Hist'!C38), "", 'H8 Sch 8 CCA Hist'!C38) ->  | C36: =IF(ISBLANK('H8 Sch 8 CCA Hist'!D38), "", 'H8 Sch 8 CCA Hist'!D38) ->  | D36: H8 | E36: =IF(ISBLANK('H8 Sch 8 CCA Hist'!E38),0, 'H8 Sch 8 CCA Hist'!G38) -> 0 | M36: 0 | P36: 0 | R36: 0 | S36: 0 | T36: 0 | V36: 0 | W36: 0 | AA36: 0 | AB36: 0 | AC36: T8
B37: =IF(ISBLANK('H8 Sch 8 CCA Hist'!C39), "", 'H8 Sch 8 CCA Hist'!C39) ->  | C37: =IF(ISBLANK('H8 Sch 8 CCA Hist'!D39), "", 'H8 Sch 8 CCA Hist'!D39) ->  | D37: H8 | E37: =IF(ISBLANK('H8 Sch 8 CCA Hist'!E39),0, 'H8 Sch 8 CCA Hist'!G39) -> 0 | M37: =IFERROR(E37+F37+H37-K37,0) -> 0 | P37: =+F37-G37+N37-O37 -> 0 | R37: 0 | S37: 0 | T37: 0 | V37: 0 | W37: 0 | AA37: 0 | AB37: 0 | AC37: T8
B38: =IF(ISBLANK('H8 Sch 8 CCA Hist'!C40), "", 'H8 Sch 8 CCA Hist'!C40) ->  | C38: =IF(ISBLANK('H8 Sch 8 CCA Hist'!D40), "", 'H8 Sch 8 CCA Hist'!D40) ->  | D38: H8 | E38: =IF(ISBLANK('H8 Sch 8 CCA Hist'!E40),0, 'H8 Sch 8 CCA Hist'!G40) -> 0 | M38: 0 | P38: 0 | R38: 0 | S38: 0 | T38: 0 | V38: 0 | W38: 0 | AA38: 0 | AB38: 0 | AC38: T8
B39: =IF(ISBLANK('H8 Sch 8 CCA Hist'!C41), "", 'H8 Sch 8 CCA Hist'!C41) ->  | C39: =IF(ISBLANK('H8 Sch 8 CCA Hist'!D41), "", 'H8 Sch 8 CCA Hist'!D41) ->  | D39: H8 | E39: =IF(ISBLANK('H8 Sch 8 CCA Hist'!E41),0, 'H8 Sch 8 CCA Hist'!G41) -> 0 | M39: 0 | P39: 0 | R39: 0 | S39: 0 | T39: 0 | V39: 0 | W39: 0 | AA39: 0 | AB39: 0 | AC39: T8
B40: =IF(ISBLANK('H8 Sch 8 CCA Hist'!C42), "", 'H8 Sch 8 CCA Hist'!C42) ->  | C40: =IF(ISBLANK('H8 Sch 8 CCA Hist'!D42), "", 'H8 Sch 8 CCA Hist'!D42) ->  | D40: H8 | E40: =IF(ISBLANK('H8 Sch 8 CCA Hist'!E42),0, 'H8 Sch 8 CCA Hist'!G42) -> 0 | M40: 0 | P40: 0 | R40: 0 | S40: 0 | T40: 0 | V40: 0 | W40: 0 | AA40: 0 | AB40: 0 | AC40: T8
B41: =IF(ISBLANK('H8 Sch 8 CCA Hist'!C43), "", 'H8 Sch 8 CCA Hist'!C43) ->  | C41: =IF(ISBLANK('H8 Sch 8 CCA Hist'!D43), "", 'H8 Sch 8 CCA Hist'!D43) ->  | D41: H8 | E41: =IF(ISBLANK('H8 Sch 8 CCA Hist'!E43),0, 'H8 Sch 8 CCA Hist'!G43) -> 0 | M41: 0 | P41: 0 | R41: 0 | S41: 0 | T41: 0 | V41: 0 | W41: 0 | AA41: 0 | AB41: =IF(M41<0,0,M41-Z41-AA41) -> 0 | AC41: T8
B42: =IF(ISBLANK('H8 Sch 8 CCA Hist'!C44), "", 'H8 Sch 8 CCA Hist'!C44) ->  | C42: =IF(ISBLANK('H8 Sch 8 CCA Hist'!D44), "", 'H8 Sch 8 CCA Hist'!D44) ->  | D42: H8 | E42: =IF(ISBLANK('H8 Sch 8 CCA Hist'!E44),0, 'H8 Sch 8 CCA Hist'!G44) -> 0 | M42: 0 | P42: 0 | R42: 0 | S42: 0 | T42: 0 | V42: 0 | W42: 0 | AA42: 0 | AB42: 0 | AC42: T8
C43: TOTALS | E43: =SUM(E10:E42) -> 2956508890 | F43: =SUM(F10:F42) -> 325506632.1 | G43: =SUM(G10:G42) -> 0 | H43: =SUM(H10:H42) -> 22111356.85 | I43: 0 | J43: 0 | K43: 693668 | L43: =SUM(L10:L42) -> 0 | M43: =SUM(M10:M42) -> 3303433211 | N43: =SUM(N10:N42) -> 0 | P43: 325506632.1 | Q43: 325506632.1 | S43: =SUM(S10:S42) -> 693668 | T43: =SUM(T10:T42) -> 324812964.1 | V43: =SUM(V10:V42) -> 148324572.1 | W43: =SUM(W10:W42) -> 0 | Y43: =SUM(Y10:Y42) -> 0 | Z43: 0 | AA43: 280798128.3 | AB43: 3022635083 | AC43: B1
B45: For additional details and guidance on calculating amounts in Schedule 8, refer to the notes to the Canada Revenue Agency published Schedule 8 - Capital Cost Allowance (CCA) (2018 and later tax years):
B46: https://www.canada.ca/content/dam/cra-arc/formspubs/pbg/t2sch8/t2sch8-19e.pdf
B50: 1. Please note that Subsection 1100(2) of the Income Tax Regulations provide undepreciated capital cost adjustment factors of eligible zero-emission vehicles and equipment under Class 53, Class 54, Class 55 and Class 56,
B51: please assess the applicability of these adjustments and incorporate them in the PILs model as applicable.

Sheet B13 Sch 13 Reserves Bridge
C7: Schedule 13 Tax Reserves - Bridge Year
C9: Continuity of Reserves
I10: Bridge Year Adjustments
C11: Description | D11: Reference | E11: Historical Utility Only | F11: Eliminate Amounts Not Relevant for Bridge Year | G11: Adjusted Utility Balance | I11: Additions | J11: Disposals | K11: Balance for Bridge Year | M11: Change During the Year | N11: Disallowed Expenses
C13: Capital gains reserves ss.40(1) | D13: H13 | E13: ='H13 Sch 13 Reserves Hist'!F15 -> 0 | G13: =SUM(E13:F13) -> 0 | K13: =G13+I13-J13 -> 0 | L13: T13 | M13: =+K13-G13 -> 0
C14: Tax Reserves Not Deducted for Accounting Purposes
C15: Reserve for doubtful accounts ss. 20(1)(l) | D15: H13 | E15: ='H13 Sch 13 Reserves Hist'!F17 -> 0 | G15: =SUM(E15:F15) -> 0 | K15: =G15+I15-J15 -> 0 | L15: T13 | M15: =+K15-G15 -> 0
C16: Reserve for goods and services not delivered ss. 20(1)(m) | D16: H13 | E16: ='H13 Sch 13 Reserves Hist'!F18 -> 0 | G16: 0 | K16: 0 | L16: T13 | M16: 0
C17: Reserve for unpaid amounts ss. 20(1)(n) | D17: H13 | E17: ='H13 Sch 13 Reserves Hist'!F19 -> 0 | G17: 0 | K17: 0 | L17: T13 | M17: 0
C18: Debt & share issue expenses ss. 20(1)(e) | D18: H13 | E18: ='H13 Sch 13 Reserves Hist'!F20 -> 0 | G18: 0 | K18: 0 | L18: T13 | M18: 0
C19: Other tax reserves | D19: H13 | E19: ='H13 Sch 13 Reserves Hist'!F21 -> 0 | G19: 0 | K19: 0 | L19: T13 | M19: 0
E20: ='H13 Sch 13 Reserves Hist'!F25 -> 0 | G20: 0 | K20: 0 | M20: 0
E21: ='H13 Sch 13 Reserves Hist'!F26 -> 0 | G21: 0 | K21: 0 | M21: 0
C22: Total | E22: =SUM(E15:E21) -> 0 | F22: 0 | G22: 0 | H22: B1 | I22: 0 | J22: 0 | K22: 0 | L22: B1 | M22: 0 | N22: 0
E23: 0
C24: Financial statement reserves (not deductible for tax purposes)
C25: General Reserve for Inventory Obsolescence (non-specific) | D25: H13 | E25: ='H13 Sch 13 Reserves Hist'!F30 -> 0 | G25: =SUM(E25:F25) -> 0 | K25: =G25+I25-J25 -> 0 | L25: T13 | M25: =+K25-G25 -> 0
C26: General Reserve for Bad Debts | D26: H13 | E26: ='H13 Sch 13 Reserves Hist'!F31 -> 2183193.22 | G26: 2183193.22 | K26: 2183193.22 | L26: T13 | M26: 0
C27: Accrued Employee Future Benefits: | D27: H13 | E27: ='H13 Sch 13 Reserves Hist'!F32 -> 0 | G27: 0 | K27: 0 | L27: T13 | M27: 0
C28: - Medical and Life Insurance | D28: H13 | E28: ='H13 Sch 13 Reserves Hist'!F33 -> 0 | G28: 0 | K28: 0 | L28: T13 | M28: 0
C29: - Short & Long-term Disability | D29: H13 | E29: ='H13 Sch 13 Reserves Hist'!F34 -> 0 | G29: 0 | K29: 0 | L29: T13 | M29: 0
C30: - Accumulated Sick Leave | D30: H13 | E30: ='H13 Sch 13 Reserves Hist'!F35 -> 0 | G30: 0 | K30: 0 | L30: T13 | M30: 0
C31: - Termination Cost | D31: H13 | E31: ='H13 Sch 13 Reserves Hist'!F36 -> 0 | G31: 0 | K31: 0 | L31: T13 | M31: 0
C32: - Other Post-Employment Benefits | D32: H13 | E32: ='H13 Sch 13 Reserves Hist'!F37 -> 75170005 | G32: 75170005 | I32: 661568 | K32: 75831573 | L32: T13 | M32: 661568
C33: Provision for Environmental Costs | D33: H13 | E33: ='H13 Sch 13 Reserves Hist'!F38 -> 855607 | G33: 855607 | I33: 57937 | K33: 913544 | L33: T13 | M33: 57937
C34: Restructuring Costs | D34: H13 | E34: ='H13 Sch 13 Reserves Hist'!F39 -> 0 | G34: 0 | K34: 0 | L34: T13 | M34: 0
C35: Accrued Contingent Litigation Costs | D35: H13 | E35: ='H13 Sch 13 Reserves Hist'!F40 -> 0 | G35: 0 | K35: 0 | L35: T13 | M35: 0
C36: Accrued Self-Insurance Costs | D36: H13 | E36: ='H13 Sch 13 Reserves Hist'!F41 -> 0 | G36: 0 | K36: 0 | L36: T13 | M36: 0
C37: Other Contingent Liabilities | D37: H13 | E37: ='H13 Sch 13 Reserves Hist'!F42 -> 0 | G37: 0 | K37: 0 | L37: T13 | M37: 0
C38: Bonuses Accrued and Not Paid Within 180 Days of Year-End ss. 78(4) | D38: H13 | E38: ='H13 Sch 13 Reserves Hist'!F43 -> 0 | G38: 0 | K38: 0 | L38: T13 | M38: 0
C39: Unpaid Amounts to Related Person and Not Paid Within 3 Taxation Years ss. 78(1) | D39: H13 | E39: ='H13 Sch 13 Reserves Hist'!F44 -> 0 | G39: 0 | K39: 0 | L39: T13 | M39: 0
C40: Other | D40: H13 | E40: ='H13 Sch 13 Reserves Hist'!F45 -> 0 | G40: 0 | K40: 0 | L40: T13 | M40: 0
E41: ='H13 Sch 13 Reserves Hist'!F49 -> 0 | G41: =SUM(E41:F41) -> 0 | K41: 0 | M41: =+K41-G41 -> 0
E42: ='H13 Sch 13 Reserves Hist'!F50 -> 0 | G42: =SUM(E42:F42) -> 0 | K42: 0 | M42: =+K42-G42 -> 0
C43: Total | E43: =SUM(E25:E42) -> 78208805.22 | F43: =SUM(F25:F42) -> 0 | G43: 78208805.22 | H43: B1 | I43: 719505 | J43: 0 | K43: 78928310.22 | L43: B1 | M43: 719505 | N43: 0
E44: 0

Sheet T0 PILs,Tax Provision Test
T1: Rate Base | U1: Federal Tax Rate
T2: 500000 | U2: 0.11
T3: 10000000 | U3: 0.11
T4: =T3+100000 -> 10100000 | U4: 0.11
T5: =T4+100000 -> 10200000 | U5: 0.11
B6: PILs Tax Provision - Test Year | T6: 10300000 | U6: 0.11
J7: 2027 | O7: 2028 | P7: 2029 | Q7: 2030 | R7: 2031 | T7: 10400000 | U7: 0.11
J8: Wires Only | T8: 10500000 | U8: 0.11
T9: 10600000 | U9: 0.11
C10: Regulatory Taxable Income | I10: T1 | J10: ='T1 Sch 1 Taxable Income Test'!F123 -> 47573298.35 | K10: A | O10: =+'T1 Sch 1 Taxable Income Test'!I123 -> 53664226.94 | P10: =+'T1 Sch 1 Taxable Income Test'!J123 -> 30066575.37 | Q10: =+'T1 Sch 1 Taxable Income Test'!K123 -> 93013076.8 | R10: =+'T1 Sch 1 Taxable Income Test'!L123 -> 92598086.53 | T10: 10700000 | U10: 0.11
T11: 10800000 | U11: 0.11
D12: Tax Rate | E12: Small Business Rate (If Applicable) | F12: Taxes Payable | G12: Effective Tax Rate
C13: Ontario (Max 11.5%) | D13: 0.115 | E13: =IF(ratebase<=10000000, ontario_SB, IF(ratebase>=50000000, ontariotax, IF(AND(ratebase>10000000, ratebase<50000000), ontario_SB+ (ratebase - 10000000)*(ontariotax - ontario_SB)/(50000000-10000000)))) -> 0.115 | F13: =IF(J10<500000,J10,500000)*E13+IF(J10>500000,J10-500000,0)*D13 -> 5470929.311 | G13: =IF(F13=0,0,+F13/J10) -> 0.115 | H13: B
C14: Federal (Max 15%) | D14: 0.15 | E14: =IF(ratebase<=10000000, Fed_SB_Test, IF(ratebase>=50000000, FedTax, IF(AND(ratebase>10000000, ratebase<50000000), Fed_SB_Test+ (ratebase - 10000000)*(FedTax -Fed_SB_Test)/(50000000-10000000)))) -> 0.15 | F14: =E14*IF(J10<500000,J10,500000)+IF(J10>500000,J10-500000,0)*D14 -> 7135994.753 | G14: =IF(F14=0,0,+F14/J10) -> 0.15 | H14: C
C16: Combined effective tax rate (Max 26.5%) | J16: =SUM(G13:G14) -> 0.265 | K16: D = B + C | O16: =+J16 -> 0.265 | P16: =+O16 -> 0.265 | Q16: =+P16 -> 0.265 | R16: =+Q16 -> 0.265 | T16: =#REF!+100000 ->  | U16: =#REF!+0.112% -> 
U17: =U16+0.112% -> 
C19: Total Income Taxes | J19: =J10*J16 -> 12606924.06 | K19: E = A * D | O19: =O10*O16 -> 14221020.14 | P19: =P10*P16 -> 7967642.473 | Q19: =Q10*Q16 -> 24648465.35 | R19: =R10*R16 -> 24538492.93
U20: =U19+0.102% -> 
C21: Investment Tax Credits | J21: 565000 | K21: F | O21: 565000 | P21: 565000 | Q21: 565000 | R21: 565000 | U21: =U20+0.102% -> 
C22: Miscellaneous Tax Credits | J22: 350000 | K22: G | O22: 350000 | P22: 350000 | Q22: 350000 | R22: 350000 | U22: =U21+0.102% -> 
C23: Total Tax Credits | J23: =SUM(J21:J22) -> 915000 | K23: H = F + G | O23: =SUM(O21:O22) -> 915000 | P23: =SUM(P21:P22) -> 915000 | Q23: =SUM(Q21:Q22) -> 915000 | R23: =SUM(R21:R22) -> 915000 | U23: =U22+0.102% -> 
U24: =U23+0.102% -> 
C25: Corporate PILs/Income Tax Provision for Test Year | J25: =IF(J19-J23<0,0,J19-J23) -> 11691924.06 | K25: I = E - H | L25: S. Summary | O25: =IF(O19-O23<0,0,O19-O23) -> 13306020.14 | P25: =IF(P19-P23<0,0,P19-P23) -> 7052642.473 | Q25: =IF(Q19-Q23<0,0,Q19-Q23) -> 23733465.35 | R25: =IF(R19-R23<0,0,R19-R23) -> 23623492.93 | U25: =U24+0.096% -> 
U26: =U25+0.096% -> 
C27: Corporate PILs/Income Tax Provision Gross Up 1 | H27: =(1-J16) -> 0.735 | I27: J = 1-D | J27: =J25/H27-J25 -> 4215455.615 | K27: K = I/J-I | O27: =O25/$H$27-O25 -> 4797408.622 | P27: =P25/$H$27-P25 -> 2542789.463 | Q27: =Q25/$H$27-Q25 -> 8556963.698 | R27: =R25/$H$27-R25 -> 8517313.777 | U27: =U26+0.096% -> 
U28: =U27+0.096% -> 
U29: =U28+0.096% -> 
C30: Income Tax (grossed-up) | J30: =J25+J27 -> 15907379.68 | K30: L = K + I | L30: S. Summary | O30: =O25+O27 -> 18103428.76 | P30: =P25+P27 -> 9595431.936 | Q30: =Q25+Q27 -> 32290429.05 | R30: =R25+R27 -> 32140806.71 | U30: =U29+0.088% -> 
C31: Tax credits reclass to Other Revenue | J31: =+J23 -> 915000 | K31: M | O31: =+O23 -> 915000 | P31: =+P23 -> 915000 | Q31: =+Q23 -> 915000 | R31: =+R23 -> 915000 | U31: =U30+0.088% -> 
C32: Tax credits reclass to Other Revenue - gross up | H32: =(1-J16) -> 0.735 | I32: J = 1-D | J32: =J31/$H$32-J31 -> 329897.9592 | K32: N | O32: =O31/$H$32-O31 -> 329897.9592 | P32: =P31/$H$32-P31 -> 329897.9592 | Q32: =Q31/$H$32-Q31 -> 329897.9592 | R32: =R31/$H$32-R31 -> 329897.9592 | U32: =U31+0.088% -> 
C33: Income Tax (grossed-up) after tax credits reclass to Other Revenue | J33: =+J30+J31+J32 -> 17152277.64 | K33: O = L + M + N | O33: =+O30+O31+O32 -> 19348326.72 | P33: =+P30+P31+P32 -> 10840329.9 | Q33: =+Q30+Q31+Q32 -> 33535327.01 | R33: =+R30+R31+R32 -> 33385704.67
C36: Note: | T36: =T32+100000 ->  | U36: =U32+0.088% -> 
C37: 1. This is for the derivation of revenue requirement and should not be used for sufficiency/deficiency calculations. | U37: =U36+0.088% -> 
U38: =U37+0.082% -> 
U39: =U38+0.082% -> 
U40: =U39+0.082% -> 
U41: =U40+0.082% -> 
U42: =U41+0.082% -> 
U43: =U42+0.076% -> 
U44: =U43+0.076% -> 
U45: =U44+0.076% -> 
U46: =U45+0.076% -> 
U47: 0.15

Sheet T1 Sch 1 Taxable Income Test
C10: Taxable Income - Test Year | F10: 2027 | I10: 2028 | J10: 2029 | K10: 2030 | L10: 2031
E11: Working Paper Reference | F11: Test Year Taxable Income | I11: Test Year Taxable Income | J11: Test Year Taxable Income | K11: Test Year Taxable Income | L11: Test Year Taxable Income
C12: Net Income Before Taxes | E12: A. | F12: ='A. Data Input Sheet'!G18 -> 159671965.1 | I12: =+'A. Data Input Sheet'!M18 -> 169530419.1 | J12: =+'A. Data Input Sheet'!O18 -> 181185202.3 | K12: =+'A. Data Input Sheet'!Q18 -> 195191744.2 | L12: =+'A. Data Input Sheet'!S18 -> 209584600.9
D14: T2 S1 line #
C15: Additions:
C16: Interest and penalties on taxes | D16: 103
C17: Amortization of tangible assets 2-4 ADJUSTED ACCOUNTING DATA P489 | D17: 104 | F17: 195649452 | I17: 199398811 | J17: 214066647 | K17: 230805830 | L17: 242204086
C18: Amortization of intangible assets 2-4 ADJUSTED ACCOUNTING DATA P490 | D18: 106
C19: Recapture of capital cost allowance from Schedule 8 | D19: 107 | E19: T8 | F19: ='T8 Sch 8 CCA Test'!Y43 -> 0
C20: Income inclusion under subparagraph 13(38)(d)(iii) from Schedule 10 | D20: 108
C21: Income or loss for tax purposes- joint ventures or partnerships | D21: 109
C22: Loss in equity of subsidiaries and affiliates | D22: 110
C23: Loss on disposal of assets | D23: 111 | F23: 6009074 | I23: 5978636 | J23: 5978636 | K23: 5978636 | L23: 5978636
C24: Charitable donations | D24: 112
C25: Taxable Capital Gains | D25: 113
C26: Political Donations | D26: 114
C27: Deferred and prepaid expenses | D27: 116
C28: Scientific research expenditures deducted on financial statements | D28: 118
C29: Capitalized interest | D29: 119
C30: Non-deductible club dues and fees | D30: 120
C31: Non-deductible meals and entertainment expense | D31: 121 | F31: 270000 | I31: 270000 | J31: 270000 | K31: 270000 | L31: 270000
C32: Non-deductible automobile expenses | D32: 122
C33: Non-deductible life insurance premiums | D33: 123
C34: Non-deductible company pension plans | D34: 124
C35: Tax reserves beginning of year | D35: 125 | E35: T13 | F35: ='T13 Sch 13 Reserves Test'!G22 -> 0
C36: Reserves from financial statements- balance at end of year | D36: 126 | E36: T13 | F36: ='T13 Sch 13 Reserves Test'!K43 -> 79591097.22 | I36: =+'T13 Sch 13 Reserves Test'!X43 -> 80196162.22 | J36: =+'T13 Sch 13 Reserves Test'!AK43 -> 80848299.22 | K36: =+'T13 Sch 13 Reserves Test'!AX43 -> 81342355.22 | L36: =+'T13 Sch 13 Reserves Test'!BK43 -> 81776645.22
C37: Soft costs on construction and renovation of buildings | D37: 127
C38: Book loss on joint ventures or partnerships | D38: 205
C39: Capital items expensed | D39: 206
C40: Debt issue expense | D40: 208
C41: Development expenses claimed in current year | D41: 212
C42: Financing fees deducted in books | D42: 216
C43: Gain on settlement of debt | D43: 220
C44: Non-deductible advertising | D44: 226
C45: Non-deductible interest | D45: 227
C46: Non-deductible legal and accounting fees | D46: 228
C47: Recapture of SR&ED expenditures | D47: 231
C48: Share issue expense | D48: 235
C49: Write down of capital property | D49: 236
C50: Amounts received in respect of qualifying environment trust per paragraphs 12(1)(z.1) and 12(1)(z.2) | D50: 237
C51: Other Additions
C52: Interest Expensed on Capital Leases | D52: 295 | F52: 623329 | I52: 561468 | J52: 495418 | K52: 421750 | L52: 339293
C53: Realized Income from Deferred Credit Accounts | D53: 295
C54: Pensions | D54: 295
C55: Non-deductible penalties | D55: 295
D56: 295
D57: 295
D58: 295
D59: 295
C60: ARO Accretion expense
C61: Capital Contributions Received (ITA 12(1)(x)) | F61: 148080242 | I61: 133232953 | J61: 137121311 | K61: 135599663 | L61: 165474462
C62: Lease Inducements Received (ITA 12(1)(x))
C63: Deferred Revenue (ITA 12(1)(a))
C64: Prior Year Investment Tax Credits received | F64: 915000 | I64: 915000 | J64: 915000 | K64: 915000 | L64: 915000
C65: Depreication expense reclassed to OM&A | F65: 6637087 | I65: 8022637 | J65: 9990704 | K65: 11577768 | L65: 12753161
C75: Total Additions | F75: =SUM(F16:F74) -> 437775281.2 | I75: =SUM(I16:I74) -> 428575667.2 | J75: =SUM(J16:J74) -> 449686015.2 | K75: =SUM(K16:K74) -> 466911002.2 | L75: =SUM(L16:L74) -> 509711283.2
C76: Deductions:
C77: Gain on disposal of assets per financial statements | D77: 401
C78: Dividends not taxable under section 83 | D78: 402
C79: Capital cost allowance from Schedule 8 | D79: 403 | E79: T8 | F79: ='T8 Sch 8 CCA Test'!AA43 -> 308482770.7 | I79: =+'T8 Sch 8 CCA Test'!BE43 -> 314385249.1 | J79: =+'T8 Sch 8 CCA Test'!CI43 -> 362333317.9 | K79: =+'T8 Sch 8 CCA Test'!DM43 -> 327691058.4 | L79: =+'T8 Sch 8 CCA Test'!EQ43 -> 349410882.4
C80: Terminal loss from Schedule 8 | D80: 404 | E80: T8 | F80: ='T8 Sch 8 CCA Test'!Z43 -> 0
C81: Allowable business investment loss | D81: 406
C82: Deferred and prepaid expenses | D82: 409
C83: Scientific research expenses claimed in year | D83: 411
C84: Tax reserves end of year | D84: 413 | E84: T13 | F84: ='T13 Sch 13 Reserves Test'!K22 -> 0
C85: Reserves from financial statements - balance at beginning of year | D85: 414 | E85: T13 | F85: ='T13 Sch 13 Reserves Test'!G43 -> 78928310.22 | I85: =+F36 -> 79591097.22 | J85: =+I36 -> 80196162.22 | K85: =+J36 -> 80848299.22 | L85: =+K36 -> 81342355.22
C86: Contributions to deferred income plans | D86: 416
C87: Book income of joint venture or partnership | D87: 305
C88: Equity in income from subsidiary or affiliates | D88: 306
C89: Other deductions
C90: Interest capitalized for accounting deducted for tax | D90: 395 | F90: 4199361 | I90: 6415573 | J90: 9741191 | K90: 13037206 | L90: 18187725
C91: Capital Lease Payments | D91: 395 | F91: 1536873 | I91: 1536873 | J91: 1536873 | K91: 1639456 | L91: 1639456
C92: Non-taxable imputed interest income on deferral and variance accounts | D92: 395
D93: 395
D94: 395
D95: 395
D96: 395
D97: 395
C98: ARO Payments - Deductible for Tax when Paid
C99: ITA 13(7.4) Election - Capital Contributions Received | F99: =+F61 -> 148080242 | I99: =+I61 -> 133232953 | J99: =+J61 -> 137121311 | K99: =+K61 -> 135599663 | L99: =+L61 -> 165474462
C100: ITA 13(7.4) Election - Apply Lease Inducement to cost of Leaseholds
C101: Deferred Revenue - ITA 20(1)(m) reserve
C102: Principal portion of lease payments
C103: Lease Inducement Book Amortization credit to income
C104: Financing fees for tax ITA 20(1)(e) and (e.1)
C105: Pension costs capitalized for accounting, deducted for tax | F105: 7731391 | I105: 8365114 | J105: 8960787 | K105: 9358987 | L105: 9727917
C106: Current year ITCs accrued for accounting | F106: =F64 -> 915000 | I106: =I64 -> 915000 | J106: 915000 | K106: 915000 | L106: 915000
C113: Total Deductions | E113: calculated | F113: =SUM(F77:F112) -> 549873947.9 | I113: =SUM(I77:I112) -> 544441859.4 | J113: =SUM(J77:J112) -> 600804642.1 | K113: =SUM(K77:K112) -> 569089669.6 | L113: =SUM(L77:L112) -> 626697797.6
C115: NET INCOME FOR TAX PURPOSES | E115: calculated | F115: =SUM(F12,F75)-F113 -> 47573298.35 | I115: =SUM(I12,I75)-I113 -> 53664226.94 | J115: =SUM(J12,J75)-J113 -> 30066575.37 | K115: =SUM(K12,K75)-K113 -> 93013076.8 | L115: =SUM(L12,L75)-L113 -> 92598086.53
C117: Charitable donations | D117: 311
C118: Taxable dividends received under section 112 or 113 | D118: 320
C119: Non-capital losses of previous tax years from Schedule 4 | D119: 331 | E119: T4 | F119: ='T4 Sch 4 Loss Cfwd Test'!I15 -> 0 | I119: ='T4 Sch 4 Loss Cfwd Test'!L15 -> 0 | J119: ='T4 Sch 4 Loss Cfwd Test'!M15 -> 0 | K119: ='T4 Sch 4 Loss Cfwd Test'!N15 -> 0 | L119: ='T4 Sch 4 Loss Cfwd Test'!O15 -> 0
C120: Net capital losses of previous tax years from Schedule 4 | D120: 332 | E120: T4 | F120: ='T4 Sch 4 Loss Cfwd Test'!I25 -> 0 | I120: ='T4 Sch 4 Loss Cfwd Test'!L25 -> 0 | J120: ='T4 Sch 4 Loss Cfwd Test'!M25 -> 0 | K120: ='T4 Sch 4 Loss Cfwd Test'!N25 -> 0 | L120: ='T4 Sch 4 Loss Cfwd Test'!O25 -> 0
C121: Limited partnership losses of previous tax years from Schedule 4 | D121: 335
C123: REGULATORY TAXABLE INCOME | E123: calculated | F123: =IF(F115<0,F115,F115-SUM(F117:F122)) -> 47573298.35 | G123: T0 | I123: =IF(I115<0,I115,I115-SUM(I117:I122)) -> 53664226.94 | J123: =IF(J115<0,J115,J115-SUM(J117:J122)) -> 30066575.37 | K123: =IF(K115<0,K115,K115-SUM(K117:K122)) -> 93013076.8 | L123: =IF(L115<0,L115,L115-SUM(L117:L122)) -> 92598086.53
C126: Summary | E126: Bridge | F126: Test | I126: Test | J126: Test | K126: Test | L126: Test
E127: 2026 | F127: =+F10 -> 2027 | I127: =+I10 -> 2028 | J127: =+J10 -> 2029 | K127: =+K10 -> 2030 | L127: =+L10 -> 2031
C128: Net income before taxes | E128: =+'B1 Sch 1 Taxable Income Bridge'!F8 -> 154377136.4 | F128: =+F12 -> 159671965.1 | I128: =+I12 -> 169530419.1 | J128: =+J12 -> 181185202.3 | K128: =+K12 -> 195191744.2 | L128: =+L12 -> 209584600.9
C129: Tax Adjustments | E129: =+'B1 Sch 1 Taxable Income Bridge'!F67-'B1 Sch 1 Taxable Income Bridge'!F102 -> -113521415.3 | F129: =+F75-F113 -> -112098666.7 | I129: =+I75-I113 -> -115866192.1 | J129: =+J75-J113 -> -151118626.9 | K129: =+K75-K113 -> -102178667.4 | L129: =+L75-L113 -> -116986514.4
C130: Regulatory taxable income | E130: =SUM(E128:E129) -> 40855721.12 | F130: =SUM(F128:F129) -> 47573298.35 | I130: =SUM(I128:I129) -> 53664226.94 | J130: =SUM(J128:J129) -> 30066575.37 | K130: =SUM(K128:K129) -> 93013076.8 | L130: =SUM(L128:L129) -> 92598086.53
C132: Grossed-up PILs | E132: =+'B0 PILs,Tax Provision Bridge'!J33 -> 14730294.01 | F132: =+'T0 PILs,Tax Provision Test'!J33 -> 17152277.64 | I132: =+'T0 PILs,Tax Provision Test'!O33 -> 19348326.72 | J132: =+'T0 PILs,Tax Provision Test'!P33 -> 10840329.9 | K132: =+'T0 PILs,Tax Provision Test'!Q33 -> 33535327.01 | L132: =+'T0 PILs,Tax Provision Test'!R33 -> 33385704.67

Sheet T4 Sch 4 Loss Cfwd Test
C7: Schedule 4 Loss Carry Forward - Test Year
C9: Corporation Loss Continuity and Application
C11: Non-Capital Loss Carry Forward Deduction | F11: Working Paper Reference | G11: Total | H11: Non-Distribution Portion | I11: Utility Balance
C12: Actual/Estimated Bridge Year Carried Forward | F12: B4 | G12: ='B4 Sch 4 Loss Cfwd Bridge'!G16 -> 0 | I12: =G12-H12 -> 0
C13: Amount to be used in Test Year and Price Cap Years | F13: T1 | G13: =IF('T1 Sch 1 Taxable Income Test'!F115<0,0,IF('T1 Sch 1 Taxable Income Test'!F115>G12,G12,'T1 Sch 1 Taxable Income Test'!F115)) -> 0 | I13: =G13-H13 -> 0
C14: Number of years loss until next cost of service (i.e. years the loss is to be spread over)
C15: Amount to be used in Test Year | F15: calculated | G15: =IF(ISERROR(G13/G14),G13,G13/G14) -> 0 | I15: =G15-H15 -> 0
C16: Loss Carry Forward Generated in Test Year (if any) | F16: T1 | G16: =IF('T1 Sch 1 Taxable Income Test'!F115<0,'T1 Sch 1 Taxable Income Test'!F115*-1,0) -> 0 | I16: =G16-H16 -> 0
C17: Other Adjustments | I17: =G17-H17 -> 0
C18: Balance available for use in Future Years | F18: calculated | G18: =G12-G13+G16+G17 -> 0 | I18: =G18-H18 -> 0
C21: Net Capital Loss Carry Forward Deduction | G21: Total | H21: Non-Distribution Portion | I21: Utility Balance
C22: Actual/Estimated Bridge Year Carried Forward | F22: B4 | G22: ='B4 Sch 4 Loss Cfwd Bridge'!G23 -> 0 | I22: =G22-H22 -> 0
C23: Amount to be used in Test Year and Price Cap Years | I23: =G23-H23 -> 0
C24: Number of years loss until next cost of service (i.e. years the loss is to be spread over)
C25: Amount to be used in Test Year | F25: T1 | G25: =IF(ISERROR(G23/G24),G23,G23/G24) -> 0 | I25: =G25-H25 -> 0
C26: Loss Carry Forward Generated in Test Year (if any) | I26: =G26-H26 -> 0
C27: Other Adjustments | I27: =G27-H27 -> 0
C28: Balance available for use in Future Years | G28: =G22-G23+G26+G27 -> 0 | I28: =G28-H28 -> 0

Sheet T8 Sch 8 CCA Test
B7: Schedule 8 CCA - Test Year
C8: 2027 | D8: 2027 | E8: 2027 | F8: 2027 | G8: 2027 | H8: 2027 | I8: 2027 | J8: 2027 | K8: 2027 | L8: 2027 | M8: 2027 | N8: 2027 | O8: 2027 | P8: 2027 | Q8: 2027 | R8: 2027 | S8: 2027 | T8: 2027 | U8: 2027 | V8: 2027 | W8: 2027 | X8: 2027 | Y8: 2027 | Z8: 2027 | AA8: 2027 | AB8: 2027 | AF8: 2028 | AG8: 2028 | AH8: 2028 | AI8: 2028 | AJ8: 2028 | AK8: 2028 | AL8: 2028 | AM8: 2028 | AN8: 2028 | AO8: 2028 | AP8: 2028 | AQ8: 2028 | AR8: 2028 | AS8: 2028 | AT8: 2028 | AU8: 2028 | AV8: 2028 | AW8: 2028 | AX8: 2028 | AY8: 2028 | AZ8: 2028 | BA8: 2028 | BB8: 2028 | BC8: 2028 | BD8: 2028 | BE8: 2028 | BF8: 2028 | BJ8: 2029 | BK8: 2029 | BL8: 2029 | BM8: 2029 | BN8: 2029 | BO8: 2029 | BP8: 2029 | BQ8: 2029 | BR8: 2029 | BS8: 2029 | BT8: 2029 | BU8: 2029 | BV8: 2029 | BW8: 2029 | BX8: 2029 | BY8: 2029 | BZ8: 2029 | CA8: 2029 | CB8: 2029 | CC8: 2029 | CD8: 2029 | CE8: 2029 | CF8: 2029 | CG8: 2029 | CH8: 2029 | CI8: 2029 | CJ8: 2029 | CN8: 2030 | CO8: 2030 | CP8: 2030 | CQ8: 2030 | CR8: 2030 | CS8: 2030 | CT8: 2030 | CU8: 2030 | CV8: 2030 | CW8: 2030 | CX8: 2030 | CY8: 2030 | CZ8: 2030 | DA8: 2030 | DB8: 2030 | DC8: 2030 | DD8: 2030 | DE8: 2030 | DF8: 2030 | DG8: 2030 | DH8: 2030 | DI8: 2030 | DJ8: 2030 | DK8: 2030 | DL8: 2030 | DM8: 2030 | DN8: 2030 | DR8: 2031 | DS8: 2031 | DT8: 2031 | DU8: 2031 | DV8: 2031 | DW8: 2031 | DX8: 2031 | DY8: 2031 | DZ8: 2031 | EA8: 2031 | EB8: 2031 | EC8: 2031 | ED8: 2031 | EE8: 2031 | EF8: 2031 | EG8: 2031 | EH8: 2031 | EI8: 2031 | EJ8: 2031 | EK8: 2031 | EL8: 2031 | EM8: 2031 | EN8: 2031 | EO8: 2031 | EP8: 2031 | EQ8: 2031 | ER8: 2031
B9: (1) Class | C9: Class Description | D9: Working Paper Reference | E9: (2) Undepreciated capital cost (UCC) at the beginning of the test year | F9: (3) Cost of acquisitions during the year (new property must be available for use, except CWIP) | G9: (4) Cost of acquisitions from column 3 that are designated immediate expensing property (DIEP) | H9: (5) Adjustments and transfers (enter amounts that will reduce the UCC as negatives) | I9: (6) Amount from column 5 that is assistance received or receivable during the year for a property, subsequent to its disposition | J9: (7) Amount from column 5 that is repaid during the year for a property, subsequent to its disposition | K9: (8) Proceeds of dispositions | L9: (9) Proceeds of dispositions of the DIEP (enter amount from column 8 that relates to the DIEP reported in column 4) | M9: (10) UCC (column 2 plus column 3 plus or minus column 5 minus column 8) | N9: (11) UCC of the DIEP (enter the UCC amount that relates to the DIEP reported in column 4) | O9: (12) Immediate expensing | P9: (13) Cost of acquisitions on remainder of Class (column 3 minus column 4 plus column 11 minus column 12) | Q9: (14) Cost of acquisitions from column 13 that are accelerated investment incentive properties (AIIP) or properties included in Classes 54 to 56 | R9: (15) Remaining UCC (column 10 minus column 12) (if negative, enter "0") | S9: (16) Proceeds of disposition available to reduce the UCC of AIIP and property included in Classes 54 to 56 (column 8 minus column 9 plus column 6 minus column 13 plus column 14 minus column 7) (if negative, enter "0") | T9: (17) Net capital cost additions of AIIP and property included in Classes 54 to 56 acquired during the year (column 14 minus column 16) (if negative, enter "0") | U9: Relevant factor1 | V9: (18) UCC adjustment for AIIP and property included in Classes 54 to 56 acquired during the year (column 17 multiplied by the relevant factor) | W9: (19) UCC adjustment for non-AIIP and property included in Classes 54 to 56 (0.5 multiplied by the result of column 13 minus column 14 minus column 6 plus column 7 minus column 8 plus column 9) (if negative, enter "0") | X9: (20) CCA Rate % | Y9: (21) Recapture of CCA | Z9: (22) Terminal Loss | AA9: (23) CCA (for declining balance method, the result of column 15 plus column 18 minus column 19, multiplied by column 20 or a lower amount, plus column 12)) | AB9: (24) UCC at the end of the test year (column 10 minus column 23) | AF9: (1) Class | AG9: Class Description | AH9: Working Paper Reference | AI9: (2) Undepreciated capital cost (UCC) at the beginning of the test year | AJ9: (3) Cost of acquisitions during the year (new property must be available for use, except CWIP) | AK9: (4) Cost of acquisitions from column 3 that are designated immediate expensing property (DIEP) | AL9: (5) Adjustments and transfers (enter amounts that will reduce the UCC as negatives) | AM9: (6) Amount from column 5 that is assistance received or receivable during the year for a property, subsequent to its disposition | AN9: (7) Amount from column 5 that is repaid during the year for a property, subsequent to its disposition | AO9: (8) Proceeds of dispositions | AP9: (9) Proceeds of dispositions of the DIEP (enter amount from column 8 that relates to the DIEP reported in column 4) | AQ9: (10) UCC (column 2 plus column 3 plus or minus column 5 minus column 8) | AR9: (11) UCC of the DIEP (enter the UCC amount that relates to the DIEP reported in column 4) | AS9: (12) Immediate expensing | AT9: (13) Cost of acquisitions on remainder of Class (column 3 minus column 4 plus column 11 minus column 12) | AU9: (14) Cost of acquisitions from column 13 that are accelerated investment incentive properties (AIIP) or properties included in Classes 54 to 56 | AV9: (15) Remaining UCC (column 10 minus column 12) (if negative, enter "0") | AW9: (16) Proceeds of disposition available to reduce the UCC of AIIP and property included in Classes 54 to 56 (column 8 minus column 9 plus column 6 minus column 13 plus column 14 minus column 7) (if negative, enter "0") | AX9: (17) Net capital cost additions of AIIP and property included in Classes 54 to 56 acquired during the year (column 14 minus column 16) (if negative, enter "0") | AY9: Relevant factor1 | AZ9: (18) UCC adjustment for AIIP and property included in Classes 54 to 56 acquired during the year (column 17 multiplied by the relevant factor) | BA9: (19) UCC adjustment for non-AIIP and property included in Classes 54 to 56 (0.5 multiplied by the result of column 13 minus column 14 minus column 6 plus column 7 minus column 8 plus column 9) (if negative, enter "0") | BB9: (20) CCA Rate % | BC9: (21) Recapture of CCA | BD9: (22) Terminal Loss | BE9: (23) CCA (for declining balance method, the result of column 15 plus column 18 minus column 19, multiplied by column 20 or a lower amount, plus column 12)) | BF9: (24) UCC at the end of the test year (column 10 minus column 23) | BJ9: (1) Class | BK9: Class Description | BL9: Working Paper Reference | BM9: (2) Undepreciated capital cost (UCC) at the beginning of the test year | BN9: (3) Cost of acquisitions during the year (new property must be available for use, except CWIP) | BO9: (4) Cost of acquisitions from column 3 that are designated immediate expensing property (DIEP) | BP9: (5) Adjustments and transfers (enter amounts that will reduce the UCC as negatives) | BQ9: (6) Amount from column 5 that is assistance received or receivable during the year for a property, subsequent to its disposition | BR9: (7) Amount from column 5 that is repaid during the year for a property, subsequent to its disposition | BS9: (8) Proceeds of dispositions | BT9: (9) Proceeds of dispositions of the DIEP (enter amount from column 8 that relates to the DIEP reported in column 4) | BU9: (10) UCC (column 2 plus column 3 plus or minus column 5 minus column 8) | BV9: (11) UCC of the DIEP (enter the UCC amount that relates to the DIEP reported in column 4) | BW9: (12) Immediate expensing | BX9: (13) Cost of acquisitions on remainder of Class (column 3 minus column 4 plus column 11 minus column 12) | BY9: (14) Cost of acquisitions from column 13 that are accelerated investment incentive properties (AIIP) or properties included in Classes 54 to 56 | BZ9: (15) Remaining UCC (column 10 minus column 12) (if negative, enter "0") | CA9: (16) Proceeds of disposition available to reduce the UCC of AIIP and property included in Classes 54 to 56 (column 8 minus column 9 plus column 6 minus column 13 plus column 14 minus column 7) (if negative, enter "0") | CB9: (17) Net capital cost additions of AIIP and property included in Classes 54 to 56 acquired during the year (column 14 minus column 16) (if negative, enter "0") | CC9: Relevant factor1 | CD9: (18) UCC adjustment for AIIP and property included in Classes 54 to 56 acquired during the year (column 17 multiplied by the relevant factor) | CE9: (19) UCC adjustment for non-AIIP and property included in Classes 54 to 56 (0.5 multiplied by the result of column 13 minus column 14 minus column 6 plus column 7 minus column 8 plus column 9) (if negative, enter "0") | CF9: (20) CCA Rate % | CG9: (21) Recapture of CCA | CH9: (22) Terminal Loss | CI9: (23) CCA (for declining balance method, the result of column 15 plus column 18 minus column 19, multiplied by column 20 or a lower amount, plus column 12)) | CJ9: (24) UCC at the end of the test year (column 10 minus column 23) | CN9: (1) Class | CO9: Class Description | CP9: Working Paper Reference | CQ9: (2) Undepreciated capital cost (UCC) at the beginning of the test year | CR9: (3) Cost of acquisitions during the year (new property must be available for use, except CWIP) | CS9: (4) Cost of acquisitions from column 3 that are designated immediate expensing property (DIEP) | CT9: (5) Adjustments and transfers (enter amounts that will reduce the UCC as negatives) | CU9: (6) Amount from column 5 that is assistance received or receivable during the year for a property, subsequent to its disposition | CV9: (7) Amount from column 5 that is repaid during the year for a property, subsequent to its disposition | CW9: (8) Proceeds of dispositions | CX9: (9) Proceeds of dispositions of the DIEP (enter amount from column 8 that relates to the DIEP reported in column 4) | CY9: (10) UCC (column 2 plus column 3 plus or minus column 5 minus column 8) | CZ9: (11) UCC of the DIEP (enter the UCC amount that relates to the DIEP reported in column 4) | DA9: (12) Immediate expensing | DB9: (13) Cost of acquisitions on remainder of Class (column 3 minus column 4 plus column 11 minus column 12) | DC9: (14) Cost of acquisitions from column 13 that are accelerated investment incentive properties (AIIP) or properties included in Classes 54 to 56 | DD9: (15) Remaining UCC (column 10 minus column 12) (if negative, enter "0") | DE9: (16) Proceeds of disposition available to reduce the UCC of AIIP and property included in Classes 54 to 56 (column 8 minus column 9 plus column 6 minus column 13 plus column 14 minus column 7) (if negative, enter "0") | DF9: (17) Net capital cost additions of AIIP and property included in Classes 54 to 56 acquired during the year (column 14 minus column 16) (if negative, enter "0") | DG9: Relevant factor1 | DH9: (18) UCC adjustment for AIIP and property included in Classes 54 to 56 acquired during the year (column 17 multiplied by the relevant factor) | DI9: (19) UCC adjustment for non-AIIP and property included in Classes 54 to 56 (0.5 multiplied by the result of column 13 minus column 14 minus column 6 plus column 7 minus column 8 plus column 9) (if negative, enter "0") | DJ9: (20) CCA Rate % | DK9: (21) Recapture of CCA | DL9: (22) Terminal Loss | DM9: (23) CCA (for declining balance method, the result of column 15 plus column 18 minus column 19, multiplied by column 20 or a lower amount, plus column 12)) | DN9: (24) UCC at the end of the test year (column 10 minus column 23) | DR9: (1) Class | DS9: Class Description | DT9: Working Paper Reference | DU9: (2) Undepreciated capital cost (UCC) at the beginning of the test year | DV9: (3) Cost of acquisitions during the year (new property must be available for use, except CWIP) | DW9: (4) Cost of acquisitions from column 3 that are designated immediate expensing property (DIEP) | DX9: (5) Adjustments and transfers (enter amounts that will reduce the UCC as negatives) | DY9: (6) Amount from column 5 that is assistance received or receivable during the year for a property, subsequent to its disposition | DZ9: (7) Amount from column 5 that is repaid during the year for a property, subsequent to its disposition | EA9: (8) Proceeds of dispositions | EB9: (9) Proceeds of dispositions of the DIEP (enter amount from column 8 that relates to the DIEP reported in column 4) | EC9: (10) UCC (column 2 plus column 3 plus or minus column 5 minus column 8) | ED9: (11) UCC of the DIEP (enter the UCC amount that relates to the DIEP reported in column 4) | EE9: (12) Immediate expensing | EF9: (13) Cost of acquisitions on remainder of Class (column 3 minus column 4 plus column 11 minus column 12) | EG9: (14) Cost of acquisitions from column 13 that are accelerated investment incentive properties (AIIP) or properties included in Classes 54 to 56 | EH9: (15) Remaining UCC (column 10 minus column 12) (if negative, enter "0") | EI9: (16) Proceeds of disposition available to reduce the UCC of AIIP and property included in Classes 54 to 56 (column 8 minus column 9 plus column 6 minus column 13 plus column 14 minus column 7) (if negative, enter "0") | EJ9: (17) Net capital cost additions of AIIP and property included in Classes 54 to 56 acquired during the year (column 14 minus column 16) (if negative, enter "0") | EK9: Relevant factor1 | EL9: (18) UCC adjustment for AIIP and property included in Classes 54 to 56 acquired during the year (column 17 multiplied by the relevant factor) | EM9: (19) UCC adjustment for non-AIIP and property included in Classes 54 to 56 (0.5 multiplied by the result of column 13 minus column 14 minus column 6 plus column 7 minus column 8 plus column 9) (if negative, enter "0") | EN9: (20) CCA Rate % | EO9: (21) Recapture of CCA | EP9: (22) Terminal Loss | EQ9: (23) CCA (for declining balance method, the result of column 15 plus column 18 minus column 19, multiplied by column 20 or a lower amount, plus column 12)) | ER9: (24) UCC at the end of the test year (column 10 minus column 23)
B10: =IF(ISBLANK('B8 Sch 8 CCA Bridge'!B10), "", 'B8 Sch 8 CCA Bridge'!B10) -> 1 | C10: =IF(ISBLANK('B8 Sch 8 CCA Bridge'!C10), "", 'B8 Sch 8 CCA Bridge'!C10) -> Buildings, Distribution System (acq'd post 1987) | D10: B8 | E10: =IF(ISBLANK('B8 Sch 8 CCA Bridge'!AB10), "", 'B8 Sch 8 CCA Bridge'!AB10) -> 620673955.8 | F10: 15943944 | M10: =IFERROR(E10+F10+H10-K10,0) -> 636617899.8 | P10: =+F10-G10+N10-O10 -> 15943944 | Q10: =+P10 -> 15943944 | R10: =IF((M10-O10)<0,0,M10-O10) -> 636617899.8 | S10: =IF((K10-L10+I10-P10+Q10-J10)<0,0,(K10-L10+I10-P10+Q10-J10)) -> 0 | T10: =IF((Q10-S10)<0,0,(Q10-S10)) -> 15943944 | U10: 0.5 | V10: =T10*U10 -> 7971972 | W10: =IF((0.5*(P10-Q10-I10+J10-K10+L10))<0,0,(0.5*(P10-Q10-I10+J10-K10+L10))) -> 0 | X10: 0.04 | AA10: =IF(OR(R10<=0,Z10>0),0,(R10+V10-W10)*X10) -> 25783594.87 | AB10: =IF(M10<0,0,M10-Z10-AA10) -> 610834305 | AF10: =+B10 -> 1 | AG10: =+C10 -> Buildings, Distribution System (acq'd post 1987) | AI10: =+AB10 -> 610834305 | AJ10: 6196093 | AQ10: =IFERROR(AI10+AJ10+AL10-AO10,0) -> 617030398 | AT10: =+AJ10-AK10+AR10-AS10 -> 6196093 | AU10: =+AT10 -> 6196093 | AV10: =IF((AQ10-AS10)<0,0,AQ10-AS10) -> 617030398 | AW10: =IF((AO10-AP10+AM10-AT10+AU10-AN10)<0,0,(AO10-AP10+AM10-AT10+AU10-AN10)) -> 0 | AX10: =IF((AU10-AW10)<0,0,(AU10-AW10)) -> 6196093 | AY10: 0.5 | AZ10: =AX10*AY10 -> 3098046.5 | BA10: =IF((0.5*(AT10-AU10-AM10+AN10-AO10+AP10))<0,0,(0.5*(AT10-AU10-AM10+AN10-AO10+AP10))) -> 0 | BB10: 0.04 | BE10: =IF(OR(AV10<=0,BD10>0),0,(AV10+AZ10-BA10)*BB10) -> 24805137.78 | BF10: =IF(AQ10<0,0,AQ10-BD10-BE10) -> 592225260.2 | BJ10: =+AF10 -> 1 | BK10: =+AG10 -> Buildings, Distribution System (acq'd post 1987) | BM10: =+BF10 -> 592225260.2 | BN10: 8307839 | BU10: =IFERROR(BM10+BN10+BP10-BS10,0) -> 600533099.2 | BX10: =+BN10-BO10+BV10-BW10 -> 8307839 | BY10: =+BX10 -> 8307839 | BZ10: =IF((BU10-BW10)<0,0,BU10-BW10) -> 600533099.2 | CA10: =IF((BS10-BT10+BQ10-BX10+BY10-BR10)<0,0,(BS10-BT10+BQ10-BX10+BY10-BR10)) -> 0 | CB10: =IF((BY10-CA10)<0,0,(BY10-CA10)) -> 8307839 | CC10: 0.5 | CD10: =CB10*CC10 -> 4153919.5 | CE10: =IF((0.5*(BX10-BY10-BQ10+BR10-BS10+BT10))<0,0,(0.5*(BX10-BY10-BQ10+BR10-BS10+BT10))) -> 0 | CF10: 0.04 | CI10: =IF(OR(BZ10<=0,CH10>0),0,(BZ10+CD10-CE10)*CF10) -> 24187480.75 | CJ10: =IF(BU10<0,0,BU10-CH10-CI10) -> 576345618.4 | CN10: =+BJ10 -> 1 | CO10: =+BK10 -> Buildings, Distribution System (acq'd post 1987) | CQ10: =+CJ10 -> 576345618.4 | CR10: 26225284 | CY10: =IFERROR(CQ10+CR10+CT10-CW10,0) -> 602570902.4 | DB10: =+CR10-CS10+CZ10-DA10 -> 26225284 | DC10: =+DB10 -> 26225284 | DD10: =IF((CY10-DA10)<0,0,CY10-DA10) -> 602570902.4 | DE10: =IF((CW10-CX10+CU10-DB10+DC10-CV10)<0,0,(CW10-CX10+CU10-DB10+DC10-CV10)) -> 0 | DF10: =IF((DC10-DE10)<0,0,(DC10-DE10)) -> 26225284 | DG10: 0 | DH10: =DF10*DG10 -> 0 | DI10: =IF((0.5*(DB10-DC10-CU10+CV10-CW10+CX10))<0,0,(0.5*(DB10-DC10-CU10+CV10-CW10+CX10))) -> 0 | DJ10: 0.04 | DM10: =IF(OR(DD10<=0,DL10>0),0,(DD10+DH10-DI10)*DJ10) -> 24102836.1 | DN10: =IF(CY10<0,0,CY10-DL10-DM10) -> 578468066.3 | DR10: =+CN10 -> 1 | DS10: =+CO10 -> Buildings, Distribution System (acq'd post 1987) | DU10: =+DN10 -> 578468066.3 | DV10: 8959291 | EC10: =IFERROR(DU10+DV10+DX10-EA10,0) -> 587427357.3 | EF10: =+DV10-DW10+ED10-EE10 -> 8959291 | EG10: =+EF10 -> 8959291 | EH10: =IF((EC10-EE10)<0,0,EC10-EE10) -> 587427357.3 | EI10: =IF((EA10-EB10+DY10-EF10+EG10-DZ10)<0,0,(EA10-EB10+DY10-EF10+EG10-DZ10)) -> 0 | EJ10: =IF((EG10-EI10)<0,0,(EG10-EI10)) -> 8959291 | EK10: 0 | EL10: =EJ10*EK10 -> 0 | EM10: =IF((0.5*(EF10-EG10-DY10+DZ10-EA10+EB10))<0,0,(0.5*(EF10-EG10-DY10+DZ10-EA10+EB10))) -> 0 | EN10: 0.04 | EQ10: =IF(OR(EH10<=0,EP10>0),0,(EH10+EL10-EM10)*EN10) -> 23497094.29 | ER10: =IF(EC10<0,0,EC10-EP10-EQ10) -> 563930263.1
B11: =IF(ISBLANK('B8 Sch 8 CCA Bridge'!B11), "", 'B8 Sch 8 CCA Bridge'!B11) -> 1b | C11: =IF(ISBLANK('B8 Sch 8 CCA Bridge'!C11), "", 'B8 Sch 8 CCA Bridge'!C11) -> Non-Residential Buildings [Reg. 1100(1)(a.1) election] | D11: B8 | E11: =IF(ISBLANK('B8 Sch 8 CCA Bridge'!AB11), "", 'B8 Sch 8 CCA Bridge'!AB11) -> 62852423.99 | M11: =IFERROR(E11+F11+H11-K11,"") -> 62852423.99 | P11: =+F11-G11+N11-O11 -> 0 | R11: =IF((M11-O11)<0,0,M11-O11) -> 62852423.99 | S11: =IF((K11-L11+I11-P11+Q11-J11)<0,0,(K11-L11+I11-P11+Q11-J11)) -> 0 | T11: =IF((Q11-S11)<0,0,(Q11-S11)) -> 0 | U11: 0.5 | V11: =T11*U11 -> 0 | W11: =IF((0.5*(P11-Q11-I11+J11-K11+L11))<0,0,(0.5*(P11-Q11-I11+J11-K11+L11))) -> 0 | X11: 0.06 | AA11: =IF(OR(R11<=0,Z11>0),0,(R11+V11-W11)*X11) -> 3771145.439 | AB11: =IF(M11<0,0,M11-Z11-AA11) -> 59081278.55 | AF11: =+B11 -> 1b | AG11: =+C11 -> Non-Residential Buildings [Reg. 1100(1)(a.1) election] | AI11: =+AB11 -> 59081278.55 | AQ11: =IFERROR(AI11+AJ11+AL11-AO11,"") -> 59081278.55 | AT11: =+AJ11-AK11+AR11-AS11 -> 0 | AV11: =IF((AQ11-AS11)<0,0,AQ11-AS11) -> 59081278.55 | AW11: =IF((AO11-AP11+AM11-AT11+AU11-AN11)<0,0,(AO11-AP11+AM11-AT11+AU11-AN11)) -> 0 | AX11: =IF((AU11-AW11)<0,0,(AU11-AW11)) -> 0 | AY11: 0.5 | AZ11: =AX11*AY11 -> 0 | BA11: =IF((0.5*(AT11-AU11-AM11+AN11-AO11+AP11))<0,0,(0.5*(AT11-AU11-AM11+AN11-AO11+AP11))) -> 0 | BB11: 0.06 | BE11: =IF(OR(AV11<=0,BD11>0),0,(AV11+AZ11-BA11)*BB11) -> 3544876.713 | BF11: =IF(AQ11<0,0,AQ11-BD11-BE11) -> 55536401.83 | BJ11: =+AF11 -> 1b | BK11: =+AG11 -> Non-Residential Buildings [Reg. 1100(1)(a.1) election] | BM11: =+BF11 -> 55536401.83 | BU11: =IFERROR(BM11+BN11+BP11-BS11,"") -> 55536401.83 | BX11: =+BN11-BO11+BV11-BW11 -> 0 | BZ11: =IF((BU11-BW11)<0,0,BU11-BW11) -> 55536401.83 | CA11: =IF((BS11-BT11+BQ11-BX11+BY11-BR11)<0,0,(BS11-BT11+BQ11-BX11+BY11-BR11)) -> 0 | CB11: =IF((BY11-CA11)<0,0,(BY11-CA11)) -> 0 | CC11: 0.5 | CD11: =CB11*CC11 -> 0 | CE11: =IF((0.5*(BX11-BY11-BQ11+BR11-BS11+BT11))<0,0,(0.5*(BX11-BY11-BQ11+BR11-BS11+BT11))) -> 0 | CF11: 0.06 | CI11: =IF(OR(BZ11<=0,CH11>0),0,(BZ11+CD11-CE11)*CF11) -> 3332184.11 | CJ11: =IF(BU11<0,0,BU11-CH11-CI11) -> 52204217.72 | CN11: =+BJ11 -> 1b | CO11: =+BK11 -> Non-Residential Buildings [Reg. 1100(1)(a.1) election] | CQ11: =+CJ11 -> 52204217.72 | CY11: =IFERROR(CQ11+CR11+CT11-CW11,"") -> 52204217.72 | DB11: =+CR11-CS11+CZ11-DA11 -> 0 | DD11: =IF((CY11-DA11)<0,0,CY11-DA11) -> 52204217.72 | DE11: =IF((CW11-CX11+CU11-DB11+DC11-CV11)<0,0,(CW11-CX11+CU11-DB11+DC11-CV11)) -> 0 | DF11: =IF((DC11-DE11)<0,0,(DC11-DE11)) -> 0 | DG11: 0 | DH11: =DF11*DG11 -> 0 | DI11: =IF((0.5*(DB11-DC11-CU11+CV11-CW11+CX11))<0,0,(0.5*(DB11-DC11-CU11+CV11-CW11+CX11))) -> 0 | DJ11: 0.06 | DM11: =IF(OR(DD11<=0,DL11>0),0,(DD11+DH11-DI11)*DJ11) -> 3132253.063 | DN11: =IF(CY11<0,0,CY11-DL11-DM11) -> 49071964.66 | DR11: =+CN11 -> 1b | DS11: =+CO11 -> Non-Residential Buildings [Reg. 1100(1)(a.1) election] | DU11: =+DN11 -> 49071964.66 | EC11: =IFERROR(DU11+DV11+DX11-EA11,"") -> 49071964.66 | EF11: =+DV11-DW11+ED11-EE11 -> 0 | EH11: =IF((EC11-EE11)<0,0,EC11-EE11) -> 49071964.66 | EI11: =IF((EA11-EB11+DY11-EF11+EG11-DZ11)<0,0,(EA11-EB11+DY11-EF11+EG11-DZ11)) -> 0 | EJ11: =IF((EG11-EI11)<0,0,(EG11-EI11)) -> 0 | EK11: 0 | EL11: =EJ11*EK11 -> 0 | EM11: =IF((0.5*(EF11-EG11-DY11+DZ11-EA11+EB11))<0,0,(0.5*(EF11-EG11-DY11+DZ11-EA11+EB11))) -> 0 | EN11: 0.06 | EQ11: =IF(OR(EH11<=0,EP11>0),0,(EH11+EL11-EM11)*EN11) -> 2944317.88 | ER11: =IF(EC11<0,0,EC11-EP11-EQ11) -> 46127646.78
B12: =IF(ISBLANK('B8 Sch 8 CCA Bridge'!B12), "", 'B8 Sch 8 CCA Bridge'!B12) -> 2 | C12: =IF(ISBLANK('B8 Sch 8 CCA Bridge'!C12), "", 'B8 Sch 8 CCA Bridge'!C12) -> Distribution System (acq'd pre 1988) | D12: B8 | E12: =IF(ISBLANK('B8 Sch 8 CCA Bridge'!AB12), "", 'B8 Sch 8 CCA Bridge'!AB12) -> 56331150.68 | M12: 56331150.68 | P12: 0 | R12: 56331150.68 | S12: 0 | T12: 0 | U12: 0.5 | V12: 0 | W12: 0 | X12: 0.06 | AA12: 3379869.041 | AB12: 52951281.64 | AF12: 2 | AG12: Distribution System (acq'd pre 1988) | AI12: 52951281.64 | AQ12: 52951281.64 | AT12: 0 | AV12: 52951281.64 | AW12: 0 | AX12: 0 | AZ12: 0 | BA12: 0 | BB12: 0.06 | BE12: 3177076.898 | BF12: 49774204.74 | BJ12: 2 | BK12: Distribution System (acq'd pre 1988) | BM12: 49774204.74 | BU12: 49774204.74 | BX12: 0 | BZ12: 49774204.74 | CA12: 0 | CB12: 0 | CC12: 0.5 | CD12: 0 | CE12: 0 | CF12: 0.06 | CI12: 2986452.284 | CJ12: 46787752.46 | CN12: 2 | CO12: Distribution System (acq'd pre 1988) | CQ12: 46787752.46 | CY12: 46787752.46 | DB12: 0 | DD12: 46787752.46 | DE12: 0 | DF12: 0 | DH12: 0 | DI12: 0 | DJ12: 0.06 | DM12: 2807265.147 | DN12: 43980487.31 | DR12: 2 | DS12: Distribution System (acq'd pre 1988) | DU12: 43980487.31 | EC12: 43980487.31 | EF12: 0 | EH12: 43980487.31 | EI12: 0 | EJ12: 0 | EL12: 0 | EM12: 0 | EN12: 0.06 | EQ12: 2638829.239 | ER12: 41341658.07
B13: =IF(ISBLANK('B8 Sch 8 CCA Bridge'!B13), "", 'B8 Sch 8 CCA Bridge'!B13) -> 3 | C13: =IF(ISBLANK('B8 Sch 8 CCA Bridge'!C13), "", 'B8 Sch 8 CCA Bridge'!C13) -> Buildings (acq'd pre 1988) | D13: B8 | E13: =IF(ISBLANK('B8 Sch 8 CCA Bridge'!AB13), "", 'B8 Sch 8 CCA Bridge'!AB13) -> 1814299.09 | M13: 1814299.09 | P13: 0 | R13: 1814299.09 | S13: 0 | T13: 0 | U13: 0.5 | V13: 0 | W13: 0 | X13: 0.05 | AA13: 90714.9545 | AB13: 1723584.136 | AF13: 3 | AG13: Buildings (acq'd pre 1988) | AI13: 1723584.136 | AQ13: 1723584.136 | AT13: 0 | AV13: 1723584.136 | AW13: 0 | AX13: 0 | AZ13: 0 | BA13: 0 | BB13: 0.05 | BE13: 86179.20678 | BF13: 1637404.929 | BJ13: 3 | BK13: Buildings (acq'd pre 1988) | BM13: 1637404.929 | BU13: 1637404.929 | BX13: 0 | BZ13: 1637404.929 | CA13: 0 | CB13: 0 | CC13: 0.5 | CD13: 0 | CE13: 0 | CF13: 0.05 | CI13: 81870.24644 | CJ13: 1555534.682 | CN13: 3 | CO13: Buildings (acq'd pre 1988) | CQ13: 1555534.682 | CY13: 1555534.682 | DB13: 0 | DD13: 1555534.682 | DE13: 0 | DF13: 0 | DH13: 0 | DI13: 0 | DJ13: 0.05 | DM13: 77776.73411 | DN13: 1477757.948 | DR13: 3 | DS13: Buildings (acq'd pre 1988) | DU13: 1477757.948 | EC13: 1477757.948 | EF13: 0 | EH13: 1477757.948 | EI13: 0 | EJ13: 0 | EL13: 0 | EM13: 0 | EN13: 0.05 | EQ13: 73887.89741 | ER13: 1403870.051
B14: =IF(ISBLANK('B8 Sch 8 CCA Bridge'!B14), "", 'B8 Sch 8 CCA Bridge'!B14) -> 6 | C14: =IF(ISBLANK('B8 Sch 8 CCA Bridge'!C14), "", 'B8 Sch 8 CCA Bridge'!C14) -> Certain Buildings; Fences | D14: B8 | E14: =IF(ISBLANK('B8 Sch 8 CCA Bridge'!AB14), "", 'B8 Sch 8 CCA Bridge'!AB14) -> 3312 | M14: 3312 | P14: 0 | R14: 3312 | S14: 0 | T14: 0 | U14: 0.5 | V14: 0 | W14: 0 | X14: 0.1 | AA14: 331.2 | AB14: 2980.8 | AF14: 6 | AG14: Certain Buildings; Fences | AI14: 2980.8 | AQ14: 2980.8 | AT14: 0 | AV14: 2980.8 | AW14: 0 | AX14: 0 | AY14: 0 | AZ14: 0 | BA14: 0 | BB14: 0.1 | BE14: 298.08 | BF14: 2682.72 | BJ14: 6 | BK14: Certain Buildings; Fences | BM14: 2682.72 | BU14: 2682.72 | BX14: 0 | BZ14: 2682.72 | CA14: 0 | CB14: 0 | CC14: 0.5 | CD14: 0 | CE14: 0 | CF14: 0.1 | CI14: 268.272 | CJ14: 2414.448 | CN14: 6 | CO14: Certain Buildings; Fences | CQ14: 2414.448 | CY14: 2414.448 | DB14: 0 | DD14: 2414.448 | DE14: 0 | DF14: 0 | DG14: 0 | DH14: 0 | DI14: 0 | DJ14: 0.1 | DM14: 241.4448 | DN14: 2173.0032 | DR14: 6 | DS14: Certain Buildings; Fences | DU14: 2173.0032 | EC14: 2173.0032 | EF14: 0 | EH14: 2173.0032 | EI14: 0 | EJ14: 0 | EK14: 0 | EL14: 0 | EM14: 0 | EN14: 0.1 | EQ14: 217.30032 | ER14: 1955.70288
B15: =IF(ISBLANK('B8 Sch 8 CCA Bridge'!B15), "", 'B8 Sch 8 CCA Bridge'!B15) -> 8 | C15: =IF(ISBLANK('B8 Sch 8 CCA Bridge'!C15), "", 'B8 Sch 8 CCA Bridge'!C15) -> General Office Equipment, Furniture, Fixtures | D15: B8 | E15: =IF(ISBLANK('B8 Sch 8 CCA Bridge'!AB15), "", 'B8 Sch 8 CCA Bridge'!AB15) -> 11717373.83 | F15: 2727806 | M15: 14445179.83 | P15: 2727806 | Q15: =+P15 -> 2727806 | R15: 14445179.83 | S15: 0 | T15: 2727806 | U15: 0.5 | V15: 1363903 | W15: 0 | X15: 0.2 | AA15: 3161816.567 | AB15: 11283363.27 | AF15: 8 | AG15: General Office Equipment, Furniture, Fixtures | AI15: 11283363.27 | AJ15: 2659968 | AQ15: 13943331.27 | AT15: 2659968 | AU15: =+AT15 -> 2659968 | AV15: 13943331.27 | AW15: 0 | AX15: 2659968 | AY15: 0.5 | AZ15: 1329984 | BA15: 0 | BB15: 0.2 | BE15: 3054663.053 | BF15: 10888668.21 | BJ15: 8 | BK15: General Office Equipment, Furniture, Fixtures | BM15: 10888668.21 | BN15: 2748793 | BU15: 13637461.21 | BX15: 2748793 | BY15: =+BX15 -> 2748793 | BZ15: 13637461.21 | CA15: 0 | CB15: 2748793 | CC15: 0.5 | CD15: 1374396.5 | CE15: 0 | CF15: 0.2 | CI15: 3002371.543 | CJ15: 10635089.67 | CN15: 8 | CO15: General Office Equipment, Furniture, Fixtures | CQ15: 10635089.67 | CR15: 2572744.1 | CY15: 13207833.77 | DB15: 2572744.1 | DC15: =+DB15 -> 2572744.1 | DD15: 13207833.77 | DE15: 0 | DF15: 2572744.1 | DG15: 0 | DH15: 0 | DI15: 0 | DJ15: 0.2 | DM15: 2641566.754 | DN15: 10566267.02 | DR15: 8 | DS15: General Office Equipment, Furniture, Fixtures | DU15: 10566267.02 | DV15: 2533075 | EC15: 13099342.02 | EF15: 2533075 | EG15: =+EF15 -> 2533075 | EH15: 13099342.02 | EI15: 0 | EJ15: 2533075 | EK15: 0 | EL15: 0 | EM15: 0 | EN15: 0.2 | EQ15: 2619868.403 | ER15: 10479473.61
B16: =IF(ISBLANK('B8 Sch 8 CCA Bridge'!B16), "", 'B8 Sch 8 CCA Bridge'!B16) -> 10 | C16: =IF(ISBLANK('B8 Sch 8 CCA Bridge'!C16), "", 'B8 Sch 8 CCA Bridge'!C16) -> Motor Vehicles, Fleet | D16: B8 | E16: =IF(ISBLANK('B8 Sch 8 CCA Bridge'!AB16), "", 'B8 Sch 8 CCA Bridge'!AB16) -> 13989945.61 | F16: 15937368 | K16: 676790 | M16: 29250523.61 | P16: 15937368 | Q16: =+P16 -> 15937368 | R16: 29250523.61 | S16: 676790 | T16: 15260578 | U16: 0.5 | V16: 7630289 | W16: 0 | X16: 0.3 | AA16: =IF(OR(R16<=0,Z16>0),0,(R16+V16-W16)*X16) -> 11064243.78 | AB16: 18186279.83 | AF16: 10 | AG16: Motor Vehicles, Fleet | AI16: 18186279.83 | AJ16: 23911599 | AO16: 676790 | AQ16: 41421088.83 | AT16: 23911599 | AU16: =+AT16 -> 23911599 | AV16: 41421088.83 | AW16: 676790 | AX16: 23234809 | AY16: 0.5 | AZ16: 11617404.5 | BA16: 0 | BB16: 0.3 | BE16: =IF(OR(AV16<=0,BD16>0),0,(AV16+AZ16-BA16)*BB16) -> 15911548 | BF16: 25509540.83 | BJ16: 10 | BK16: Motor Vehicles, Fleet | BM16: 25509540.83 | BN16: 19455659 | BS16: 676790 | BU16: 44288409.83 | BX16: 19455659 | BY16: =+BX16 -> 19455659 | BZ16: 44288409.83 | CA16: 676790 | CB16: 18778869 | CC16: 0.5 | CD16: 9389434.5 | CE16: 0 | CF16: 0.3 | CI16: =IF(OR(BZ16<=0,CH16>0),0,(BZ16+CD16-CE16)*CF16) -> 16103353.3 | CJ16: 28185056.53 | CN16: 10 | CO16: Motor Vehicles, Fleet | CQ16: 28185056.53 | CR16: 18782672.97 | CW16: 676790 | CY16: 46290939.5 | DB16: 18782672.97 | DC16: =+DB16 -> 18782672.97 | DD16: 46290939.5 | DE16: 676790 | DF16: 18105882.97 | DG16: 0 | DH16: 0 | DI16: 0 | DJ16: 0.3 | DM16: =IF(OR(DD16<=0,DL16>0),0,(DD16+DH16-DI16)*DJ16) -> 13887281.85 | DN16: 32403657.65 | DR16: 10 | DS16: Motor Vehicles, Fleet | DU16: 32403657.65 | DV16: 18733672 | EA16: 676790 | EC16: 50460539.65 | EF16: 18733672 | EG16: =+EF16 -> 18733672 | EH16: 50460539.65 | EI16: 676790 | EJ16: 18056882 | EK16: 0 | EL16: 0 | EM16: 0 | EN16: 0.3 | EQ16: =IF(OR(EH16<=0,EP16>0),0,(EH16+EL16-EM16)*EN16) -> 15138161.9 | ER16: 35322377.76
B17: =IF(ISBLANK('B8 Sch 8 CCA Bridge'!B17), "", 'B8 Sch 8 CCA Bridge'!B17) -> 10.1 | C17: =IF(ISBLANK('B8 Sch 8 CCA Bridge'!C17), "", 'B8 Sch 8 CCA Bridge'!C17) -> Certain Automobiles | D17: B8 | E17: =IF(ISBLANK('B8 Sch 8 CCA Bridge'!AB17), "", 'B8 Sch 8 CCA Bridge'!AB17) -> 202.34536 | M17: 202.34536 | P17: 0 | R17: 202.34536 | S17: 0 | T17: 0 | U17: 0.5 | V17: 0 | W17: 0 | X17: 0.3 | AA17: 60.703608 | AB17: 141.641752 | AF17: 10.1 | AG17: Certain Automobiles | AI17: 141.641752 | AQ17: 141.641752 | AT17: 0 | AV17: 141.641752 | AW17: 0 | AX17: 0 | AY17: 0.5 | AZ17: 0 | BA17: 0 | BB17: 0.3 | BE17: =IF(OR(AV17<=0,BD17>0),0,(AV17+AZ17-BA17)*BB17) -> 42.4925256 | BF17: 99.1492264 | BJ17: 10.1 | BK17: Certain Automobiles | BM17: 99.1492264 | BU17: 99.1492264 | BX17: 0 | BZ17: 99.1492264 | CA17: 0 | CB17: 0 | CC17: 0.5 | CD17: 0 | CE17: 0 | CF17: 0.3 | CI17: =IF(OR(BZ17<=0,CH17>0),0,(BZ17+CD17-CE17)*CF17) -> 29.74476792 | CJ17: 69.40445848 | CN17: 10.1 | CO17: Certain Automobiles | CQ17: 69.40445848 | CY17: 69.40445848 | DB17: 0 | DD17: 69.40445848 | DE17: 0 | DF17: 0 | DG17: 0 | DH17: 0 | DI17: 0 | DJ17: 0.3 | DM17: =IF(OR(DD17<=0,DL17>0),0,(DD17+DH17-DI17)*DJ17) -> 20.82133754 | DN17: 48.58312094 | DR17: 10.1 | DS17: Certain Automobiles | DU17: 48.58312094 | EC17: 48.58312094 | EF17: 0 | EH17: 48.58312094 | EI17: 0 | EJ17: 0 | EK17: 0 | EL17: 0 | EM17: 0 | EN17: 0.3 | EQ17: =IF(OR(EH17<=0,EP17>0),0,(EH17+EL17-EM17)*EN17) -> 14.57493628 | ER17: 34.00818466
B18: =IF(ISBLANK('B8 Sch 8 CCA Bridge'!B18), "", 'B8 Sch 8 CCA Bridge'!B18) -> 12 | C18: =IF(ISBLANK('B8 Sch 8 CCA Bridge'!C18), "", 'B8 Sch 8 CCA Bridge'!C18) -> Computer Application Software (Non-Systems) | D18: B8 | E18: =IF(ISBLANK('B8 Sch 8 CCA Bridge'!AB18), "", 'B8 Sch 8 CCA Bridge'!AB18) -> 0 | F18: 41242771 | M18: 41242771 | P18: 41242771 | Q18: =+P18 -> 41242771 | R18: 41242771 | S18: 0 | T18: 41242771 | V18: 0 | W18: 0 | X18: 1 | AA18: 41242771 | AB18: 0 | AF18: 12 | AG18: Computer Application Software (Non-Systems) | AI18: 0 | AJ18: 25490099 | AQ18: 25490099 | AT18: 25490099 | AU18: =+AT18 -> 25490099 | AV18: 25490099 | AW18: 0 | AX18: 25490099 | AZ18: 0 | BA18: 0 | BB18: 1 | BE18: 25490099 | BF18: 0 | BJ18: 12 | BK18: Computer Application Software (Non-Systems) | BM18: 0 | BN18: 50478914 | BU18: 50478914 | BX18: 50478914 | BY18: =+BX18 -> 50478914 | BZ18: 50478914 | CA18: 0 | CB18: 50478914 | CD18: 0 | CE18: 0 | CF18: 1 | CI18: 50478914 | CJ18: 0 | CN18: 12 | CO18: Computer Application Software (Non-Systems) | CQ18: 0 | CR18: 16149914 | CY18: 16149914 | DB18: 16149914 | DC18: =+DB18 -> 16149914 | DD18: 16149914 | DE18: 0 | DF18: 16149914 | DG18: 0 | DH18: 0 | DI18: 0 | DJ18: 1 | DM18: 16149914 | DN18: 0 | DR18: 12 | DS18: Computer Application Software (Non-Systems) | DU18: 0 | DV18: 15735892 | EC18: 15735892 | EF18: 15735892 | EG18: =+EF18 -> 15735892 | EH18: 15735892 | EI18: 0 | EJ18: 15735892 | EK18: 0 | EL18: 0 | EM18: 0 | EN18: 1 | EQ18: 15735892 | ER18: 0
B19: 13 1 | C19: =IF(ISBLANK('B8 Sch 8 CCA Bridge'!C19), "", 'B8 Sch 8 CCA Bridge'!C19) -> Lease # 1 | D19: B8 | E19: =IF(ISBLANK('B8 Sch 8 CCA Bridge'!AB19), "", 'B8 Sch 8 CCA Bridge'!AB19) -> 473169 | M19: 473169 | P19: 0 | R19: 473169 | S19: 0 | T19: 0 | V19: 0 | W19: 0 | X19: NA | AA19: 36882 | AB19: 436287 | AF19: 13 1 | AG19: Lease # 1 | AI19: 436287 | AQ19: 436287 | AT19: 0 | AV19: 436287 | AW19: 0 | AX19: 0 | AZ19: 0 | BA19: 0 | BB19: NA | BE19: 36882 | BF19: 399405 | BJ19: 13 1 | BK19: Lease # 1 | BM19: 399405 | BU19: 399405 | BX19: 0 | BZ19: 399405 | CA19: 0 | CB19: 0 | CD19: 0 | CE19: 0 | CF19: NA | CI19: 36882 | CJ19: 362523 | CN19: 13 1 | CO19: Lease # 1 | CQ19: 362523 | CY19: 362523 | DB19: 0 | DD19: 362523 | DE19: 0 | DF19: 0 | DG19: 0 | DH19: 0 | DI19: 0 | DJ19: NA | DM19: 36882 | DN19: 325641 | DR19: 13 1 | DS19: Lease # 1 | DU19: 325641 | EC19: 325641 | EF19: 0 | EH19: 325641 | EI19: 0 | EJ19: 0 | EK19: 0 | EL19: 0 | EM19: 0 | EN19: NA | EQ19: 36882 | ER19: 288759
B20: 13 2 | C20: =IF(ISBLANK('B8 Sch 8 CCA Bridge'!C20), "", 'B8 Sch 8 CCA Bridge'!C20) -> Lease # 2 | D20: B8 | E20: =IF(ISBLANK('B8 Sch 8 CCA Bridge'!AB20), "", 'B8 Sch 8 CCA Bridge'!AB20) -> 106157 | M20: 106157 | P20: 0 | R20: 106157 | S20: 0 | T20: 0 | V20: 0 | W20: 0 | X20: NA | AA20: 32143 | AB20: 74014 | AF20: 13 2 | AG20: Lease # 2 | AI20: 74014 | AQ20: 74014 | AT20: 0 | AV20: 74014 | AW20: 0 | AX20: 0 | AZ20: 0 | BA20: 0 | BB20: NA | BE20: 32143 | BF20: 41871 | BJ20: 13 2 | BK20: Lease # 2 | BM20: 41871 | BU20: 41871 | BX20: 0 | BZ20: 41871 | CA20: 0 | CB20: 0 | CD20: 0 | CE20: 0 | CF20: NA | CI20: 32143 | CJ20: 9728 | CN20: 13 2 | CO20: Lease # 2 | CQ20: 9728 | CY20: 9728 | DB20: 0 | DD20: 9728 | DE20: 0 | DF20: 0 | DG20: 0 | DH20: 0 | DI20: 0 | DJ20: NA | DM20: 9728 | DN20: 0 | DR20: 13 2 | DS20: Lease # 2 | DU20: 0 | EC20: 0 | EF20: 0 | EH20: 0 | EI20: 0 | EJ20: 0 | EK20: 0 | EL20: 0 | EM20: 0 | EN20: NA | EQ20: 0 | ER20: 0
B21: 13 3 | C21: =IF(ISBLANK('B8 Sch 8 CCA Bridge'!C21), "", 'B8 Sch 8 CCA Bridge'!C21) -> Lease # 3 | D21: B8 | E21: =IF(ISBLANK('B8 Sch 8 CCA Bridge'!AB21), "", 'B8 Sch 8 CCA Bridge'!AB21) -> 0.3 | M21: 0.3 | P21: 0 | R21: 0.3 | S21: 0 | T21: 0 | V21: 0 | W21: 0 | X21: NA | AA21: 0 | AB21: 0.3 | AF21: 13 3 | AG21: Lease # 3 | AI21: 0.3 | AQ21: 0.3 | AT21: 0 | AV21: 0.3 | AW21: 0 | AX21: 0 | AZ21: 0 | BA21: 0 | BB21: NA | BE21: 0 | BF21: 0.3 | BJ21: 13 3 | BK21: Lease # 3 | BM21: 0.3 | BU21: 0.3 | BX21: 0 | BZ21: 0.3 | CA21: 0 | CB21: 0 | CD21: 0 | CE21: 0 | CF21: NA | CI21: 0 | CJ21: 0.3 | CN21: 13 3 | CO21: Lease # 3 | CQ21: 0.3 | CY21: 0.3 | DB21: 0 | DD21: 0.3 | DE21: 0 | DF21: 0 | DG21: 0 | DH21: 0 | DI21: 0 | DJ21: NA | DM21: 0 | DN21: 0.3 | DR21: 13 3 | DS21: Lease # 3 | DU21: 0.3 | EC21: 0.3 | EF21: 0 | EH21: 0.3 | EI21: 0 | EJ21: 0 | EK21: 0 | EL21: 0 | EM21: 0 | EN21: NA | EQ21: 0 | ER21: 0.3
B22: 13 4 | C22: =IF(ISBLANK('B8 Sch 8 CCA Bridge'!C22), "", 'B8 Sch 8 CCA Bridge'!C22) -> Lease # 4 | D22: B8 | E22: =IF(ISBLANK('B8 Sch 8 CCA Bridge'!AB22), "", 'B8 Sch 8 CCA Bridge'!AB22) -> 7551 | M22: 7551 | P22: 0 | R22: 7551 | S22: 0 | T22: 0 | V22: 0 | W22: 0 | X22: NA | AA22: 7551 | AB22: 0 | AF22: 13 4 | AG22: Lease # 4 | AI22: 0 | AQ22: 0 | AT22: 0 | AV22: 0 | AW22: 0 | AX22: 0 | AZ22: 0 | BA22: 0 | BB22: NA | BE22: 0 | BF22: 0 | BJ22: 13 4 | BK22: Lease # 4 | BM22: 0 | BU22: 0 | BX22: 0 | BZ22: 0 | CA22: 0 | CB22: 0 | CD22: 0 | CE22: 0 | CF22: NA | CI22: 0 | CJ22: 0 | CN22: 13 4 | CO22: Lease # 4 | CQ22: 0 | CY22: 0 | DB22: 0 | DD22: 0 | DE22: 0 | DF22: 0 | DG22: 0 | DH22: 0 | DI22: 0 | DJ22: NA | DM22: 0 | DN22: 0 | DR22: 13 4 | DS22: Lease # 4 | DU22: 0 | EC22: 0 | EF22: 0 | EH22: 0 | EI22: 0 | EJ22: 0 | EK22: 0 | EL22: 0 | EM22: 0 | EN22: NA | EQ22: 0 | ER22: 0
B23: =IF(ISBLANK('B8 Sch 8 CCA Bridge'!B23), "", 'B8 Sch 8 CCA Bridge'!B23) -> 14 | C23: =IF(ISBLANK('B8 Sch 8 CCA Bridge'!C23), "", 'B8 Sch 8 CCA Bridge'!C23) -> Limited Period Patents, Franchises, Concessions or Licences | D23: B8 | E23: =IF(ISBLANK('B8 Sch 8 CCA Bridge'!AB23), "", 'B8 Sch 8 CCA Bridge'!AB23) -> 38207609.9 | F23: 25000034 | M23: 63207643.9 | P23: 25000034 | Q23: =+P23 -> 25000034 | R23: 63207643.9 | S23: 0 | T23: 25000034 | V23: 0 | W23: 0 | X23: NA | AA23: 4100852.325 | AB23: 59106791.57 | AF23: 14 | AG23: Limited Period Patents, Franchises, Concessions or Licences | AI23: 59106791.57 | AQ23: 59106791.57 | AT23: 0 | AV23: 59106791.57 | AW23: 0 | AX23: 0 | AZ23: 0 | BA23: 0 | BB23: NA | BE23: 4735161 | BF23: 54371630.57 | BJ23: 14 | BK23: Limited Period Patents, Franchises, Concessions or Licences | BM23: 54371630.57 | BU23: 54371630.57 | BX23: 0 | BZ23: 54371630.57 | CA23: 0 | CB23: 0 | CC23: 0.5 | CD23: 0 | CE23: 0 | CF23: NA | CI23: 4731394.181 | CJ23: 49640236.39 | CN23: 14 | CO23: Limited Period Patents, Franchises, Concessions or Licences | CQ23: 49640236.39 | CY23: 49640236.39 | DB23: 0 | DD23: 49640236.39 | DE23: 0 | DF23: 0 | DG23: 0 | DH23: 0 | DI23: 0 | DJ23: NA | DM23: 4731394 | DN23: 44908842.39 | DR23: 14 | DS23: Limited Period Patents, Franchises, Concessions or Licences | DU23: 44908842.39 | DV23: 50916033 | EC23: 95824875.39 | EF23: 50916033 | EG23: =+EF23 -> 50916033 | EH23: 95824875.39 | EI23: 0 | EJ23: 50916033 | EK23: 0 | EL23: 0 | EM23: 0 | EN23: NA | EQ23: 5753202.247 | ER23: 90071673.14
B24: =IF(ISBLANK('B8 Sch 8 CCA Bridge'!B24), "", 'B8 Sch 8 CCA Bridge'!B24) -> 14.1 | C24: Eligible Capital Property (acq'd pre Jan 1, 2017) | D24: B8 | E24: =IF(ISBLANK('B8 Sch 8 CCA Bridge'!AB24), "", 'B8 Sch 8 CCA Bridge'!AB24) -> 11608711.66 | M24: 11608711.66 | P24: 0 | R24: =IF((M24-O24)<0,0,M24-O24) -> 11608711.66 | S24: =IF((K24-L24+I24-P24+Q24-J24)<0,0,(K24-L24+I24-P24+Q24-J24)) -> 0 | T24: 0 | V24: 0 | W24: 0 | X24: 0.07 | AA24: 812609.8163 | AB24: 10796101.85 | AF24: 14.1 | AG24: Eligible Capital Property (acq'd pre Jan 1, 2017) | AI24: 10796101.85 | AQ24: 10796101.85 | AT24: 0 | AV24: =IF((AQ24-AS24)<0,0,AQ24-AS24) -> 10796101.85 | AW24: =IF((AO24-AP24+AM24-AT24+AU24-AN24)<0,0,(AO24-AP24+AM24-AT24+AU24-AN24)) -> 0 | AX24: 0 | AY24: 0.5 | AZ24: 0 | BA24: 0 | BB24: 0.07 | BE24: =IF(OR(AV24<=0,BD24>0),0,(AV24+AZ24-BA24)*BB24) -> 755727.1292 | BF24: 10040374.72 | BJ24: 14.1 | BK24: Eligible Capital Property (acq'd pre Jan 1, 2017) | BM24: 10040374.72 | BU24: 10040374.72 | BX24: 0 | BZ24: =IF((BU24-BW24)<0,0,BU24-BW24) -> 10040374.72 | CA24: =IF((BS24-BT24+BQ24-BX24+BY24-BR24)<0,0,(BS24-BT24+BQ24-BX24+BY24-BR24)) -> 0 | CB24: 0 | CD24: 0 | CE24: 0 | CF24: 0.07 | CI24: =IF(OR(BZ24<=0,CH24>0),0,(BZ24+CD24-CE24)*CF24) -> 702826.2301 | CJ24: 9337548.486 | CN24: 14.1 | CO24: Eligible Capital Property (acq'd pre Jan 1, 2017) | CQ24: 9337548.486 | CY24: 9337548.486 | DB24: 0 | DD24: =IF((CY24-DA24)<0,0,CY24-DA24) -> 9337548.486 | DE24: =IF((CW24-CX24+CU24-DB24+DC24-CV24)<0,0,(CW24-CX24+CU24-DB24+DC24-CV24)) -> 0 | DF24: 0 | DH24: 0 | DI24: 0 | DJ24: 0.07 | DM24: =IF(OR(DD24<=0,DL24>0),0,(DD24+DH24-DI24)*DJ24) -> 653628.394 | DN24: 8683920.092 | DR24: 14.1 | DS24: Eligible Capital Property (acq'd pre Jan 1, 2017) | DU24: 8683920.092 | EC24: 8683920.092 | EF24: 0 | EH24: =IF((EC24-EE24)<0,0,EC24-EE24) -> 8683920.092 | EI24: =IF((EA24-EB24+DY24-EF24+EG24-DZ24)<0,0,(EA24-EB24+DY24-EF24+EG24-DZ24)) -> 0 | EJ24: 0 | EL24: 0 | EM24: 0 | EN24: 0.07 | EQ24: =IF(OR(EH24<=0,EP24>0),0,(EH24+EL24-EM24)*EN24) -> 607874.4064 | ER24: 8076045.685
B25: =IF(ISBLANK('B8 Sch 8 CCA Bridge'!B25), "", 'B8 Sch 8 CCA Bridge'!B25) -> 14.1 | C25: Eligible Capital Property (acq'd post Jan 1, 2017) | D25: B8 | E25: =IF(ISBLANK('B8 Sch 8 CCA Bridge'!AB25), "", 'B8 Sch 8 CCA Bridge'!AB25) -> 5153050.357 | F25: 140937 | M25: 5293987.357 | P25: 140937 | Q25: =+P25 -> 140937 | R25: 5293987.357 | S25: 0 | T25: 140937 | U25: 0.5 | V25: 70468.5 | W25: 0 | X25: 0.05 | AA25: 268222.7928 | AB25: 5025764.564 | AF25: 14.1 | AG25: Eligible Capital Property (acq'd post Jan 1, 2017) | AI25: 5025764.564 | AJ25: 146315 | AQ25: 5172079.564 | AT25: 146315 | AU25: =+AT25 -> 146315 | AV25: =IF((AQ25-AS25)<0,0,AQ25-AS25) -> 5172079.564 | AW25: =IF((AO25-AP25+AM25-AT25+AU25-AN25)<0,0,(AO25-AP25+AM25-AT25+AU25-AN25)) -> 0 | AX25: 146315 | AY25: 0.5 | AZ25: 73157.5 | BA25: 0 | BB25: 0.05 | BE25: 262261.8532 | BF25: 4909817.711 | BJ25: 14.1 | BK25: Eligible Capital Property (acq'd post Jan 1, 2017) | BM25: 4909817.711 | BN25: 146530 | BU25: 5056347.711 | BX25: 146530 | BY25: =+BX25 -> 146530 | BZ25: =IF((BU25-BW25)<0,0,BU25-BW25) -> 5056347.711 | CA25: =IF((BS25-BT25+BQ25-BX25+BY25-BR25)<0,0,(BS25-BT25+BQ25-BX25+BY25-BR25)) -> 0 | CB25: 146530 | CC25: 0.5 | CD25: 73265 | CE25: 0 | CF25: 0.05 | CI25: 256480.6355 | CJ25: 4799867.075 | CN25: 14.1 | CO25: Eligible Capital Property (acq'd post Jan 1, 2017) | CQ25: 4799867.075 | CR25: 149147.6568 | CY25: 4949014.732 | DB25: 149147.6568 | DC25: =+DB25 -> 149147.6568 | DD25: =IF((CY25-DA25)<0,0,CY25-DA25) -> 4949014.732 | DE25: =IF((CW25-CX25+CU25-DB25+DC25-CV25)<0,0,(CW25-CX25+CU25-DB25+DC25-CV25)) -> 0 | DF25: 149147.6568 | DG25: 0 | DH25: 0 | DI25: 0 | DJ25: 0.05 | DM25: 247450.7366 | DN25: 4701563.995 | DR25: 14.1 | DS25: Eligible Capital Property (acq'd post Jan 1, 2017) | DU25: 4701563.995 | DV25: 151447 | EC25: 4853010.995 | EF25: 151447 | EG25: =+EF25 -> 151447 | EH25: =IF((EC25-EE25)<0,0,EC25-EE25) -> 4853010.995 | EI25: =IF((EA25-EB25+DY25-EF25+EG25-DZ25)<0,0,(EA25-EB25+DY25-EF25+EG25-DZ25)) -> 0 | EJ25: 151447 | EK25: 0 | EL25: 0 | EM25: 0 | EN25: 0.05 | EQ25: 242650.5498 | ER25: 4610360.446
B26: =IF(ISBLANK('B8 Sch 8 CCA Bridge'!B26), "", 'B8 Sch 8 CCA Bridge'!B26) -> 17 | C26: =IF(ISBLANK('B8 Sch 8 CCA Bridge'!C26), "", 'B8 Sch 8 CCA Bridge'!C26) -> Elec. Generation Equip. (Non-Bldng, acq'd post Feb 27/00); Roads, Lots, Storage | D26: B8 | E26: =IF(ISBLANK('B8 Sch 8 CCA Bridge'!AB26), "", 'B8 Sch 8 CCA Bridge'!AB26) -> 441911.1151 | M26: 441911.1151 | P26: 0 | Q26: =+P26 -> 0 | R26: 441911.1151 | S26: 0 | T26: 0 | U26: 0.5 | V26: 0 | W26: 0 | X26: 0.08 | AA26: 35352.88921 | AB26: 406558.2259 | AF26: 17 | AG26: Elec. Generation Equip. (Non-Bldng, acq'd post Feb 27/00); Roads, Lots, Storage | AI26: 406558.2259 | AQ26: 406558.2259 | AT26: 0 | AV26: 406558.2259 | AW26: 0 | AX26: 0 | AY26: 0.5 | AZ26: 0 | BA26: 0 | BB26: 0.08 | BE26: 32524.65807 | BF26: 374033.5678 | BJ26: 17 | BK26: Elec. Generation Equip. (Non-Bldng, acq'd post Feb 27/00); Roads, Lots, Storage | BM26: 374033.5678 | BU26: 374033.5678 | BX26: 0 | BZ26: 374033.5678 | CA26: 0 | CB26: 0 | CC26: 0.5 | CD26: 0 | CE26: 0 | CF26: 0.08 | CI26: 29922.68543 | CJ26: 344110.8824 | CN26: 17 | CO26: Elec. Generation Equip. (Non-Bldng, acq'd post Feb 27/00); Roads, Lots, Storage | CQ26: 344110.8824 | CY26: 344110.8824 | DB26: 0 | DD26: 344110.8824 | DE26: 0 | DF26: 0 | DG26: 0 | DH26: 0 | DI26: 0 | DJ26: 0.08 | DM26: 27528.87059 | DN26: 316582.0118 | DR26: 17 | DS26: Elec. Generation Equip. (Non-Bldng, acq'd post Feb 27/00); Roads, Lots, Storage | DU26: 316582.0118 | EC26: 316582.0118 | EF26: 0 | EH26: 316582.0118 | EI26: 0 | EJ26: 0 | EK26: 0 | EL26: 0 | EM26: 0 | EN26: 0.08 | EQ26: 25326.56094 | ER26: 291255.4509
B27: =IF(ISBLANK('B8 Sch 8 CCA Bridge'!B27), "", 'B8 Sch 8 CCA Bridge'!B27) -> 42 | C27: =IF(ISBLANK('B8 Sch 8 CCA Bridge'!C27), "", 'B8 Sch 8 CCA Bridge'!C27) -> Fibre Optic Cable | D27: B8 | E27: =IF(ISBLANK('B8 Sch 8 CCA Bridge'!AB27), "", 'B8 Sch 8 CCA Bridge'!AB27) -> 48.4 | M27: 48.4 | P27: 0 | R27: 48.4 | S27: 0 | T27: 0 | U27: 0.5 | V27: 0 | W27: 0 | X27: 0.12 | AA27: 5.808 | AB27: 42.592 | AF27: 42 | AG27: Fibre Optic Cable | AI27: 42.592 | AQ27: 42.592 | AT27: 0 | AV27: 42.592 | AW27: 0 | AX27: 0 | AY27: 0.5 | AZ27: 0 | BA27: 0 | BB27: 0.12 | BE27: 5.11104 | BF27: 37.48096 | BJ27: 42 | BK27: Fibre Optic Cable | BM27: 37.48096 | BU27: 37.48096 | BX27: 0 | BZ27: 37.48096 | CA27: 0 | CB27: 0 | CC27: 0.5 | CD27: 0 | CE27: 0 | CF27: 0.12 | CI27: 4.4977152 | CJ27: 32.9832448 | CN27: 42 | CO27: Fibre Optic Cable | CQ27: 32.9832448 | CY27: 32.9832448 | DB27: 0 | DD27: 32.9832448 | DE27: 0 | DF27: 0 | DG27: 0 | DH27: 0 | DI27: 0 | DJ27: 0.12 | DM27: 3.957989376 | DN27: 29.02525542 | DR27: 42 | DS27: Fibre Optic Cable | DU27: 29.02525542 | EC27: 29.02525542 | EF27: 0 | EH27: 29.02525542 | EI27: 0 | EJ27: 0 | EK27: 0 | EL27: 0 | EM27: 0 | EN27: 0.12 | EQ27: 3.483030651 | ER27: 25.54222477
B28: =IF(ISBLANK('B8 Sch 8 CCA Bridge'!B28), "", 'B8 Sch 8 CCA Bridge'!B28) -> 43.1 | C28: =IF(ISBLANK('B8 Sch 8 CCA Bridge'!C28), "", 'B8 Sch 8 CCA Bridge'!C28) -> Certain Clean Energy/Energy-Efficient Generation Equipment | D28: B8 | E28: =IF(ISBLANK('B8 Sch 8 CCA Bridge'!AB28), "", 'B8 Sch 8 CCA Bridge'!AB28) -> 2062.2 | M28: 2062.2 | P28: 0 | R28: 2062.2 | S28: 0 | T28: 0 | U28: 0.5 | V28: 0 | W28: 0 | X28: 0.3 | AA28: 618.66 | AB28: 1443.54 | AF28: 43.1 | AG28: Certain Clean Energy/Energy-Efficient Generation Equipment | AI28: 1443.54 | AQ28: 1443.54 | AT28: 0 | AV28: 1443.54 | AW28: 0 | AX28: 0 | AY28: 1.5 | AZ28: 0 | BA28: 0 | BB28: 0.3 | BE28: 433.062 | BF28: 1010.478 | BJ28: 43.1 | BK28: Certain Clean Energy/Energy-Efficient Generation Equipment | BM28: 1010.478 | BU28: 1010.478 | BX28: 0 | BZ28: 1010.478 | CA28: 0 | CB28: 0 | CC28: 0.5 | CD28: 0 | CE28: 0 | CF28: 0.3 | CI28: 303.1434 | CJ28: 707.3346 | CN28: 43.1 | CO28: Certain Clean Energy/Energy-Efficient Generation Equipment | CQ28: 707.3346 | CY28: 707.3346 | DB28: 0 | DD28: 707.3346 | DE28: 0 | DF28: 0 | DG28: 1.5 | DH28: 0 | DI28: 0 | DJ28: 0.3 | DM28: 212.20038 | DN28: 495.13422 | DR28: 43.1 | DS28: Certain Clean Energy/Energy-Efficient Generation Equipment | DU28: 495.13422 | EC28: 495.13422 | EF28: 0 | EH28: 495.13422 | EI28: 0 | EJ28: 0 | EK28: 1.5 | EL28: 0 | EM28: 0 | EN28: 0.3 | EQ28: 148.540266 | ER28: 346.593954
B29: =IF(ISBLANK('B8 Sch 8 CCA Bridge'!B29), "", 'B8 Sch 8 CCA Bridge'!B29) -> 43.2 | C29: =IF(ISBLANK('B8 Sch 8 CCA Bridge'!C29), "", 'B8 Sch 8 CCA Bridge'!C29) -> Certain Clean Energy/Energy-Efficient Generation Equipment | D29: B8 | E29: =IF(ISBLANK('B8 Sch 8 CCA Bridge'!AB29), "", 'B8 Sch 8 CCA Bridge'!AB29) -> 16383.225 | M29: 16383.225 | P29: 0 | R29: 16383.225 | S29: 0 | T29: 0 | U29: 0.5 | V29: 0 | W29: 0 | X29: 0.5 | AA29: 8191.6125 | AB29: 8191.6125 | AF29: 43.2 | AG29: Certain Clean Energy/Energy-Efficient Generation Equipment | AI29: 8191.6125 | AQ29: 8191.6125 | AT29: 0 | AV29: 8191.6125 | AW29: 0 | AX29: 0 | AY29: 0.5 | AZ29: 0 | BA29: 0 | BB29: 0.5 | BE29: 4095.80625 | BF29: 4095.80625 | BJ29: 43.2 | BK29: Certain Clean Energy/Energy-Efficient Generation Equipment | BM29: 4095.80625 | BU29: 4095.80625 | BX29: 0 | BZ29: 4095.80625 | CA29: 0 | CB29: 0 | CC29: 0.5 | CD29: 0 | CE29: 0 | CF29: 0.5 | CI29: 2047.903125 | CJ29: 2047.903125 | CN29: 43.2 | CO29: Certain Clean Energy/Energy-Efficient Generation Equipment | CQ29: 2047.903125 | CY29: 2047.903125 | DB29: 0 | DD29: 2047.903125 | DE29: 0 | DF29: 0 | DG29: 0.5 | DH29: 0 | DI29: 0 | DJ29: 0.5 | DM29: 1023.951562 | DN29: 1023.951562 | DR29: 43.2 | DS29: Certain Clean Energy/Energy-Efficient Generation Equipment | DU29: 1023.951562 | EC29: 1023.951562 | EF29: 0 | EH29: 1023.951562 | EI29: 0 | EJ29: 0 | EK29: 0.5 | EL29: 0 | EM29: 0 | EN29: 0.5 | EQ29: 511.9757812 | ER29: 511.9757812
B30: =IF(ISBLANK('B8 Sch 8 CCA Bridge'!B30), "", 'B8 Sch 8 CCA Bridge'!B30) -> 45 | C30: =IF(ISBLANK('B8 Sch 8 CCA Bridge'!C30), "", 'B8 Sch 8 CCA Bridge'!C30) -> Computers & System Software (acq'd post Mar 22/04 and pre Mar 19/07) | D30: B8 | E30: =IF(ISBLANK('B8 Sch 8 CCA Bridge'!AB30), "", 'B8 Sch 8 CCA Bridge'!AB30) -> 1491.80152 | M30: 1491.80152 | P30: 0 | R30: 1491.80152 | S30: 0 | T30: 0 | U30: 0.5 | V30: 0 | W30: 0 | X30: 0.45 | AA30: 671.310684 | AB30: 820.490836 | AF30: 45 | AG30: Computers & System Software (acq'd post Mar 22/04 and pre Mar 19/07) | AI30: 820.490836 | AQ30: 820.490836 | AT30: 0 | AV30: 820.490836 | AW30: 0 | AX30: 0 | AZ30: 0 | BA30: 0 | BB30: 0.45 | BE30: 369.2208762 | BF30: 451.2699598 | BJ30: 45 | BK30: Computers & System Software (acq'd post Mar 22/04 and pre Mar 19/07) | BM30: 451.2699598 | BU30: 451.2699598 | BX30: 0 | BZ30: 451.2699598 | CA30: 0 | CB30: 0 | CD30: 0 | CE30: 0 | CF30: 0.45 | CI30: 203.0714819 | CJ30: 248.1984779 | CN30: 45 | CO30: Computers & System Software (acq'd post Mar 22/04 and pre Mar 19/07) | CQ30: 248.1984779 | CY30: 248.1984779 | DB30: 0 | DD30: 248.1984779 | DE30: 0 | DF30: 0 | DH30: 0 | DI30: 0 | DJ30: 0.45 | DM30: 111.6893151 | DN30: 136.5091628 | DR30: 45 | DS30: Computers & System Software (acq'd post Mar 22/04 and pre Mar 19/07) | DU30: 136.5091628 | EC30: 136.5091628 | EF30: 0 | EH30: 136.5091628 | EI30: 0 | EJ30: 0 | EL30: 0 | EM30: 0 | EN30: 0.45 | EQ30: 61.42912328 | ER30: 75.08003956
B31: =IF(ISBLANK('B8 Sch 8 CCA Bridge'!B31), "", 'B8 Sch 8 CCA Bridge'!B31) -> 46 | C31: =IF(ISBLANK('B8 Sch 8 CCA Bridge'!C31), "", 'B8 Sch 8 CCA Bridge'!C31) -> Data Network Infrastructure Equipment (acq'd post Mar 22/04) | D31: B8 | E31: =IF(ISBLANK('B8 Sch 8 CCA Bridge'!AB31), "", 'B8 Sch 8 CCA Bridge'!AB31) -> 0 | M31: 0 | P31: 0 | R31: 0 | S31: 0 | T31: 0 | U31: 0.5 | V31: 0 | W31: 0 | X31: 0.3 | AA31: 0 | AB31: 0 | AF31: 46 | AG31: Data Network Infrastructure Equipment (acq'd post Mar 22/04) | AI31: 0 | AQ31: 0 | AT31: 0 | AV31: 0 | AW31: 0 | AX31: 0 | AY31: 0.5 | AZ31: 0 | BA31: 0 | BB31: 0.3 | BE31: 0 | BF31: 0 | BJ31: 46 | BK31: Data Network Infrastructure Equipment (acq'd post Mar 22/04) | BM31: 0 | BU31: 0 | BX31: 0 | BZ31: 0 | CA31: 0 | CB31: 0 | CC31: 0.5 | CD31: 0 | CE31: 0 | CF31: 0.3 | CI31: 0 | CJ31: 0 | CN31: 46 | CO31: Data Network Infrastructure Equipment (acq'd post Mar 22/04) | CQ31: 0 | CY31: 0 | DB31: 0 | DD31: 0 | DE31: 0 | DF31: 0 | DG31: 0 | DH31: 0 | DI31: 0 | DJ31: 0.3 | DM31: 0 | DN31: 0 | DR31: 46 | DS31: Data Network Infrastructure Equipment (acq'd post Mar 22/04) | DU31: 0 | EC31: 0 | EF31: 0 | EH31: 0 | EI31: 0 | EJ31: 0 | EK31: 0 | EL31: 0 | EM31: 0 | EN31: 0.3 | EQ31: 0 | ER31: 0
B32: =IF(ISBLANK('B8 Sch 8 CCA Bridge'!B32), "", 'B8 Sch 8 CCA Bridge'!B32) -> 47 | C32: =IF(ISBLANK('B8 Sch 8 CCA Bridge'!C32), "", 'B8 Sch 8 CCA Bridge'!C32) -> Distribution System (acq'd post Feb 22/05) | D32: B8 | E32: =IF(ISBLANK('B8 Sch 8 CCA Bridge'!AB32), "", 'B8 Sch 8 CCA Bridge'!AB32) -> 2105418691 | F32: 322748054 | K32: 16878 | M32: 2428149867 | P32: 322748054 | Q32: =+P32 -> 322748054 | R32: 2428149867 | S32: 16878 | T32: 322731176 | U32: 0.5 | V32: 161365588 | W32: 0 | X32: 0.08 | AA32: 207161236.4 | AB32: 2220988631 | AF32: 47 | AG32: Distribution System (acq'd post Feb 22/05) | AI32: 2220988631 | AJ32: 401756745 | AO32: 16878 | AQ32: 2622728498 | AT32: 401756745 | AU32: =+AT32 -> 401756745 | AV32: 2622728498 | AW32: 16878 | AX32: 401739867 | AY32: 0.5 | AZ32: 200869933.5 | BA32: 0 | BB32: 0.08 | BE32: 225887874.5 | BF32: 2396840623 | BJ32: 47 | BK32: Distribution System (acq'd post Feb 22/05) | BM32: 2396840623 | BN32: 480077356 | BS32: 16878 | BU32: 2876901101 | BX32: 480077356 | BY32: =+BX32 -> 480077356 | BZ32: 2876901101 | CA32: 16878 | CB32: 480060478 | CC32: 0.5 | CD32: 240030239 | CE32: 0 | CF32: 0.08 | CI32: 249354507.2 | CJ32: 2627546594 | CN32: 47 | CO32: Distribution System (acq'd post Feb 22/05) | CQ32: 2627546594 | CR32: 547884664.4 | CW32: 16878 | CY32: 3175414381 | DB32: 547884664.4 | DC32: =+DB32 -> 547884664.4 | DD32: 3175414381 | DE32: 16878 | DF32: 547867786.4 | DG32: 0 | DH32: 0 | DI32: 0 | DJ32: 0.08 | DM32: 254033150.4 | DN32: 2921381230 | DR32: 47 | DS32: Distribution System (acq'd post Feb 22/05) | DU32: 2921381230 | DV32: 507417640 | EA32: 16878 | EC32: 3428781992 | EF32: 507417640 | EG32: =+EF32 -> 507417640 | EH32: 3428781992 | EI32: 16878 | EJ32: 507400762 | EK32: 0 | EL32: 0 | EM32: 0 | EN32: 0.08 | EQ32: 274302559.4 | ER32: 3154479433
B33: =IF(ISBLANK('B8 Sch 8 CCA Bridge'!B33), "", 'B8 Sch 8 CCA Bridge'!B33) -> 50 | C33: =IF(ISBLANK('B8 Sch 8 CCA Bridge'!C33), "", 'B8 Sch 8 CCA Bridge'!C33) -> General Purpose Computer Hardware & Software (acq'd post Mar 18/07) | D33: B8 | E33: =IF(ISBLANK('B8 Sch 8 CCA Bridge'!AB33), "", 'B8 Sch 8 CCA Bridge'!AB33) -> 698481.6974 | F33: 8577333 | M33: 9275814.697 | P33: 8577333 | Q33: 8577333 | R33: 9275814.697 | S33: 0 | T33: 8577333 | U33: 0.5 | V33: 4288666.5 | W33: 0 | X33: 0.55 | AA33: 7460464.659 | AB33: 1815350.039 | AF33: 50 | AG33: General Purpose Computer Hardware & Software (acq'd post Mar 18/07) | AI33: 1815350.039 | AJ33: 6696986 | AQ33: 8512336.039 | AT33: 6696986 | AU33: =+AT33 -> 6696986 | AV33: 8512336.039 | AW33: 0 | AX33: 6696986 | AY33: 0.5 | AZ33: 3348493 | BA33: 0 | BB33: 0.55 | BE33: 6523455.971 | BF33: 1988880.067 | BJ33: 50 | BK33: General Purpose Computer Hardware & Software (acq'd post Mar 18/07) | BM33: 1988880.067 | BN33: 7137841 | BU33: 9126721.067 | BX33: 7137841 | BY33: =+BX33 -> 7137841 | BZ33: 9126721.067 | CA33: 0 | CB33: 7137841 | CC33: 0.5 | CD33: 3568920.5 | CE33: 0 | CF33: 0.55 | CI33: 6982602.862 | CJ33: 2144118.205 | CN33: 50 | CO33: General Purpose Computer Hardware & Software (acq'd post Mar 18/07) | CQ33: 2144118.205 | CR33: 7181399.726 | CY33: 9325517.932 | DB33: 7181399.726 | DC33: =+DB33 -> 7181399.726 | DD33: 9325517.932 | DE33: 0 | DF33: 7181399.726 | DG33: 0 | DH33: 0 | DI33: 0 | DJ33: 0.55 | DM33: 5129034.862 | DN33: 4196483.069 | DR33: 50 | DS33: General Purpose Computer Hardware & Software (acq'd post Mar 18/07) | DU33: 4196483.069 | DV33: 6309246 | EC33: 10505729.07 | EF33: 6309246 | EG33: =+EF33 -> 6309246 | EH33: 10505729.07 | EI33: 0 | EJ33: 6309246 | EK33: 0 | EL33: 0 | EM33: 0 | EN33: 0.55 | EQ33: 5778150.988 | ER33: 4727578.081
B34: =IF(ISBLANK('B8 Sch 8 CCA Bridge'!B34), "", 'B8 Sch 8 CCA Bridge'!B34) -> 95 | C34: =IF(ISBLANK('B8 Sch 8 CCA Bridge'!C34), "", 'B8 Sch 8 CCA Bridge'!C34) -> CWIP | D34: B8 | E34: =IF(ISBLANK('B8 Sch 8 CCA Bridge'!AB34), "", 'B8 Sch 8 CCA Bridge'!AB34) -> 92905697.87 | H34: 15816116.88 | M34: 108721814.8 | P34: 0 | R34: 108721814.8 | S34: 0 | T34: 0 | U34: 0.5 | V34: 0 | W34: 0 | X34: 0 | AA34: 0 | AB34: 108721814.8 | AF34: 95 | AG34: CWIP | AI34: 108721814.8 | AL34: 76883600 | AQ34: 185605414.8 | AT34: 0 | AV34: 185605414.8 | AW34: 0 | AX34: 0 | AY34: 0.5 | AZ34: 0 | BA34: 0 | BB34: 0 | BE34: 0 | BF34: 185605414.8 | BJ34: 95 | BK34: CWIP | BM34: 185605414.8 | BP34: 69758120 | BU34: 255363534.8 | BX34: 0 | BZ34: 255363534.8 | CA34: 0 | CB34: 0 | CC34: 0.5 | CD34: 0 | CE34: 0 | CF34: 0 | CI34: 0 | CJ34: 255363534.8 | CN34: 95 | CO34: CWIP | CQ34: 255363534.8 | CT34: 74289433 | CY34: 329652967.8 | DB34: 0 | DD34: 329652967.8 | DE34: 0 | DF34: 0 | DG34: 0 | DH34: 0 | DI34: 0 | DJ34: 0 | DM34: 0 | DN34: 329652967.8 | DR34: 95 | DS34: CWIP | DU34: 329652967.8 | DX34: 122437236 | EC34: 452090203.8 | EF34: 0 | EH34: 452090203.8 | EI34: 0 | EJ34: 0 | EK34: 0 | EL34: 0 | EM34: 0 | EN34: 0 | EQ34: 0 | ER34: 452090203.8
B35: =IF(ISBLANK('B8 Sch 8 CCA Bridge'!B35), "", 'B8 Sch 8 CCA Bridge'!B35) -> 54 | C35: =IF(ISBLANK('B8 Sch 8 CCA Bridge'!C35), "", 'B8 Sch 8 CCA Bridge'!C35) -> Zero-emission vehicles | D35: B8 | E35: =IF(ISBLANK('B8 Sch 8 CCA Bridge'!AB35), "", 'B8 Sch 8 CCA Bridge'!AB35) -> 211402.8 | M35: 211402.8 | P35: 0 | R35: 211402.8 | S35: 0 | T35: 0 | V35: 0 | W35: 0 | X35: 0.3 | AA35: 63420.84 | AB35: 147981.96 | AF35: 54 | AG35: Zero-emission vehicles | AI35: 147981.96 | AQ35: 147981.96 | AT35: 0 | AV35: 147981.96 | AW35: 0 | AX35: 0 | AZ35: 0 | BA35: 0 | BB35: 0.3 | BE35: 44394.588 | BF35: 103587.372 | BJ35: 54 | BK35: Zero-emission vehicles | BM35: 103587.372 | BU35: 103587.372 | BX35: 0 | BZ35: 103587.372 | CA35: 0 | CB35: 0 | CC35: 0.5 | CD35: 0 | CE35: 0 | CF35: 0.3 | CI35: 31076.2116 | CJ35: 72511.1604 | CN35: 54 | CO35: Zero-emission vehicles | CQ35: 72511.1604 | CY35: 72511.1604 | DB35: 0 | DD35: 72511.1604 | DE35: 0 | DF35: 0 | DH35: 0 | DI35: 0 | DJ35: 0.3 | DM35: 21753.34812 | DN35: 50757.81228 | DR35: 54 | DS35: Zero-emission vehicles | DU35: 50757.81228 | EC35: 50757.81228 | EF35: 0 | EH35: 50757.81228 | EI35: 0 | EJ35: 0 | EL35: 0 | EM35: 0 | EN35: 0.3 | EQ35: 15227.34368 | ER35: 35530.4686
B36: =IF(ISBLANK('B8 Sch 8 CCA Bridge'!B36), "", 'B8 Sch 8 CCA Bridge'!B36) ->  | C36: =IF(ISBLANK('B8 Sch 8 CCA Bridge'!C36), "", 'B8 Sch 8 CCA Bridge'!C36) ->  | D36: B8 | E36: =IF(ISBLANK('B8 Sch 8 CCA Bridge'!AB36), "", 'B8 Sch 8 CCA Bridge'!AB36) -> 0 | M36: 0 | P36: 0 | R36: 0 | S36: 0 | T36: 0 | V36: 0 | W36: 0 | AA36: 0 | AB36: 0 | AF36: =IF(ISBLANK('B8 Sch 8 CCA Bridge'!AF36), "", 'B8 Sch 8 CCA Bridge'!AF36) ->  | AG36: =IF(ISBLANK('B8 Sch 8 CCA Bridge'!AG36), "", 'B8 Sch 8 CCA Bridge'!AG36) ->  | AI36: =IF(ISBLANK('B8 Sch 8 CCA Bridge'!BF36), "", 'B8 Sch 8 CCA Bridge'!BF36) ->  | AQ36: 0 | AT36: 0 | AV36: 0 | AW36: 0 | AX36: 0 | AZ36: 0 | BA36: 0 | BE36: 0 | BF36: 0 | BJ36: =IF(ISBLANK('B8 Sch 8 CCA Bridge'!BJ36), "", 'B8 Sch 8 CCA Bridge'!BJ36) ->  | BK36: =IF(ISBLANK('B8 Sch 8 CCA Bridge'!BK36), "", 'B8 Sch 8 CCA Bridge'!BK36) ->  | BM36: =IF(ISBLANK('B8 Sch 8 CCA Bridge'!CJ36), "", 'B8 Sch 8 CCA Bridge'!CJ36) ->  | BU36: 0 | BX36: 0 | BZ36: 0 | CA36: 0 | CB36: 0 | CD36: 0 | CE36: 0 | CI36: 0 | CJ36: 0 | CN36: =IF(ISBLANK('B8 Sch 8 CCA Bridge'!CN36), "", 'B8 Sch 8 CCA Bridge'!CN36) ->  | CO36: =IF(ISBLANK('B8 Sch 8 CCA Bridge'!CO36), "", 'B8 Sch 8 CCA Bridge'!CO36) ->  | CQ36: =IF(ISBLANK('B8 Sch 8 CCA Bridge'!DN36), "", 'B8 Sch 8 CCA Bridge'!DN36) ->  | CY36: 0 | DB36: 0 | DD36: 0 | DE36: 0 | DF36: 0 | DH36: 0 | DI36: 0 | DM36: 0 | DN36: 0 | DR36: =IF(ISBLANK('B8 Sch 8 CCA Bridge'!DR36), "", 'B8 Sch 8 CCA Bridge'!DR36) ->  | DS36: =IF(ISBLANK('B8 Sch 8 CCA Bridge'!DS36), "", 'B8 Sch 8 CCA Bridge'!DS36) ->  | DU36: =IF(ISBLANK('B8 Sch 8 CCA Bridge'!ER36), "", 'B8 Sch 8 CCA Bridge'!ER36) ->  | EC36: 0 | EF36: 0 | EH36: 0 | EI36: 0 | EJ36: 0 | EL36: 0 | EM36: 0 | EQ36: 0 | ER36: 0
B37: =IF(ISBLANK('B8 Sch 8 CCA Bridge'!B37), "", 'B8 Sch 8 CCA Bridge'!B37) ->  | C37: =IF(ISBLANK('B8 Sch 8 CCA Bridge'!C37), "", 'B8 Sch 8 CCA Bridge'!C37) ->  | D37: B8 | E37: =IF(ISBLANK('B8 Sch 8 CCA Bridge'!AB37), "", 'B8 Sch 8 CCA Bridge'!AB37) -> 0 | M37: 0 | P37: 0 | R37: 0 | S37: 0 | T37: 0 | V37: 0 | W37: 0 | AA37: 0 | AB37: 0 | AF37: =IF(ISBLANK('B8 Sch 8 CCA Bridge'!AF37), "", 'B8 Sch 8 CCA Bridge'!AF37) ->  | AG37: =IF(ISBLANK('B8 Sch 8 CCA Bridge'!AG37), "", 'B8 Sch 8 CCA Bridge'!AG37) ->  | AI37: =IF(ISBLANK('B8 Sch 8 CCA Bridge'!BF37), "", 'B8 Sch 8 CCA Bridge'!BF37) ->  | AQ37: 0 | AT37: 0 | AV37: 0 | AW37: 0 | AX37: 0 | AZ37: 0 | BA37: 0 | BE37: 0 | BF37: 0 | BJ37: =IF(ISBLANK('B8 Sch 8 CCA Bridge'!BJ37), "", 'B8 Sch 8 CCA Bridge'!BJ37) ->  | BK37: =IF(ISBLANK('B8 Sch 8 CCA Bridge'!BK37), "", 'B8 Sch 8 CCA Bridge'!BK37) ->  | BM37: =IF(ISBLANK('B8 Sch 8 CCA Bridge'!CJ37), "", 'B8 Sch 8 CCA Bridge'!CJ37) ->  | BU37: 0 | BX37: 0 | BZ37: 0 | CA37: 0 | CB37: 0 | CD37: 0 | CE37: 0 | CI37: 0 | CJ37: 0 | CN37: =IF(ISBLANK('B8 Sch 8 CCA Bridge'!CN37), "", 'B8 Sch 8 CCA Bridge'!CN37) ->  | CO37: =IF(ISBLANK('B8 Sch 8 CCA Bridge'!CO37), "", 'B8 Sch 8 CCA Bridge'!CO37) ->  | CQ37: =IF(ISBLANK('B8 Sch 8 CCA Bridge'!DN37), "", 'B8 Sch 8 CCA Bridge'!DN37) ->  | CY37: 0 | DB37: 0 | DD37: 0 | DE37: 0 | DF37: 0 | DH37: 0 | DI37: 0 | DM37: 0 | DN37: 0 | DR37: =IF(ISBLANK('B8 Sch 8 CCA Bridge'!DR37), "", 'B8 Sch 8 CCA Bridge'!DR37) ->  | DS37: =IF(ISBLANK('B8 Sch 8 CCA Bridge'!DS37), "", 'B8 Sch 8 CCA Bridge'!DS37) ->  | DU37: =IF(ISBLANK('B8 Sch 8 CCA Bridge'!ER37), "", 'B8 Sch 8 CCA Bridge'!ER37) ->  | EC37: 0 | EF37: 0 | EH37: 0 | EI37: 0 | EJ37: 0 | EL37: 0 | EM37: 0 | EQ37: 0 | ER37: 0
B38: =IF(ISBLANK('B8 Sch 8 CCA Bridge'!B38), "", 'B8 Sch 8 CCA Bridge'!B38) ->  | C38: =IF(ISBLANK('B8 Sch 8 CCA Bridge'!C38), "", 'B8 Sch 8 CCA Bridge'!C38) ->  | D38: B8 | E38: =IF(ISBLANK('B8 Sch 8 CCA Bridge'!AB38), "", 'B8 Sch 8 CCA Bridge'!AB38) -> 0 | M38: 0 | P38: 0 | R38: 0 | S38: 0 | T38: 0 | V38: 0 | W38: 0 | AA38: 0 | AB38: 0 | AF38: =IF(ISBLANK('B8 Sch 8 CCA Bridge'!AF38), "", 'B8 Sch 8 CCA Bridge'!AF38) ->  | AG38: =IF(ISBLANK('B8 Sch 8 CCA Bridge'!AG38), "", 'B8 Sch 8 CCA Bridge'!AG38) ->  | AI38: =IF(ISBLANK('B8 Sch 8 CCA Bridge'!BF38), "", 'B8 Sch 8 CCA Bridge'!BF38) ->  | AQ38: 0 | AT38: 0 | AV38: 0 | AW38: 0 | AX38: 0 | AZ38: 0 | BA38: 0 | BE38: 0 | BF38: 0 | BJ38: =IF(ISBLANK('B8 Sch 8 CCA Bridge'!BJ38), "", 'B8 Sch 8 CCA Bridge'!BJ38) ->  | BK38: =IF(ISBLANK('B8 Sch 8 CCA Bridge'!BK38), "", 'B8 Sch 8 CCA Bridge'!BK38) ->  | BM38: =IF(ISBLANK('B8 Sch 8 CCA Bridge'!CJ38), "", 'B8 Sch 8 CCA Bridge'!CJ38) ->  | BU38: 0 | BX38: 0 | BZ38: 0 | CA38: 0 | CB38: 0 | CD38: 0 | CE38: 0 | CI38: 0 | CJ38: 0 | CN38: =IF(ISBLANK('B8 Sch 8 CCA Bridge'!CN38), "", 'B8 Sch 8 CCA Bridge'!CN38) ->  | CO38: =IF(ISBLANK('B8 Sch 8 CCA Bridge'!CO38), "", 'B8 Sch 8 CCA Bridge'!CO38) ->  | CQ38: =IF(ISBLANK('B8 Sch 8 CCA Bridge'!DN38), "", 'B8 Sch 8 CCA Bridge'!DN38) ->  | CY38: 0 | DB38: 0 | DD38: 0 | DE38: 0 | DF38: 0 | DH38: 0 | DI38: 0 | DM38: 0 | DN38: 0 | DR38: =IF(ISBLANK('B8 Sch 8 CCA Bridge'!DR38), "", 'B8 Sch 8 CCA Bridge'!DR38) ->  | DS38: =IF(ISBLANK('B8 Sch 8 CCA Bridge'!DS38), "", 'B8 Sch 8 CCA Bridge'!DS38) ->  | DU38: =IF(ISBLANK('B8 Sch 8 CCA Bridge'!ER38), "", 'B8 Sch 8 CCA Bridge'!ER38) ->  | EC38: 0 | EF38: 0 | EH38: 0 | EI38: 0 | EJ38: 0 | EL38: 0 | EM38: 0 | EQ38: 0 | ER38: 0
B39: =IF(ISBLANK('B8 Sch 8 CCA Bridge'!B39), "", 'B8 Sch 8 CCA Bridge'!B39) ->  | C39: =IF(ISBLANK('B8 Sch 8 CCA Bridge'!C39), "", 'B8 Sch 8 CCA Bridge'!C39) ->  | D39: B8 | E39: =IF(ISBLANK('B8 Sch 8 CCA Bridge'!AB39), "", 'B8 Sch 8 CCA Bridge'!AB39) -> 0 | M39: 0 | P39: 0 | R39: 0 | S39: 0 | T39: 0 | V39: 0 | W39: 0 | AA39: 0 | AB39: 0 | AF39: =IF(ISBLANK('B8 Sch 8 CCA Bridge'!AF39), "", 'B8 Sch 8 CCA Bridge'!AF39) ->  | AG39: =IF(ISBLANK('B8 Sch 8 CCA Bridge'!AG39), "", 'B8 Sch 8 CCA Bridge'!AG39) ->  | AI39: =IF(ISBLANK('B8 Sch 8 CCA Bridge'!BF39), "", 'B8 Sch 8 CCA Bridge'!BF39) ->  | AQ39: 0 | AT39: 0 | AV39: 0 | AW39: 0 | AX39: 0 | AZ39: 0 | BA39: 0 | BE39: 0 | BF39: 0 | BJ39: =IF(ISBLANK('B8 Sch 8 CCA Bridge'!BJ39), "", 'B8 Sch 8 CCA Bridge'!BJ39) ->  | BK39: =IF(ISBLANK('B8 Sch 8 CCA Bridge'!BK39), "", 'B8 Sch 8 CCA Bridge'!BK39) ->  | BM39: =IF(ISBLANK('B8 Sch 8 CCA Bridge'!CJ39), "", 'B8 Sch 8 CCA Bridge'!CJ39) ->  | BU39: 0 | BX39: 0 | BZ39: 0 | CA39: 0 | CB39: 0 | CD39: 0 | CE39: 0 | CI39: 0 | CJ39: 0 | CN39: =IF(ISBLANK('B8 Sch 8 CCA Bridge'!CN39), "", 'B8 Sch 8 CCA Bridge'!CN39) ->  | CO39: =IF(ISBLANK('B8 Sch 8 CCA Bridge'!CO39), "", 'B8 Sch 8 CCA Bridge'!CO39) ->  | CQ39: =IF(ISBLANK('B8 Sch 8 CCA Bridge'!DN39), "", 'B8 Sch 8 CCA Bridge'!DN39) ->  | CY39: 0 | DB39: 0 | DD39: 0 | DE39: 0 | DF39: 0 | DH39: 0 | DI39: 0 | DM39: 0 | DN39: 0 | DR39: =IF(ISBLANK('B8 Sch 8 CCA Bridge'!DR39), "", 'B8 Sch 8 CCA Bridge'!DR39) ->  | DS39: =IF(ISBLANK('B8 Sch 8 CCA Bridge'!DS39), "", 'B8 Sch 8 CCA Bridge'!DS39) ->  | DU39: =IF(ISBLANK('B8 Sch 8 CCA Bridge'!ER39), "", 'B8 Sch 8 CCA Bridge'!ER39) ->  | EC39: 0 | EF39: 0 | EH39: 0 | EI39: 0 | EJ39: 0 | EL39: 0 | EM39: 0 | EQ39: 0 | ER39: 0
B40: =IF(ISBLANK('B8 Sch 8 CCA Bridge'!B40), "", 'B8 Sch 8 CCA Bridge'!B40) ->  | C40: =IF(ISBLANK('B8 Sch 8 CCA Bridge'!C40), "", 'B8 Sch 8 CCA Bridge'!C40) ->  | D40: B8 | E40: =IF(ISBLANK('B8 Sch 8 CCA Bridge'!AB40), "", 'B8 Sch 8 CCA Bridge'!AB40) -> 0 | M40: 0 | P40: 0 | R40: 0 | S40: 0 | T40: 0 | V40: 0 | W40: 0 | AA40: 0 | AB40: 0 | AF40: =IF(ISBLANK('B8 Sch 8 CCA Bridge'!AF40), "", 'B8 Sch 8 CCA Bridge'!AF40) ->  | AG40: =IF(ISBLANK('B8 Sch 8 CCA Bridge'!AG40), "", 'B8 Sch 8 CCA Bridge'!AG40) ->  | AI40: =IF(ISBLANK('B8 Sch 8 CCA Bridge'!BF40), "", 'B8 Sch 8 CCA Bridge'!BF40) ->  | AQ40: 0 | AT40: 0 | AV40: 0 | AW40: 0 | AX40: 0 | AZ40: 0 | BA40: 0 | BE40: 0 | BF40: 0 | BJ40: =IF(ISBLANK('B8 Sch 8 CCA Bridge'!BJ40), "", 'B8 Sch 8 CCA Bridge'!BJ40) ->  | BK40: =IF(ISBLANK('B8 Sch 8 CCA Bridge'!BK40), "", 'B8 Sch 8 CCA Bridge'!BK40) ->  | BM40: =IF(ISBLANK('B8 Sch 8 CCA Bridge'!CJ40), "", 'B8 Sch 8 CCA Bridge'!CJ40) ->  | BU40: 0 | BX40: 0 | BZ40: 0 | CA40: 0 | CB40: 0 | CD40: 0 | CE40: 0 | CI40: 0 | CJ40: 0 | CN40: =IF(ISBLANK('B8 Sch 8 CCA Bridge'!CN40), "", 'B8 Sch 8 CCA Bridge'!CN40) ->  | CO40: =IF(ISBLANK('B8 Sch 8 CCA Bridge'!CO40), "", 'B8 Sch 8 CCA Bridge'!CO40) ->  | CQ40: =IF(ISBLANK('B8 Sch 8 CCA Bridge'!DN40), "", 'B8 Sch 8 CCA Bridge'!DN40) ->  | CY40: 0 | DB40: 0 | DD40: 0 | DE40: 0 | DF40: 0 | DH40: 0 | DI40: 0 | DM40: 0 | DN40: 0 | DR40: =IF(ISBLANK('B8 Sch 8 CCA Bridge'!DR40), "", 'B8 Sch 8 CCA Bridge'!DR40) ->  | DS40: =IF(ISBLANK('B8 Sch 8 CCA Bridge'!DS40), "", 'B8 Sch 8 CCA Bridge'!DS40) ->  | DU40: =IF(ISBLANK('B8 Sch 8 CCA Bridge'!ER40), "", 'B8 Sch 8 CCA Bridge'!ER40) ->  | EC40: 0 | EF40: 0 | EH40: 0 | EI40: 0 | EJ40: 0 | EL40: 0 | EM40: 0 | EQ40: 0 | ER40: 0
B41: =IF(ISBLANK('B8 Sch 8 CCA Bridge'!B41), "", 'B8 Sch 8 CCA Bridge'!B41) ->  | C41: =IF(ISBLANK('B8 Sch 8 CCA Bridge'!C41), "", 'B8 Sch 8 CCA Bridge'!C41) ->  | D41: B8 | E41: =IF(ISBLANK('B8 Sch 8 CCA Bridge'!AB41), "", 'B8 Sch 8 CCA Bridge'!AB41) -> 0 | M41: 0 | P41: 0 | R41: 0 | S41: 0 | T41: 0 | V41: 0 | W41: 0 | AA41: 0 | AB41: =IF(M41<0,0,M41-Z41-AA41) -> 0 | AF41: =IF(ISBLANK('B8 Sch 8 CCA Bridge'!AF41), "", 'B8 Sch 8 CCA Bridge'!AF41) ->  | AG41: =IF(ISBLANK('B8 Sch 8 CCA Bridge'!AG41), "", 'B8 Sch 8 CCA Bridge'!AG41) ->  | AI41: =IF(ISBLANK('B8 Sch 8 CCA Bridge'!BF41), "", 'B8 Sch 8 CCA Bridge'!BF41) ->  | AQ41: 0 | AT41: 0 | AV41: 0 | AW41: 0 | AX41: 0 | AZ41: 0 | BA41: 0 | BE41: 0 | BF41: =IF(AQ41<0,0,AQ41-BD41-BE41) -> 0 | BJ41: =IF(ISBLANK('B8 Sch 8 CCA Bridge'!BJ41), "", 'B8 Sch 8 CCA Bridge'!BJ41) ->  | BK41: =IF(ISBLANK('B8 Sch 8 CCA Bridge'!BK41), "", 'B8 Sch 8 CCA Bridge'!BK41) ->  | BM41: =IF(ISBLANK('B8 Sch 8 CCA Bridge'!CJ41), "", 'B8 Sch 8 CCA Bridge'!CJ41) ->  | BU41: 0 | BX41: 0 | BZ41: 0 | CA41: 0 | CB41: 0 | CD41: 0 | CE41: 0 | CI41: 0 | CJ41: =IF(BU41<0,0,BU41-CH41-CI41) -> 0 | CN41: =IF(ISBLANK('B8 Sch 8 CCA Bridge'!CN41), "", 'B8 Sch 8 CCA Bridge'!CN41) ->  | CO41: =IF(ISBLANK('B8 Sch 8 CCA Bridge'!CO41), "", 'B8 Sch 8 CCA Bridge'!CO41) ->  | CQ41: =IF(ISBLANK('B8 Sch 8 CCA Bridge'!DN41), "", 'B8 Sch 8 CCA Bridge'!DN41) ->  | CY41: 0 | DB41: 0 | DD41: 0 | DE41: 0 | DF41: 0 | DH41: 0 | DI41: 0 | DM41: 0 | DN41: =IF(CY41<0,0,CY41-DL41-DM41) -> 0 | DR41: =IF(ISBLANK('B8 Sch 8 CCA Bridge'!DR41), "", 'B8 Sch 8 CCA Bridge'!DR41) ->  | DS41: =IF(ISBLANK('B8 Sch 8 CCA Bridge'!DS41), "", 'B8 Sch 8 CCA Bridge'!DS41) ->  | DU41: =IF(ISBLANK('B8 Sch 8 CCA Bridge'!ER41), "", 'B8 Sch 8 CCA Bridge'!ER41) ->  | EC41: 0 | EF41: 0 | EH41: 0 | EI41: 0 | EJ41: 0 | EL41: 0 | EM41: 0 | EQ41: 0 | ER41: =IF(EC41<0,0,EC41-EP41-EQ41) -> 0
B42: =IF(ISBLANK('B8 Sch 8 CCA Bridge'!B42), "", 'B8 Sch 8 CCA Bridge'!B42) ->  | C42: =IF(ISBLANK('B8 Sch 8 CCA Bridge'!C42), "", 'B8 Sch 8 CCA Bridge'!C42) ->  | D42: B8 | E42: =IF(ISBLANK('B8 Sch 8 CCA Bridge'!AB42), "", 'B8 Sch 8 CCA Bridge'!AB42) -> 0 | M42: =IFERROR(E42+F42+H42-K42,"") -> 0 | P42: 0 | R42: 0 | S42: 0 | T42: 0 | V42: 0 | W42: 0 | AA42: 0 | AB42: 0 | AF42: =IF(ISBLANK('B8 Sch 8 CCA Bridge'!AF42), "", 'B8 Sch 8 CCA Bridge'!AF42) ->  | AG42: =IF(ISBLANK('B8 Sch 8 CCA Bridge'!AG42), "", 'B8 Sch 8 CCA Bridge'!AG42) ->  | AI42: =IF(ISBLANK('B8 Sch 8 CCA Bridge'!BF42), "", 'B8 Sch 8 CCA Bridge'!BF42) ->  | AQ42: 0 | AT42: 0 | AV42: 0 | AW42: 0 | AX42: 0 | AZ42: 0 | BA42: 0 | BE42: 0 | BF42: =IF(AQ42<0,0,AQ42-BD42-BE42) -> 0 | BJ42: =IF(ISBLANK('B8 Sch 8 CCA Bridge'!BJ42), "", 'B8 Sch 8 CCA Bridge'!BJ42) ->  | BK42: =IF(ISBLANK('B8 Sch 8 CCA Bridge'!BK42), "", 'B8 Sch 8 CCA Bridge'!BK42) ->  | BM42: =IF(ISBLANK('B8 Sch 8 CCA Bridge'!CJ42), "", 'B8 Sch 8 CCA Bridge'!CJ42) ->  | BU42: 0 | BX42: 0 | BZ42: 0 | CA42: 0 | CB42: 0 | CD42: 0 | CE42: 0 | CI42: 0 | CJ42: =IF(BU42<0,0,BU42-CH42-CI42) -> 0 | CN42: =IF(ISBLANK('B8 Sch 8 CCA Bridge'!CN42), "", 'B8 Sch 8 CCA Bridge'!CN42) ->  | CO42: =IF(ISBLANK('B8 Sch 8 CCA Bridge'!CO42), "", 'B8 Sch 8 CCA Bridge'!CO42) ->  | CQ42: =IF(ISBLANK('B8 Sch 8 CCA Bridge'!DN42), "", 'B8 Sch 8 CCA Bridge'!DN42) ->  | CY42: 0 | DB42: 0 | DD42: 0 | DE42: 0 | DF42: 0 | DH42: 0 | DI42: 0 | DM42: 0 | DN42: =IF(CY42<0,0,CY42-DL42-DM42) -> 0 | DR42: =IF(ISBLANK('B8 Sch 8 CCA Bridge'!DR42), "", 'B8 Sch 8 CCA Bridge'!DR42) ->  | DS42: =IF(ISBLANK('B8 Sch 8 CCA Bridge'!DS42), "", 'B8 Sch 8 CCA Bridge'!DS42) ->  | DU42: =IF(ISBLANK('B8 Sch 8 CCA Bridge'!ER42), "", 'B8 Sch 8 CCA Bridge'!ER42) ->  | EC42: 0 | EF42: 0 | EH42: 0 | EI42: 0 | EJ42: 0 | EL42: 0 | EM42: 0 | EQ42: 0 | ER42: =IF(EC42<0,0,EC42-EP42-EQ42) -> 0
C43: TOTALS | E43: =SUM(E10:E42) -> 3022635083 | F43: =SUM(F10:F42) -> 432318247 | G43: =SUM(G10:G42) -> 0 | H43: =SUM(H10:H42) -> 15816116.88 | I43: =SUM(I10:I42) -> 0 | J43: 0 | K43: =SUM(K10:K42) -> 693668 | L43: =SUM(L10:L42) -> 0 | M43: =SUM(M10:M42) -> 3470075779 | N43: 0 | O43: 0 | P43: 432318247 | Q43: =SUM(Q10:Q42) -> 432318247 | R43: 3470075779 | S43: 693668 | T43: 431624579 | V43: =SUM(V10:V42) -> 182690887 | W43: 0 | Y43: =SUM(Y10:Y42) -> 0 | Z43: =SUM(Z10:Z42) -> 0 | AA43: =SUM(AA10:AA42) -> 308482770.7 | AB43: =SUM(AB10:AB42) -> 3161593008 | AG43: TOTALS | AI43: =SUM(AI10:AI42) -> 3161593008 | AJ43: =SUM(AJ10:AJ42) -> 466857805 | AK43: =SUM(AK10:AK42) -> 0 | AL43: =SUM(AL10:AL42) -> 76883600 | AM43: =SUM(AM10:AM42) -> 0 | AN43: 0 | AO43: =SUM(AO10:AO42) -> 693668 | AP43: =SUM(AP10:AP42) -> 0 | AQ43: =SUM(AQ10:AQ42) -> 3704640745 | AR43: 0 | AS43: 0 | AT43: 466857805 | AU43: =SUM(AU10:AU42) -> 466857805 | AV43: =SUM(AV10:AV42) -> 3704640745 | AW43: 693668 | AX43: 466164137 | AZ43: =SUM(AZ10:AZ42) -> 220337019 | BA43: 0 | BC43: =SUM(BC10:BC42) -> 0 | BD43: =SUM(BD10:BD42) -> 0 | BE43: =SUM(BE10:BE42) -> 314385249.1 | BF43: =SUM(BF10:BF42) -> 3390255496 | BK43: TOTALS | BM43: =SUM(BM10:BM42) -> 3390255496 | BN43: =SUM(BN10:BN42) -> 568352932 | BO43: =SUM(BO10:BO42) -> 0 | BP43: =SUM(BP10:BP42) -> 69758120 | BQ43: =SUM(BQ10:BQ42) -> 0 | BR43: 0 | BS43: =SUM(BS10:BS42) -> 693668 | BT43: =SUM(BT10:BT42) -> 0 | BU43: =SUM(BU10:BU42) -> 4027672880 | BV43: 0 | BW43: 0 | BX43: 568352932 | BY43: =SUM(BY10:BY42) -> 568352932 | BZ43: =SUM(BZ10:BZ42) -> 4027672880 | CA43: 693668 | CB43: 567659264 | CD43: =SUM(CD10:CD42) -> 258590175 | CE43: 0 | CG43: =SUM(CG10:CG42) -> 0 | CH43: =SUM(CH10:CH42) -> 0 | CI43: =SUM(CI10:CI42) -> 362333317.9 | CJ43: =SUM(CJ10:CJ42) -> 3665339562 | CO43: TOTALS | CQ43: =SUM(CQ10:CQ42) -> 3665339562 | CR43: =SUM(CR10:CR42) -> 618945826.8 | CS43: =SUM(CS10:CS42) -> 0 | CT43: =SUM(CT10:CT42) -> 74289433 | CU43: =SUM(CU10:CU42) -> 0 | CV43: 0 | CW43: =SUM(CW10:CW42) -> 693668 | CX43: =SUM(CX10:CX42) -> 0 | CY43: =SUM(CY10:CY42) -> 4357881154 | CZ43: 0 | DA43: 0 | DB43: 618945826.8 | DC43: =SUM(DC10:DC42) -> 618945826.8 | DD43: =SUM(DD10:DD42) -> 4357881154 | DE43: 693668 | DF43: 618252158.8 | DH43: =SUM(DH10:DH42) -> 0 | DI43: 0 | DK43: =SUM(DK10:DK42) -> 0 | DL43: =SUM(DL10:DL42) -> 0 | DM43: =SUM(DM10:DM42) -> 327691058.4 | DN43: =SUM(DN10:DN42) -> 4030190096 | DS43: TOTALS | DU43: =SUM(DU10:DU42) -> 4030190096 | DV43: =SUM(DV10:DV42) -> 610756296 | DW43: =SUM(DW10:DW42) -> 0 | DX43: =SUM(DX10:DX42) -> 122437236 | DY43: =SUM(DY10:DY42) -> 0 | DZ43: 0 | EA43: =SUM(EA10:EA42) -> 693668 | EB43: =SUM(EB10:EB42) -> 0 | EC43: =SUM(EC10:EC42) -> 4762689960 | ED43: 0 | EE43: 0 | EF43: 610756296 | EG43: =SUM(EG10:EG42) -> 610756296 | EH43: =SUM(EH10:EH42) -> 4762689960 | EI43: 693668 | EJ43: 610062628 | EL43: =SUM(EL10:EL42) -> 0 | EM43: 0 | EO43: =SUM(EO10:EO42) -> 0 | EP43: =SUM(EP10:EP42) -> 0 | EQ43: =SUM(EQ10:EQ42) -> 349410882.4 | ER43: =SUM(ER10:ER42) -> 4413279077
B45: For additional details and guidance on calculating amounts in Schedule 8, refer to the notes to the Canada Revenue Agency published Schedule 8 - Capital Cost Allowance (CCA) (2018 and later tax years):
B46: https://www.canada.ca/content/dam/cra-arc/formspubs/pbg/t2sch8/t2sch8-19e.pdf
B50: 1. Please note that Subsection 1100(2) of the Income Tax Regulations provide undepreciated capital cost adjustment factors of eligible zero-emission vehicles and equipment under Class 53, Class 54, Class 55 and Class 56,
B51: please assess the applicability of these adjustments and incorporate them in the PILs model as applicable.

Sheet T13 Sch 13 Reserves Test
C7: Schedule 13 Tax Reserves - Test Year
C9: Continuity of Reserves | D9: 2027 | E9: 2027 | F9: 2027 | G9: 2027 | H9: 2027 | I9: 2027 | J9: 2027 | K9: 2027 | L9: 2027 | M9: 2027 | N9: 2027 | Q9: 2028 | R9: 2028 | S9: 2028 | T9: 2028 | U9: 2028 | V9: 2028 | W9: 2028 | X9: 2028 | Y9: 2028 | Z9: 2028 | AA9: 2028 | AD9: 2029 | AE9: 2029 | AF9: 2029 | AG9: 2029 | AH9: 2029 | AI9: 2029 | AJ9: 2029 | AK9: 2029 | AL9: 2029 | AM9: 2029 | AN9: 2029 | AQ9: 2030 | AR9: 2030 | AS9: 2030 | AT9: 2030 | AU9: 2030 | AV9: 2030 | AW9: 2030 | AX9: 2030 | AY9: 2030 | AZ9: 2030 | BA9: 2030 | BD9: 2031 | BE9: 2031 | BF9: 2031 | BG9: 2031 | BH9: 2031 | BI9: 2031 | BJ9: 2031 | BK9: 2031 | BL9: 2031 | BM9: 2031 | BN9: 2031
I10: Test Year Adjustments | V10: Test Year Adjustments | AI10: Test Year Adjustments | AV10: Test Year Adjustments | BI10: Test Year Adjustments
C11: Description | D11: Working Paper Reference | E11: Bridge Year | F11: Eliminate Amounts Not Relevant for Test Year | G11: Adjusted Utility Balance | I11: Additions | J11: Disposals | K11: Balance for Test Year | M11: Change During the Year | N11: Disallowed Expenses | P11: Description | Q11: Working Paper Reference | R11: Opening | S11: Eliminate Amounts Not Relevant for Test Year | T11: Adjusted Utility Balance | V11: Additions | W11: Disposals | X11: Balance for Test Year | Z11: Change During the Year | AA11: Disallowed Expenses | AC11: Description | AD11: Working Paper Reference | AE11: Opening | AF11: Eliminate Amounts Not Relevant for Test Year | AG11: Adjusted Utility Balance | AI11: Additions | AJ11: Disposals | AK11: Balance for Test Year | AM11: Change During the Year | AN11: Disallowed Expenses | AP11: Description | AQ11: Working Paper Reference | AR11: Opening | AS11: Eliminate Amounts Not Relevant for Test Year | AT11: Adjusted Utility Balance | AV11: Additions | AW11: Disposals | AX11: Balance for Test Year | AZ11: Change During the Year | BA11: Disallowed Expenses | BC11: Description | BD11: Working Paper Reference | BE11: Opening | BF11: Eliminate Amounts Not Relevant for Test Year | BG11: Adjusted Utility Balance | BI11: Additions | BJ11: Disposals | BK11: Balance for Test Year | BM11: Change During the Year | BN11: Disallowed Expenses
C13: Capital Gains Reserves ss.40(1) | D13: B13 | E13: ='B13 Sch 13 Reserves Bridge'!K13 -> 0 | G13: =SUM(E13:F13) -> 0 | K13: =G13+I13-J13 -> 0 | M13: =+K13-G13 -> 0 | P13: Capital Gains Reserves ss.40(1) | T13: =SUM(R13:S13) -> 0 | X13: =T13+V13-W13 -> 0 | Z13: =+X13-T13 -> 0 | AC13: Capital Gains Reserves ss.40(1) | AG13: =SUM(AE13:AF13) -> 0 | AK13: =AG13+AI13-AJ13 -> 0 | AM13: =+AK13-AG13 -> 0 | AP13: Capital Gains Reserves ss.40(1) | AT13: =SUM(AR13:AS13) -> 0 | AX13: =AT13+AV13-AW13 -> 0 | AZ13: =+AX13-AT13 -> 0 | BC13: Capital Gains Reserves ss.40(1) | BG13: =SUM(BE13:BF13) -> 0 | BK13: =BG13+BI13-BJ13 -> 0 | BM13: =+BK13-BG13 -> 0
C14: Tax Reserves Not Deducted for accounting purposes | P14: Tax Reserves Not Deducted for accounting purposes | AC14: Tax Reserves Not Deducted for accounting purposes | AP14: Tax Reserves Not Deducted for accounting purposes | BC14: Tax Reserves Not Deducted for accounting purposes
C15: Reserve for doubtful accounts ss. 20(1)(l) | D15: B13 | E15: ='B13 Sch 13 Reserves Bridge'!K15 -> 0 | G15: =SUM(E15:F15) -> 0 | K15: =G15+I15-J15 -> 0 | M15: =+K15-G15 -> 0 | P15: Reserve for doubtful accounts ss. 20(1)(l) | T15: =SUM(R15:S15) -> 0 | X15: =T15+V15-W15 -> 0 | Z15: =+X15-T15 -> 0 | AC15: Reserve for doubtful accounts ss. 20(1)(l) | AG15: =SUM(AE15:AF15) -> 0 | AK15: =AG15+AI15-AJ15 -> 0 | AM15: =+AK15-AG15 -> 0 | AP15: Reserve for doubtful accounts ss. 20(1)(l) | AT15: =SUM(AR15:AS15) -> 0 | AX15: =AT15+AV15-AW15 -> 0 | AZ15: =+AX15-AT15 -> 0 | BC15: Reserve for doubtful accounts ss. 20(1)(l) | BG15: =SUM(BE15:BF15) -> 0 | BK15: =BG15+BI15-BJ15 -> 0 | BM15: =+BK15-BG15 -> 0
C16: Reserve for goods and services not delivered ss. 20(1)(m) | D16: B13 | E16: ='B13 Sch 13 Reserves Bridge'!K16 -> 0 | G16: 0 | K16: 0 | M16: 0 | P16: Reserve for goods and services not delivered ss. 20(1)(m) | T16: 0 | X16: 0 | Z16: 0 | AC16: Reserve for goods and services not delivered ss. 20(1)(m) | AG16: 0 | AK16: 0 | AM16: 0 | AP16: Reserve for goods and services not delivered ss. 20(1)(m) | AT16: 0 | AX16: 0 | AZ16: 0 | BC16: Reserve for goods and services not delivered ss. 20(1)(m) | BG16: 0 | BK16: 0 | BM16: 0
C17: Reserve for unpaid amounts ss. 20(1)(n) | D17: B13 | E17: ='B13 Sch 13 Reserves Bridge'!K17 -> 0 | G17: 0 | K17: 0 | M17: 0 | P17: Reserve for unpaid amounts ss. 20(1)(n) | T17: 0 | X17: 0 | Z17: 0 | AC17: Reserve for unpaid amounts ss. 20(1)(n) | AG17: 0 | AK17: 0 | AM17: 0 | AP17: Reserve for unpaid amounts ss. 20(1)(n) | AT17: 0 | AX17: 0 | AZ17: 0 | BC17: Reserve for unpaid amounts ss. 20(1)(n) | BG17: 0 | BK17: 0 | BM17: 0
C18: Debt & Share Issue Expenses ss. 20(1)(e) | D18: B13 | E18: ='B13 Sch 13 Reserves Bridge'!K18 -> 0 | G18: 0 | K18: 0 | M18: 0 | P18: Debt & Share Issue Expenses ss. 20(1)(e) | T18: 0 | X18: 0 | Z18: 0 | AC18: Debt & Share Issue Expenses ss. 20(1)(e) | AG18: 0 | AK18: 0 | AM18: 0 | AP18: Debt & Share Issue Expenses ss. 20(1)(e) | AT18: 0 | AX18: 0 | AZ18: 0 | BC18: Debt & Share Issue Expenses ss. 20(1)(e) | BG18: 0 | BK18: 0 | BM18: 0
C19: Other tax reserves | D19: B13 | E19: ='B13 Sch 13 Reserves Bridge'!K19 -> 0 | G19: 0 | K19: 0 | M19: 0 | P19: Other tax reserves | T19: 0 | X19: 0 | Z19: 0 | AC19: Other tax reserves | AG19: 0 | AK19: 0 | AM19: 0 | AP19: Other tax reserves | AT19: 0 | AX19: 0 | AZ19: 0 | BC19: Other tax reserves | BG19: 0 | BK19: 0 | BM19: 0
E20: ='B13 Sch 13 Reserves Bridge'!K20 -> 0 | G20: 0 | K20: 0 | M20: 0 | T20: 0 | X20: 0 | Z20: 0 | AG20: 0 | AK20: 0 | AM20: 0 | AT20: 0 | AX20: 0 | AZ20: 0 | BG20: 0 | BK20: 0 | BM20: 0
E21: ='B13 Sch 13 Reserves Bridge'!K21 -> 0 | G21: 0 | K21: 0 | M21: 0 | T21: 0 | X21: 0 | Z21: 0 | AG21: 0 | AK21: 0 | AM21: 0 | AT21: 0 | AX21: 0 | AZ21: 0 | BG21: 0 | BK21: 0 | BM21: 0
C22: Total | E22: =SUM(E15:E21) -> 0 | F22: 0 | G22: 0 | H22: T1 | I22: 0 | J22: 0 | K22: 0 | L22: T1 | M22: 0 | N22: =SUM(N15:N21) -> 0 | P22: Total | R22: =SUM(R15:R21) -> 0 | S22: 0 | T22: 0 | U22: T1 | V22: =SUM(V15:V21) -> 0 | W22: 0 | X22: 0 | Y22: T1 | Z22: =SUM(Z15:Z21) -> 0 | AA22: =SUM(AA15:AA21) -> 0 | AC22: Total | AE22: =SUM(AE15:AE21) -> 0 | AF22: 0 | AG22: 0 | AH22: T1 | AI22: =SUM(AI15:AI21) -> 0 | AJ22: 0 | AK22: 0 | AL22: T1 | AM22: =SUM(AM15:AM21) -> 0 | AN22: =SUM(AN15:AN21) -> 0 | AP22: Total | AR22: =SUM(AR15:AR21) -> 0 | AS22: 0 | AT22: 0 | AU22: T1 | AV22: =SUM(AV15:AV21) -> 0 | AW22: 0 | AX22: 0 | AY22: T1 | AZ22: =SUM(AZ15:AZ21) -> 0 | BA22: =SUM(BA15:BA21) -> 0 | BC22: Total | BE22: =SUM(BE15:BE21) -> 0 | BF22: 0 | BG22: 0 | BH22: T1 | BI22: =SUM(BI15:BI21) -> 0 | BJ22: 0 | BK22: 0 | BL22: T1 | BM22: =SUM(BM15:BM21) -> 0 | BN22: =SUM(BN15:BN21) -> 0
E23: 0 | R23: 0 | AE23: 0 | AR23: 0 | BE23: 0
C24: Financial Statement Reserves (not deductible for Tax Purposes) | P24: Financial Statement Reserves (not deductible for Tax Purposes) | AC24: Financial Statement Reserves (not deductible for Tax Purposes) | AP24: Financial Statement Reserves (not deductible for Tax Purposes) | BC24: Financial Statement Reserves (not deductible for Tax Purposes)
C25: General Reserve for Inventory Obsolescence (non-specific) | D25: B13 | E25: ='B13 Sch 13 Reserves Bridge'!K25 -> 0 | G25: =SUM(E25:F25) -> 0 | K25: =G25+I25-J25 -> 0 | M25: =+K25-G25 -> 0 | P25: General Reserve for Inventory Obsolescence (non-specific) | T25: =SUM(R25:S25) -> 0 | X25: =T25+V25-W25 -> 0 | Z25: =+X25-T25 -> 0 | AC25: General Reserve for Inventory Obsolescence (non-specific) | AG25: =SUM(AE25:AF25) -> 0 | AK25: =AG25+AI25-AJ25 -> 0 | AM25: =+AK25-AG25 -> 0 | AP25: General Reserve for Inventory Obsolescence (non-specific) | AT25: =SUM(AR25:AS25) -> 0 | AX25: =AT25+AV25-AW25 -> 0 | AZ25: =+AX25-AT25 -> 0 | BC25: General Reserve for Inventory Obsolescence (non-specific) | BG25: =SUM(BE25:BF25) -> 0 | BK25: =BG25+BI25-BJ25 -> 0 | BM25: =+BK25-BG25 -> 0
C26: General reserve for bad debts | D26: B13 | E26: ='B13 Sch 13 Reserves Bridge'!K26 -> 2183193.22 | G26: 2183193.22 | K26: 2183193.22 | M26: 0 | P26: General reserve for bad debts | R26: =K26 -> 2183193.22 | T26: 2183193.22 | X26: 2183193.22 | Z26: 0 | AC26: General reserve for bad debts | AE26: =X26 -> 2183193.22 | AG26: 2183193.22 | AK26: 2183193.22 | AM26: 0 | AP26: General reserve for bad debts | AR26: =AK26 -> 2183193.22 | AT26: 2183193.22 | AX26: 2183193.22 | AZ26: 0 | BC26: General reserve for bad debts | BE26: =AX26 -> 2183193.22 | BG26: 2183193.22 | BK26: 2183193.22 | BM26: 0
C27: Accrued Employee Future Benefits: | D27: B13 | E27: ='B13 Sch 13 Reserves Bridge'!K27 -> 0 | G27: 0 | K27: 0 | M27: 0 | P27: Accrued Employee Future Benefits: | T27: 0 | X27: 0 | Z27: 0 | AC27: Accrued Employee Future Benefits: | AG27: 0 | AK27: 0 | AM27: 0 | AP27: Accrued Employee Future Benefits: | AT27: 0 | AX27: 0 | AZ27: 0 | BC27: Accrued Employee Future Benefits: | BG27: 0 | BK27: 0 | BM27: 0
C28: - Medical and Life Insurance | D28: B13 | E28: ='B13 Sch 13 Reserves Bridge'!K28 -> 0 | G28: 0 | K28: 0 | M28: 0 | P28: - Medical and Life Insurance | T28: 0 | X28: 0 | Z28: 0 | AC28: - Medical and Life Insurance | AG28: 0 | AK28: 0 | AM28: 0 | AP28: - Medical and Life Insurance | AT28: 0 | AX28: 0 | AZ28: 0 | BC28: - Medical and Life Insurance | BG28: 0 | BK28: 0 | BM28: 0
C29: -Short & Long-term Disability | D29: B13 | E29: ='B13 Sch 13 Reserves Bridge'!K29 -> 0 | G29: 0 | K29: 0 | M29: 0 | P29: -Short & Long-term Disability | T29: 0 | X29: 0 | Z29: 0 | AC29: -Short & Long-term Disability | AG29: 0 | AK29: 0 | AM29: 0 | AP29: -Short & Long-term Disability | AT29: 0 | AX29: 0 | AZ29: 0 | BC29: -Short & Long-term Disability | BG29: 0 | BK29: 0 | BM29: 0
C30: -Accmulated Sick Leave | D30: B13 | E30: ='B13 Sch 13 Reserves Bridge'!K30 -> 0 | G30: 0 | K30: 0 | M30: 0 | P30: -Accmulated Sick Leave | T30: 0 | X30: 0 | Z30: 0 | AC30: -Accmulated Sick Leave | AG30: 0 | AK30: 0 | AM30: 0 | AP30: -Accmulated Sick Leave | AT30: 0 | AX30: 0 | AZ30: 0 | BC30: -Accmulated Sick Leave | BG30: 0 | BK30: 0 | BM30: 0
C31: - Termination Cost | D31: B13 | E31: ='B13 Sch 13 Reserves Bridge'!K31 -> 0 | G31: 0 | K31: 0 | M31: 0 | P31: - Termination Cost | T31: 0 | X31: 0 | Z31: 0 | AC31: - Termination Cost | AG31: 0 | AK31: 0 | AM31: 0 | AP31: - Termination Cost | AT31: 0 | AX31: 0 | AZ31: 0 | BC31: - Termination Cost | BG31: 0 | BK31: 0 | BM31: 0
C32: - Other Post-Employment Benefits | D32: B13 | E32: ='B13 Sch 13 Reserves Bridge'!K32 -> 75831573 | G32: 75831573 | I32: 600926 | K32: 76432499 | M32: 600926 | P32: - Other Post-Employment Benefits | R32: =K32 -> 76432499 | T32: 76432499 | V32: 539015 | X32: 76971514 | Z32: 539015 | AC32: - Other Post-Employment Benefits | AE32: =X32 -> 76971514 | AG32: 76971514 | AI32: 475886 | AK32: 77447400 | AM32: 475886 | AP32: - Other Post-Employment Benefits | AR32: =AK32 -> 77447400 | AT32: 77447400 | AV32: 411601 | AX32: 77859001 | AZ32: 411601 | BC32: - Other Post-Employment Benefits | BE32: =AX32 -> 77859001 | BG32: 77859001 | BI32: 346248 | BK32: 78205249 | BM32: 346248
C33: Provision for Environmental Costs | D33: B13 | E33: ='B13 Sch 13 Reserves Bridge'!K33 -> 913544 | G33: 913544 | I33: 61861 | K33: 975405 | M33: 61861 | P33: Provision for Environmental Costs | R33: =K33 -> 975405 | T33: 975405 | V33: 66050 | X33: 1041455 | Z33: 66050 | AC33: Provision for Environmental Costs | AE33: =X33 -> 1041455 | AG33: 1041455 | AI33: 176251 | AK33: 1217706 | AM33: 176251 | AP33: Provision for Environmental Costs | AR33: =AK33 -> 1217706 | AT33: 1217706 | AV33: 82455 | AX33: 1300161 | AZ33: 82455 | BC33: Provision for Environmental Costs | BE33: =AX33 -> 1300161 | BG33: 1300161 | BI33: 88042 | BK33: 1388203 | BM33: 88042
C34: Restructuring Costs | D34: B13 | E34: ='B13 Sch 13 Reserves Bridge'!K34 -> 0 | G34: 0 | K34: 0 | M34: 0 | P34: Restructuring Costs | T34: 0 | X34: 0 | Z34: 0 | AC34: Restructuring Costs | AG34: 0 | AK34: 0 | AM34: 0 | AP34: Restructuring Costs | AT34: 0 | AX34: 0 | AZ34: 0 | BC34: Restructuring Costs | BG34: 0 | BK34: 0 | BM34: 0
C35: Accrued Contingent Litigation Costs | D35: B13 | E35: ='B13 Sch 13 Reserves Bridge'!K35 -> 0 | G35: 0 | K35: 0 | M35: 0 | P35: Accrued Contingent Litigation Costs | T35: 0 | X35: 0 | Z35: 0 | AC35: Accrued Contingent Litigation Costs | AG35: 0 | AK35: 0 | AM35: 0 | AP35: Accrued Contingent Litigation Costs | AT35: 0 | AX35: 0 | AZ35: 0 | BC35: Accrued Contingent Litigation Costs | BG35: 0 | BK35: 0 | BM35: 0
C36: Accrued Self-Insurance Costs | D36: B13 | E36: ='B13 Sch 13 Reserves Bridge'!K36 -> 0 | G36: 0 | K36: 0 | M36: 0 | P36: Accrued Self-Insurance Costs | T36: 0 | X36: 0 | Z36: 0 | AC36: Accrued Self-Insurance Costs | AG36: 0 | AK36: 0 | AM36: 0 | AP36: Accrued Self-Insurance Costs | AT36: 0 | AX36: 0 | AZ36: 0 | BC36: Accrued Self-Insurance Costs | BG36: 0 | BK36: 0 | BM36: 0
C37: Other Contingent Liabilities | D37: B13 | E37: ='B13 Sch 13 Reserves Bridge'!K37 -> 0 | G37: 0 | K37: 0 | M37: 0 | P37: Other Contingent Liabilities | T37: 0 | X37: 0 | Z37: 0 | AC37: Other Contingent Liabilities | AG37: 0 | AK37: 0 | AM37: 0 | AP37: Other Contingent Liabilities | AT37: 0 | AX37: 0 | AZ37: 0 | BC37: Other Contingent Liabilities | BG37: 0 | BK37: 0 | BM37: 0
C38: Bonuses Accrued and Not Paid Within 180 Days of Year-End ss. 78(4) | D38: B13 | E38: ='B13 Sch 13 Reserves Bridge'!K38 -> 0 | G38: 0 | K38: 0 | M38: 0 | P38: Bonuses Accrued and Not Paid Within 180 Days of Year-End ss. 78(4) | T38: 0 | X38: 0 | Z38: 0 | AC38: Bonuses Accrued and Not Paid Within 180 Days of Year-End ss. 78(4) | AG38: 0 | AK38: 0 | AM38: 0 | AP38: Bonuses Accrued and Not Paid Within 180 Days of Year-End ss. 78(4) | AT38: 0 | AX38: 0 | AZ38: 0 | BC38: Bonuses Accrued and Not Paid Within 180 Days of Year-End ss. 78(4) | BG38: 0 | BK38: 0 | BM38: 0
C39: Unpaid Amounts to Related Person and Not Paid Within 3 Taxation Years ss. 78(1) | D39: B13 | E39: ='B13 Sch 13 Reserves Bridge'!K39 -> 0 | G39: 0 | K39: 0 | M39: 0 | P39: Unpaid Amounts to Related Person and Not Paid Within 3 Taxation Years ss. 78(1) | T39: 0 | X39: 0 | Z39: 0 | AC39: Unpaid Amounts to Related Person and Not Paid Within 3 Taxation Years ss. 78(1) | AG39: 0 | AK39: 0 | AM39: 0 | AP39: Unpaid Amounts to Related Person and Not Paid Within 3 Taxation Years ss. 78(1) | AT39: 0 | AX39: 0 | AZ39: 0 | BC39: Unpaid Amounts to Related Person and Not Paid Within 3 Taxation Years ss. 78(1) | BG39: 0 | BK39: 0 | BM39: 0
C40: Other | D40: B13 | E40: ='B13 Sch 13 Reserves Bridge'!K40 -> 0 | G40: 0 | K40: 0 | M40: 0 | P40: Other | T40: 0 | X40: 0 | Z40: 0 | AC40: Other | AG40: 0 | AK40: 0 | AM40: 0 | AP40: Other | AT40: 0 | AX40: 0 | AZ40: 0 | BC40: Other | BG40: 0 | BK40: 0 | BM40: 0
E41: ='B13 Sch 13 Reserves Bridge'!K41 -> 0 | G41: 0 | K41: 0 | M41: 0 | T41: 0 | X41: 0 | Z41: 0 | AG41: 0 | AK41: 0 | AM41: 0 | AT41: 0 | AX41: 0 | AZ41: 0 | BG41: 0 | BK41: 0 | BM41: 0
E42: ='B13 Sch 13 Reserves Bridge'!K42 -> 0 | G42: 0 | K42: 0 | M42: 0 | T42: 0 | X42: 0 | Z42: 0 | AG42: 0 | AK42: 0 | AM42: 0 | AT42: 0 | AX42: 0 | AZ42: 0 | BG42: 0 | BK42: 0 | BM42: 0
C43: Total | E43: =SUM(E25:E42) -> 78928310.22 | F43: 0 | G43: 78928310.22 | H43: T1 | I43: 662787 | J43: 0 | K43: 79591097.22 | L43: T1 | M43: 662787 | N43: 0 | P43: Total | R43: =SUM(R25:R42) -> 79591097.22 | S43: 0 | T43: 79591097.22 | U43: T1 | V43: =SUM(V25:V42) -> 605065 | W43: 0 | X43: 80196162.22 | Y43: T1 | Z43: =SUM(Z25:Z42) -> 605065 | AA43: 0 | AC43: Total | AE43: =SUM(AE25:AE42) -> 80196162.22 | AF43: 0 | AG43: 80196162.22 | AH43: T1 | AI43: =SUM(AI25:AI42) -> 652137 | AJ43: 0 | AK43: 80848299.22 | AL43: T1 | AM43: =SUM(AM25:AM42) -> 652137 | AN43: 0 | AP43: Total | AR43: =SUM(AR25:AR42) -> 80848299.22 | AS43: 0 | AT43: 80848299.22 | AU43: T1 | AV43: =SUM(AV25:AV42) -> 494056 | AW43: 0 | AX43: 81342355.22 | AY43: T1 | AZ43: =SUM(AZ25:AZ42) -> 494056 | BA43: 0 | BC43: Total | BE43: =SUM(BE25:BE42) -> 81342355.22 | BF43: 0 | BG43: 81342355.22 | BH43: T1 | BI43: =SUM(BI25:BI42) -> 434290 | BJ43: 0 | BK43: 81776645.22 | BL43: T1 | BM43: =SUM(BM25:BM42) -> 434290 | BN43: 0
E44: 0
